Workbook

Sheet Main
B10: 2020-05-05
B12: Sheet No. | C12: Template Name | D12: Summary
B13: 1 | C13: Future Intra | D13: For Intraday trading in F&O segment
B14: 2 | C14: Cash Intra | D14: For Intraday trading in cash market segment
B15: 3 | C15: Mid-cap Intra | D15: For Intraday trading in Mid-cap stocks
B16: 4 | C16: Bulk Deals | D16: Reveals Bulk Deals carried on NSE & BSE
B17: 5 | C17: Call Tracker
K27: `

Sheet Future Intra
M5: Back to Main Page
A6: FOR INTRA DAY TRADING | L6: =Main!B10 -> 2020-05-05
A9: Sr.no | B9: Sector | C9: Scrip | D9: CLOSE RATE | E9: Pivot Point | F9: Supports | I9: Resistances
B10: Sector | D10: Point | E10: Point | F10: S1 | G10: S2 | H10: S3 | I10: R1 | J10: R2 | K10: R3 | L10: HIGH | M10: LOW | N10: OI | O10: % Change in OI
A11: 1 | B11: Index | C11: BANKNIFTY | D11: 19632.75 | E11: 19912.58 | F11: 19225.17 | G11: 18817.58 | H11: 18130.17 | I11: 20320.17 | J11: 21007.58 | K11: 21415.17 | L11: 20600 | M11: 19505 | N11: 1322825 | O11: 31.70%
A12: 2 | B12: Index | C12: NIFTY | D12: 9285.90 | E12: 9336.23 | F12: 9194.97 | G12: 9104.03 | H12: 8962.77 | I12: 9427.17 | J12: 9568.43 | K12: 9659.37 | L12: 9477.5 | M12: 9245.3 | N12: 9456900 | O12: -1.59%
A13: 3 | B13: Index | C13: NIFTYIT | D13: 13473.00 | E13: 13517.67 | F13: 13336.33 | G13: 13199.67 | H13: 13018.33 | I13: 13654.33 | J13: 13835.67 | K13: 13972.33 | L13: 13699 | M13: 13381 | N13: 2200 | O13: -18.52%
A14: 4 | B14: Cement | C14: ACC | D14: 1125.05 | E14: 1129.70 | F14: 1111.40 | G14: 1097.75 | H14: 1079.45 | I14: 1143.35 | J14: 1161.65 | K14: 1175.30 | L14: 1148 | M14: 1116.05 | N14: 1784000 | O14: -2.30%
A15: 5 | B15: Others | C15: ADANIENT | D15: 131.30 | E15: 132.95 | F15: 127.75 | G15: 124.20 | H15: 119.00 | I15: 136.50 | J15: 141.70 | K15: 145.25 | L15: 138.15 | M15: 129.4 | N15: 18032000 | O15: 2.04%
A16: 6 | B16: Others | C16: ADANIPORTS | D16: 267.60 | E16: 270.83 | F16: 260.02 | G16: 252.43 | H16: 241.62 | I16: 278.42 | J16: 289.23 | K16: 296.82 | L16: 281.65 | M16: 263.25 | N16: 35050000 | O16: 9.41%
A17: 7 | B17: Power | C17: ADANIPOWER | D17: 29.85 | E17: 30.08 | F17: 29.32 | G17: 28.78 | H17: 28.02 | I17: 30.62 | J17: 31.38 | K17: 31.92 | L17: 30.85 | M17: 29.55 | N17: 61760000 | O17: -0.93%
A18: 8 | B18: Automobile | C18: AMARAJABAT | D18: 550.35 | E18: 544.62 | F18: 534.78 | G18: 519.22 | H18: 509.38 | I18: 560.18 | J18: 570.02 | K18: 585.58 | L18: 554.45 | M18: 529.05 | N18: 1059200 | O18: 2.24%
A19: 9 | B19: Cement | C19: AMBUJACEM | D19: 162.45 | E19: 164.82 | F19: 159.13 | G19: 155.82 | H19: 150.13 | I19: 168.13 | J19: 173.82 | K19: 177.13 | L19: 170.5 | M19: 161.5 | N19: 18680000 | O19: 5.21%
A20: 10 | B20: Others | C20: APOLLOHOSP | D20: 1366.95 | E20: 1379.40 | F20: 1339.90 | G20: 1312.85 | H20: 1273.35 | I20: 1406.45 | J20: 1445.95 | K20: 1473.00 | L20: 1418.9 | M20: 1352.35 | N20: 933000 | O20: 3.21%
A21: 11 | B21: Automobile | C21: APOLLOTYRE | D21: 88.10 | E21: 89.08 | F21: 85.77 | G21: 83.43 | H21: 80.12 | I21: 91.42 | J21: 94.73 | K21: 97.07 | L21: 92.4 | M21: 86.75 | N21: 5010000 | O21: -4.35%
A22: 12 | B22: Automobile | C22: ASHOKLEY | D22: 48.30 | E22: 49.03 | F22: 47.12 | G22: 45.93 | H22: 44.02 | I22: 50.22 | J22: 52.13 | K22: 53.32 | L22: 50.95 | M22: 47.85 | N22: 34400000 | O22: 11.89%
A23: 13 | B23: FMCG | C23: ASIANPAINT | D23: 1681.20 | E23: 1703.73 | F23: 1650.47 | G23: 1619.73 | H23: 1566.47 | I23: 1734.47 | J23: 1787.73 | K23: 1818.47 | L23: 1757 | M23: 1673 | N23: 5013300 | O23: 3.42%
A24: 14 | B24: Pharma | C24: AUROPHARMA | D24: 655.75 | E24: 648.22 | F24: 613.43 | G24: 571.12 | H24: 536.33 | I24: 690.53 | J24: 725.32 | K24: 767.63 | L24: 683 | M24: 605.9 | N24: 10361500 | O24: 6.78%
A25: 15 | B25: Banking | C25: AXISBANK | D25: 403.05 | E25: 408.67 | F25: 392.93 | G25: 382.82 | H25: 367.08 | I25: 418.78 | J25: 434.52 | K25: 444.63 | L25: 424.4 | M25: 398.55 | N25: 49068000 | O25: 4.65%
A26: 16 | B26: Automobile | C26: BAJAJ-AUTO | D26: 2450.20 | E26: 2473.15 | F26: 2399.30 | G26: 2348.40 | H26: 2274.55 | I26: 2524.05 | J26: 2597.90 | K26: 2648.80 | L26: 2547 | M26: 2422.25 | N26: 1480750 | O26: 2.53%
A27: 17 | B27: Finance | C27: BAJAJFINSV | D27: 4761.10 | E27: 4801.70 | F27: 4671.00 | G27: 4580.90 | H27: 4450.20 | I27: 4891.80 | J27: 5022.50 | K27: 5112.60 | L27: 4932.4 | M27: 4711.6 | N27: 586375 | O27: -5.33%
A28: 18 | B28: Finance | C28: BAJFINANCE | D28: 2086.60 | E28: 2108.17 | F28: 2022.83 | G28: 1959.07 | H28: 1873.73 | I28: 2171.93 | J28: 2257.27 | K28: 2321.03 | L28: 2193.5 | M28: 2044.4 | N28: 5894500 | O28: 6.63%
A29: 19 | B29: Automobile | C29: BALKRISIND | D29: 875.90 | E29: 880.13 | F29: 860.37 | G29: 844.83 | H29: 825.07 | I29: 895.67 | J29: 915.43 | K29: 930.97 | L29: 899.9 | M29: 864.6 | N29: 678400 | O29: 2.54%
A30: 20 | B30: Banking | C30: BANDHANBNK | D30: 239.95 | E30: 240.32 | F30: 235.63 | G30: 231.32 | H30: 226.63 | I30: 244.63 | J30: 249.32 | K30: 253.63 | L30: 245 | M30: 236 | N30: 9674400 | O30: 0.46%
A31: 21 | B31: Banking | C31: BANKBARODA | D31: 45.70 | E31: 46.25 | F31: 44.80 | G31: 43.90 | H31: 42.45 | I31: 47.15 | J31: 48.60 | K31: 49.50 | L31: 47.7 | M31: 45.35 | N31: 39336400 | O31: -6.14%
A32: 22 | B32: FMCG | C32: BATAINDIA | D32: 1309.30 | E32: 1322.38 | F32: 1287.92 | G32: 1266.53 | H32: 1232.07 | I32: 1343.77 | J32: 1378.23 | K32: 1399.62 | L32: 1356.85 | M32: 1301 | N32: 1196800 | O32: -2.90%
A33: 23 | B33: Capital_Goods | C33: BEL | D33: 67.40 | E33: 68.22 | F33: 65.88 | G33: 64.37 | H33: 62.03 | I33: 69.73 | J33: 72.07 | K33: 73.58 | L33: 70.55 | M33: 66.7 | N33: 20514000 | O33: 3.70%
A34: 24 | B34: FMCG | C34: BERGEPAINT | D34: 482.15 | E34: 488.52 | F34: 473.83 | G34: 465.52 | H34: 450.83 | I34: 496.83 | J34: 511.52 | K34: 519.83 | L34: 503.2 | M34: 480.2 | N34: 4583700 | O34: 1.58%
A35: 25 | B35: Automobile | C35: BHARATFORG | D35: 268.75 | E35: 277.20 | F35: 258.30 | G35: 247.85 | H35: 228.95 | I35: 287.65 | J35: 306.55 | K35: 317.00 | L35: 296.1 | M35: 266.75 | N35: 5220800 | O35: -9.18%
A36: 26 | B36: Telecom | C36: BHARTIARTL | D36: 533.80 | E36: 524.52 | F36: 508.28 | G36: 482.77 | H36: 466.53 | I36: 550.03 | J36: 566.27 | K36: 591.78 | L36: 540.75 | M36: 499 | N36: 58691508 | O36: 4.55%
A37: 27 | B37: Capital_Goods | C37: BHEL | D37: 23.65 | E37: 23.17 | F37: 21.38 | G37: 19.12 | H37: 17.33 | I37: 25.43 | J37: 27.22 | K37: 29.48 | L37: 24.95 | M37: 20.9 | N37: 66435200 | O37: 18.71%
A38: 28 | B38: Pharma | C38: BIOCON | D38: 357.80 | E38: 358.38 | F38: 349.27 | G38: 340.73 | H38: 331.62 | I38: 366.92 | J38: 376.03 | K38: 384.57 | L38: 367.5 | M38: 349.85 | N38: 13151400 | O38: 3.64%
A39: 29 | B39: Automobile | C39: BOSCHLTD | D39: 9905.60 | E39: 10009.73 | F39: 9749.97 | G39: 9594.33 | H39: 9334.57 | I39: 10165.37 | J39: 10425.13 | K39: 10580.77 | L39: 10269.5 | M39: 9854.1 | N39: 139640 | O39: -3.96%
A40: 30 | B40: Oil_Gas | C40: BPCL | D40: 348.05 | E40: 350.93 | F40: 339.42 | G40: 330.78 | H40: 319.27 | I40: 359.57 | J40: 371.08 | K40: 379.72 | L40: 362.45 | M40: 342.3 | N40: 16880400 | O40: 0.39%
A41: 31 | B41: FMCG | C41: BRITANNIA | D41: 3095.90 | E41: 3094.97 | F41: 3046.13 | G41: 2996.37 | H41: 2947.53 | I41: 3144.73 | J41: 3193.57 | K41: 3243.33 | L41: 3143.8 | M41: 3045.2 | N41: 1180800 | O41: 4.51%
A42: 32 | B42: Pharma | C42: CADILAHC | D42: 331.25 | E42: 330.27 | F42: 321.83 | G42: 312.42 | H42: 303.98 | I42: 339.68 | J42: 348.12 | K42: 357.53 | L42: 338.7 | M42: 320.85 | N42: 6828800 | O42: 9.76%
A43: 33 | B43: Banking | C43: CANBK | D43: 80.25 | E43: 81.68 | F43: 77.97 | G43: 75.68 | H43: 71.97 | I43: 83.97 | J43: 87.68 | K43: 89.97 | L43: 85.4 | M43: 79.4 | N43: 8208000 | O43: -2.65%
A44: 34 | B44: Textile | C44: CENTURYTEX | D44: 270.45 | E44: 274.00 | F44: 264.05 | G44: 257.65 | H44: 247.70 | I44: 280.40 | J44: 290.35 | K44: 296.75 | L44: 283.95 | M44: 267.6 | N44: 2469600 | O44: 3.05%
A45: 35 | B45: Power | C45: CESC | D45: 626.60 | E45: 617.67 | F45: 604.03 | G45: 581.47 | H45: 567.83 | I45: 640.23 | J45: 653.87 | K45: 676.43 | L45: 631.3 | M45: 595.1 | N45: 575200 | O45: 9.77%
A46: 36 | B46: Finance | C46: CHOLAFIN | D46: 142.75 | E46: 144.17 | F46: 137.23 | G46: 131.72 | H46: 124.78 | I46: 149.68 | J46: 156.62 | K46: 162.13 | L46: 151.1 | M46: 138.65 | N46: 6132500 | O46: 28.09%
A47: 37 | B47: Pharma | C47: CIPLA | D47: 611.80 | E47: 604.32 | F47: 589.93 | G47: 568.07 | H47: 553.68 | I47: 626.18 | J47: 640.57 | K47: 662.43 | L47: 618.7 | M47: 582.45 | N47: 13875900 | O47: 6.92%
A48: 38 | B48: Others | C48: COALINDIA | D48: 142.35 | E48: 142.75 | F48: 140.85 | G48: 139.35 | H48: 137.45 | I48: 144.25 | J48: 146.15 | K48: 147.65 | L48: 144.65 | M48: 141.25 | N48: 27132300 | O48: 0.88%
A49: 39 | B49: FMCG | C49: COLPAL | D49: 1386.10 | E49: 1402.32 | F49: 1354.63 | G49: 1323.17 | H49: 1275.48 | I49: 1433.78 | J49: 1481.47 | K49: 1512.93 | L49: 1450 | M49: 1370.85 | N49: 1265600 | O49: 8.33%
A50: 40 | B50: Others | C50: CONCOR | D50: 349.05 | E50: 354.40 | F50: 337.25 | G50: 325.45 | H50: 308.30 | I50: 366.20 | J50: 383.35 | K50: 395.15 | L50: 371.55 | M50: 342.6 | N50: 4112253 | O50: 1.58%
A51: 41 | B51: Capital_Goods | C51: CUMMINSIND | D51: 371.75 | E51: 369.93 | F51: 357.52 | G51: 343.28 | H51: 330.87 | I51: 384.17 | J51: 396.58 | K51: 410.82 | L51: 382.35 | M51: 355.7 | N51: 1112400 | O51: -7.69%
A52: 42 | B52: FMCG | C52: DABUR | D52: 469.90 | E52: 473.20 | F52: 464.00 | G52: 458.10 | H52: 448.90 | I52: 479.10 | J52: 488.30 | K52: 494.20 | L52: 482.4 | M52: 467.3 | N52: 11588750 | O52: 3.80%
A53: 43 | B53: Pharma | C53: DIVISLAB | D53: 2293.45 | E53: 2299.80 | F53: 2248.60 | G53: 2203.75 | H53: 2152.55 | I53: 2344.65 | J53: 2395.85 | K53: 2440.70 | L53: 2351 | M53: 2254.95 | N53: 2434000 | O53: 10.56%
A54: 44 | B54: Realty | C54: DLF | D54: 133.35 | E54: 135.20 | F54: 129.00 | G54: 124.65 | H54: 118.45 | I54: 139.55 | J54: 145.75 | K54: 150.10 | L54: 141.4 | M54: 130.85 | N54: 23855700 | O54: -2.95%
A55: 45 | B55: Pharma | C55: DRREDDY | D55: 3933.10 | E55: 3935.68 | F55: 3857.42 | G55: 3781.73 | H55: 3703.47 | I55: 4011.37 | J55: 4089.63 | K55: 4165.32 | L55: 4013.95 | M55: 3860 | N55: 2618750 | O55: 0.75%
A56: 46 | B56: Automobile | C56: EICHERMOT | D56: 13781.00 | E56: 13884.85 | F56: 13496.25 | G56: 13211.50 | H56: 12822.90 | I56: 14169.60 | J56: 14558.20 | K56: 14842.95 | L56: 14273.45 | M56: 13600.1 | N56: 270060 | O56: -1.19%
A57: 47 | B57: Finance | C57: EQUITAS | D57: 46.15 | E57: 46.92 | F57: 44.43 | G57: 42.72 | H57: 40.23 | I57: 48.63 | J57: 51.12 | K57: 52.83 | L57: 49.4 | M57: 45.2 | N57: 7987000 | O57: -7.28%
A58: 48 | B58: Automobile | C58: ESCORTS | D58: 684.30 | E58: 683.78 | F58: 669.62 | G58: 654.93 | H58: 640.77 | I58: 698.47 | J58: 712.63 | K58: 727.32 | L58: 697.95 | M58: 669.1 | N58: 1795200 | O58: -8.42%
A59: 49 | B59: Automobile | C59: EXIDEIND | D59: 147.00 | E59: 148.88 | F59: 144.17 | G59: 141.33 | H59: 136.62 | I59: 151.72 | J59: 156.43 | K59: 159.27 | L59: 153.6 | M59: 146.05 | N59: 4129600 | O59: -2.13%
A60: 50 | B60: Banking | C60: FEDERALBNK | D60: 43.95 | E60: 44.67 | F60: 42.83 | G60: 41.72 | H60: 39.88 | I60: 45.78 | J60: 47.62 | K60: 48.73 | L60: 46.5 | M60: 43.55 | N60: 45207500 | O60: 0.27%
A61: 51 | B61: Oil_Gas | C61: GAIL | D61: 93.15 | E61: 92.68 | F61: 90.27 | G61: 87.38 | H61: 84.97 | I61: 95.57 | J61: 97.98 | K61: 100.87 | L61: 95.1 | M61: 89.8 | N61: 20718022 | O61: -2.48%
A62: 52 | B62: Pharma | C62: GLENMARK | D62: 338.10 | E62: 338.02 | F62: 328.43 | G62: 318.77 | H62: 309.18 | I62: 347.68 | J62: 357.27 | K62: 366.93 | L62: 347.6 | M62: 328.35 | N62: 3668000 | O62: 3.56%
A63: 53 | B63: Infrastructure | C63: GMRINFRA | D63: 16.45 | E63: 16.57 | F63: 16.18 | G63: 15.92 | H63: 15.53 | I63: 16.83 | J63: 17.22 | K63: 17.48 | L63: 16.95 | M63: 16.3 | N63: 51030000 | O63: 0.18%
A64: 54 | B64: FMCG | C64: GODREJCP | D64: 524.20 | E64: 527.23 | F64: 517.47 | G64: 510.73 | H64: 500.97 | I64: 533.97 | J64: 543.73 | K64: 550.47 | L64: 537 | M64: 520.5 | N64: 4877600 | O64: -0.65%
A65: 55 | B65: Others | C65: GODREJPROP | D65: 614.60 | E65: 627.47 | F65: 599.78 | G65: 584.97 | H65: 557.28 | I65: 642.28 | J65: 669.97 | K65: 684.78 | L65: 655.15 | M65: 612.65 | N65: 113750 | O65: -10.71%
A66: 56 | B66: Cement | C66: GRASIM | D66: 479.40 | E66: 483.05 | F66: 472.35 | G66: 465.30 | H66: 454.60 | I66: 490.10 | J66: 500.80 | K66: 507.85 | L66: 493.75 | M66: 476 | N66: 18670500 | O66: 0.52%
A67: 57 | B67: Others | C67: HAVELLS | D67: 524.40 | E67: 532.12 | F67: 511.43 | G67: 498.47 | H67: 477.78 | I67: 545.08 | J67: 565.77 | K67: 578.73 | L67: 552.8 | M67: 519.15 | N67: 4770000 | O67: 2.21%
A68: 58 | B68: Technology | C68: HCLTECH | D68: 515.90 | E68: 517.97 | F68: 507.93 | G68: 499.97 | H68: 489.93 | I68: 525.93 | J68: 535.97 | K68: 543.93 | L68: 528 | M68: 510 | N68: 20050800 | O68: 9.65%
A69: 59 | B69: Finance | C69: HDFC | D69: 1728.25 | E69: 1767.82 | F69: 1673.28 | G69: 1618.32 | H69: 1523.78 | I69: 1822.78 | J69: 1917.32 | K69: 1972.28 | L69: 1862.35 | M69: 1712.85 | N69: 26531050 | O69: -0.39%
A70: 60 | B70: Banking | C70: HDFCBANK | D70: 915.20 | E70: 927.57 | F70: 896.88 | G70: 878.57 | H70: 847.88 | I70: 945.88 | J70: 976.57 | K70: 994.88 | L70: 958.25 | M70: 909.25 | N70: 28722950 | O70: 7.40%
A71: 61 | B71: Finance | C71: HDFCLIFE | D71: 480.80 | E71: 480.92 | F71: 471.88 | G71: 462.97 | H71: 453.93 | I71: 489.83 | J71: 498.87 | K71: 507.78 | L71: 489.95 | M71: 472 | N71: 11382300 | O71: 1.82%
A72: 62 | B72: Automobile | C72: HEROMOTOCO | D72: 2001.60 | E72: 2023.00 | F72: 1960.30 | G72: 1919.00 | H72: 1856.30 | I72: 2064.30 | J72: 2127.00 | K72: 2168.30 | L72: 2085.7 | M72: 1981.7 | N72: 2410200 | O72: -1.98%
A73: 63 | B73: Metals | C73: HINDALCO | D73: 115.90 | E73: 117.42 | F73: 112.08 | G73: 108.27 | H73: 102.93 | I73: 121.23 | J73: 126.57 | K73: 130.38 | L73: 122.75 | M73: 113.6 | N73: 26285800 | O73: -15.56%
A74: 64 | B74: Oil_Gas | C74: HINDPETRO | D74: 208.40 | E74: 209.70 | F74: 204.50 | G74: 200.60 | H74: 195.40 | I74: 213.60 | J74: 218.80 | K74: 222.70 | L74: 214.9 | M74: 205.8 | N74: 18465300 | O74: -2.58%
A75: 65 | B75: FMCG | C75: HINDUNILVR | D75: 2085.40 | E75: 2106.70 | F75: 2047.40 | G75: 2009.40 | H75: 1950.10 | I75: 2144.70 | J75: 2204.00 | K75: 2242.00 | L75: 2166 | M75: 2068.7 | N75: 13830600 | O75: 5.81%
A76: 66 | B76: Finance | C76: IBULHSGFIN | D76: 117.90 | E76: 119.10 | F76: 113.80 | G76: 109.70 | H76: 104.40 | I76: 123.20 | J76: 128.50 | K76: 132.60 | L76: 124.4 | M76: 115 | N76: 12369600 | O76: -0.31%
A77: 67 | B77: Banking | C77: ICICIBANK | D77: 339.05 | E77: 345.28 | F77: 330.37 | G77: 321.68 | H77: 306.77 | I77: 353.97 | J77: 368.88 | K77: 377.57 | L77: 360.2 | M77: 336.6 | N77: 77919875 | O77: -3.95%
A78: 68 | B78: Finance | C78: ICICIPRULI | D78: 392.75 | E78: 394.00 | F78: 387.25 | G78: 381.75 | H78: 375.00 | I78: 399.50 | J78: 406.25 | K78: 411.75 | L78: 400.75 | M78: 388.5 | N78: 7287000 | O78: -1.50%
A79: 69 | B79: Telecom | C79: IDEA | D79: 4.25 | E79: 4.18 | F79: 4.02 | G79: 3.78 | H79: 3.62 | I79: 4.42 | J79: 4.58 | K79: 4.82 | L79: 4.35 | M79: 3.95 | N79: 398370000 | O79: 15.16%
A80: 70 | B80: Banking | C80: IDFCFIRSTB | D80: 20.55 | E80: 20.65 | F80: 20.00 | G80: 19.45 | H80: 18.80 | I80: 21.20 | J80: 21.85 | K80: 22.40 | L80: 21.3 | M80: 20.1 | N80: 109406000 | O80: 3.24%
A81: 71 | B81: Oil_Gas | C81: IGL | D81: 469.70 | E81: 469.60 | F81: 460.20 | G81: 450.70 | H81: 441.30 | I81: 479.10 | J81: 488.50 | K81: 498.00 | L81: 479 | M81: 460.1 | N81: 5438125 | O81: -0.63%
A82: 72 | B82: Others | C82: INDIGO | D82: 912.10 | E82: 922.85 | F82: 890.70 | G82: 869.30 | H82: 837.15 | I82: 944.25 | J82: 976.40 | K82: 997.80 | L82: 955 | M82: 901.45 | N82: 2732100 | O82: 2.26%
A83: 73 | B83: Banking | C83: INDUSINDBK | D83: 422.95 | E83: 427.73 | F83: 410.22 | G83: 397.48 | H83: 379.97 | I83: 440.47 | J83: 457.98 | K83: 470.72 | L83: 445.25 | M83: 415 | N83: 15517600 | O83: 1.59%
A84: 74 | B84: Telecom | C84: INFRATEL | D84: 164.85 | E84: 164.43 | F84: 160.47 | G84: 156.08 | H84: 152.12 | I84: 168.82 | J84: 172.78 | K84: 177.17 | L84: 168.4 | M84: 160.05 | N84: 7444000 | O84: 4.40%
A85: 75 | B85: Technology | C85: INFY | D85: 675.50 | E85: 682.93 | F85: 665.17 | G85: 654.83 | H85: 637.07 | I85: 693.27 | J85: 711.03 | K85: 721.37 | L85: 700.7 | M85: 672.6 | N85: 48422400 | O85: -2.09%
A86: 76 | B86: Oil_Gas | C86: IOC | D86: 79.75 | E86: 80.52 | F86: 78.63 | G86: 77.52 | H86: 75.63 | I86: 81.63 | J86: 83.52 | K86: 84.63 | L86: 82.4 | M86: 79.4 | N86: 54652000 | O86: -0.85%
A87: 77 | B87: FMCG | C87: ITC | D87: 171.90 | E87: 173.72 | F87: 166.93 | G87: 161.97 | H87: 155.18 | I87: 178.68 | J87: 185.47 | K87: 190.43 | L87: 180.5 | M87: 168.75 | N87: 30016000 | O87: 6.11%
A88: 78 | B88: Metals | C88: JINDALSTEL | D88: 85.50 | E88: 86.17 | F88: 82.73 | G88: 79.97 | H88: 76.53 | I88: 88.93 | J88: 92.37 | K88: 95.13 | L88: 89.6 | M88: 83.4 | N88: 12550000 | O88: -0.83%
A89: 79 | B89: Metals | C89: JSWSTEEL | D89: 163.35 | E89: 165.62 | F89: 159.73 | G89: 156.12 | H89: 150.23 | I89: 169.23 | J89: 175.12 | K89: 178.73 | L89: 171.5 | M89: 162 | N89: 22266300 | O89: -8.94%
A90: 80 | B90: Others | C90: JUBLFOOD | D90: 1522.55 | E90: 1523.83 | F90: 1495.82 | G90: 1469.08 | H90: 1441.07 | I90: 1550.57 | J90: 1578.58 | K90: 1605.32 | L90: 1551.85 | M90: 1497.1 | N90: 1569000 | O90: -0.48%
A91: 81 | B91: Others | C91: JUSTDIAL | D91: 377.30 | E91: 382.87 | F91: 370.23 | G91: 363.17 | H91: 350.53 | I91: 389.93 | J91: 402.57 | K91: 409.63 | L91: 395.5 | M91: 375.8 | N91: 1451800 | O91: 7.24%
A92: 82 | B92: Banking | C92: KOTAKBANK | D92: 1268.85 | E92: 1277.98 | F92: 1252.37 | G92: 1235.88 | H92: 1210.27 | I92: 1294.47 | J92: 1320.08 | K92: 1336.57 | L92: 1303.6 | M92: 1261.5 | N92: 8513600 | O92: 9.22%
A93: 83 | B93: Finance | C93: L&TFH | D93: 55.90 | E93: 57.45 | F93: 53.20 | G93: 50.50 | H93: 46.25 | I93: 60.15 | J93: 64.40 | K93: 67.10 | L93: 61.7 | M93: 54.75 | N93: 27036800 | O93: 20.58%
A94: 84 | B94: Finance | C94: LICHSGFIN | D94: 251.65 | E94: 257.10 | F94: 242.25 | G94: 232.85 | H94: 218.00 | I94: 266.50 | J94: 281.35 | K94: 290.75 | L94: 271.95 | M94: 247.7 | N94: 7486700 | O94: 10.98%
A95: 85 | B95: Capital_Goods | C95: LT | D95: 851.70 | E95: 857.45 | F95: 837.40 | G95: 823.10 | H95: 803.05 | I95: 871.75 | J95: 891.80 | K95: 906.10 | L95: 877.5 | M95: 843.15 | N95: 10897800 | O95: -3.19%
A96: 86 | B96: Pharma | C96: LUPIN | D96: 842.60 | E96: 842.20 | F96: 815.00 | G96: 787.40 | H96: 760.20 | I96: 869.80 | J96: 897.00 | K96: 924.60 | L96: 869.4 | M96: 814.6 | N96: 9437400 | O96: 3.69%
A97: 87 | B97: Automobile | C97: M&M | D97: 356.40 | E97: 352.43 | F97: 344.47 | G97: 332.53 | H97: 324.57 | I97: 364.37 | J97: 372.33 | K97: 384.27 | L97: 360.4 | M97: 340.5 | N97: 14492800 | O97: -0.84%
A98: 88 | B98: Finance | C98: M&MFIN | D98: 159.75 | E98: 157.67 | F98: 151.68 | G98: 143.62 | H98: 137.63 | I98: 165.73 | J98: 171.72 | K98: 179.78 | L98: 163.65 | M98: 149.6 | N98: 11412800 | O98: -8.61%
A99: 89 | B99: Finance | C99: MANAPPURAM | D99: 121.30 | E99: 123.03 | F99: 116.62 | G99: 111.93 | H99: 105.52 | I99: 127.72 | J99: 134.13 | K99: 138.82 | L99: 129.45 | M99: 118.35 | N99: 12090000 | O99: -3.17%
A100: 90 | B100: FMCG | C100: MARICO | D100: 285.30 | E100: 285.58 | F100: 276.97 | G100: 268.63 | H100: 260.02 | I100: 293.92 | J100: 302.53 | K100: 310.87 | L100: 294.2 | M100: 277.25 | N100: 11884600 | O100: 6.14%
A101: 91 | B101: Automobile | C101: MARUTI | D101: 4893.55 | E101: 4956.40 | F101: 4776.15 | G101: 4658.75 | H101: 4478.50 | I101: 5073.80 | J101: 5254.05 | K101: 5371.45 | L101: 5136.65 | M101: 4839 | N101: 2371200 | O101: -0.82%
A102: 92 | B102: FMCG | C102: MCDOWELL-N | D102: 543.65 | E102: 543.52 | F102: 528.28 | G102: 512.92 | H102: 497.68 | I102: 558.88 | J102: 574.12 | K102: 589.48 | L102: 558.75 | M102: 528.15 | N102: 11621250 | O102: 9.74%
A103: 93 | B103: Finance | C103: MFSL | D103: 463.65 | E103: 459.50 | F103: 449.45 | G103: 435.25 | H103: 425.20 | I103: 473.70 | J103: 483.75 | K103: 497.95 | L103: 469.55 | M103: 445.3 | N103: 1358500 | O103: -5.86%
A104: 94 | B104: Oil_Gas | C104: MGL | D104: 939.85 | E104: 948.63 | F104: 923.27 | G104: 906.68 | H104: 881.32 | I104: 965.22 | J104: 990.58 | K104: 1007.17 | L104: 974 | M104: 932.05 | N104: 1260600 | O104: -0.61%
A105: 95 | B105: Technology | C105: MINDTREE | D105: 890.15 | E105: 885.97 | F105: 870.93 | G105: 851.72 | H105: 836.68 | I105: 905.18 | J105: 920.22 | K105: 939.43 | L105: 901 | M105: 866.75 | N105: 904800 | O105: 2.17%
A106: 96 | B106: Automobile | C106: MOTHERSUMI | D106: 76.85 | E106: 78.40 | F106: 74.25 | G106: 71.65 | H106: 67.50 | I106: 81.00 | J106: 85.15 | K106: 87.75 | L106: 82.55 | M106: 75.8 | N106: 21610000 | O106: 0.79%
A107: 97 | B107: Automobile | C107: MRF | D107: 57878.30 | E107: 58304.93 | F107: 57121.77 | G107: 56365.23 | H107: 55182.07 | I107: 59061.47 | J107: 60244.63 | K107: 61001.17 | L107: 59488.1 | M107: 57548.4 | N107: 18030 | O107: -3.79%
A108: 98 | B108: Finance | C108: MUTHOOTFIN | D108: 786.00 | E108: 796.72 | F108: 762.43 | G108: 738.87 | H108: 704.58 | I108: 820.28 | J108: 854.57 | K108: 878.13 | L108: 831 | M108: 773.15 | N108: 1609500 | O108: -4.11%
A109: 99 | B109: Metals | C109: NATIONALUM | D109: 30.05 | E109: 30.28 | F109: 29.67 | G109: 29.28 | H109: 28.67 | I109: 30.67 | J109: 31.28 | K109: 31.67 | L109: 30.9 | M109: 29.9 | N109: 21118500 | O109: -3.58%
A110: 100 | B110: Others | C110: NAUKRI | D110: 2502.20 | E110: 2503.75 | F110: 2468.45 | G110: 2434.70 | H110: 2399.40 | I110: 2537.50 | J110: 2572.80 | K110: 2606.55 | L110: 2539.05 | M110: 2470 | N110: 704600 | O110: -0.70%
A111: 101 | B111: Infrastructure | C111: NCC | D111: 24.30 | E111: 24.32 | F111: 23.78 | G111: 23.27 | H111: 22.73 | I111: 24.83 | J111: 25.37 | K111: 25.88 | L111: 24.85 | M111: 23.8 | N111: 15345000 | O111: -2.46%
A112: 102 | B112: FMCG | C112: NESTLEIND | D112: 17491.55 | E112: 17560.85 | F112: 17341.70 | G112: 17191.85 | H112: 16972.70 | I112: 17710.70 | J112: 17929.85 | K112: 18079.70 | L112: 17780 | M112: 17411 | N112: 231050 | O112: -0.24%
A113: 103 | B113: Technology | C113: NIITTECH | D113: 1166.50 | E113: 1171.40 | F113: 1128.15 | G113: 1089.80 | H113: 1046.55 | I113: 1209.75 | J113: 1253.00 | K113: 1291.35 | L113: 1214.65 | M113: 1133.05 | N113: 481125 | O113: 23.72%
A114: 104 | B114: Metals | C114: NMDC | D114: 74.90 | E114: 75.43 | F114: 73.47 | G114: 72.03 | H114: 70.07 | I114: 76.87 | J114: 78.83 | K114: 80.27 | L114: 77.4 | M114: 74 | N114: 23803400 | O114: 1.26%
A115: 105 | B115: Power | C115: NTPC | D115: 91.45 | E115: 91.95 | F115: 90.30 | G115: 89.15 | H115: 87.50 | I115: 93.10 | J115: 94.75 | K115: 95.90 | L115: 93.6 | M115: 90.8 | N115: 38534400 | O115: -2.07%
A116: 106 | B116: Oil_Gas | C116: ONGC | D116: 76.55 | E116: 76.15 | F116: 74.55 | G116: 72.55 | H116: 70.95 | I116: 78.15 | J116: 79.75 | K116: 81.75 | L116: 77.75 | M116: 74.15 | N116: 49126200 | O116: -3.25%
A117: 107 | B117: Textile | C117: PAGEIND | D117: 17038.30 | E117: 17314.30 | F117: 16708.60 | G117: 16378.90 | H117: 15773.20 | I117: 17644.00 | J117: 18249.70 | K117: 18579.40 | L117: 17920 | M117: 16984.6 | N117: 120225 | O117: 1.58%
A118: 108 | B118: Pharma | C118: PEL | D118: 903.95 | E118: 914.32 | F118: 879.63 | G118: 855.32 | H118: 820.63 | I118: 938.63 | J118: 973.32 | K118: 997.63 | L118: 949 | M118: 890 | N118: 3019548 | O118: 5.11%
A119: 109 | B119: Oil_Gas | C119: PETRONET | D119: 231.35 | E119: 232.43 | F119: 224.72 | G119: 218.08 | H119: 210.37 | I119: 239.07 | J119: 246.78 | K119: 253.42 | L119: 240.15 | M119: 225.8 | N119: 11583000 | O119: 0.55%
A120: 110 | B120: Finance | C120: PFC | D120: 91.15 | E120: 91.45 | F120: 89.55 | G120: 87.95 | H120: 86.05 | I120: 93.05 | J120: 94.95 | K120: 96.55 | L120: 93.35 | M120: 89.85 | N120: 34131000 | O120: 0.04%
A121: 111 | B121: FMCG | C121: PIDILITIND | D121: 1427.30 | E121: 1458.37 | F121: 1391.93 | G121: 1356.57 | H121: 1290.13 | I121: 1493.73 | J121: 1560.17 | K121: 1595.53 | L121: 1524.8 | M121: 1423 | N121: 2400000 | O121: 5.73%
A122: 112 | B122: Banking | C122: PNB | D122: 29.95 | E122: 30.38 | F122: 29.17 | G122: 28.38 | H122: 27.17 | I122: 31.17 | J122: 32.38 | K122: 33.17 | L122: 31.6 | M122: 29.6 | N122: 42714900 | O122: 0.03%
A123: 113 | B123: Power | C123: POWERGRID | D123: 158.95 | E123: 159.25 | F123: 157.50 | G123: 156.05 | H123: 154.30 | I123: 160.70 | J123: 162.45 | K123: 163.90 | L123: 161 | M123: 157.8 | N123: 34496000 | O123: 0.37%
A124: 114 | B124: Media | C124: PVR | D124: 897.05 | E124: 907.17 | F124: 865.43 | G124: 833.82 | H124: 792.08 | I124: 938.78 | J124: 980.52 | K124: 1012.13 | L124: 948.9 | M124: 875.55 | N124: 1136800 | O124: 0.21%
A125: 115 | B125: Cement | C125: RAMCOCEM | D125: 513.25 | E125: 520.28 | F125: 499.97 | G125: 486.68 | H125: 466.37 | I125: 533.57 | J125: 553.88 | K125: 567.17 | L125: 540.6 | M125: 507 | N125: 553600 | O125: -2.26%
A126: 116 | B126: Banking | C126: RBLBANK | D126: 120.95 | E126: 120.95 | F126: 115.95 | G126: 110.95 | H126: 105.95 | I126: 125.95 | J126: 130.95 | K126: 135.95 | L126: 125.95 | M126: 115.95 | N126: 20492600 | O126: 1.44%
A127: 117 | B127: Power | C127: RECLTD | D127: 90.05 | E127: 90.77 | F127: 88.43 | G127: 86.82 | H127: 84.48 | I127: 92.38 | J127: 94.72 | K127: 96.33 | L127: 93.1 | M127: 89.15 | N127: 23652000 | O127: 0.41%
A128: 118 | B128: Oil_Gas | C128: RELIANCE | D128: 1439.20 | E128: 1441.25 | F128: 1414.50 | G128: 1389.80 | H128: 1363.05 | I128: 1465.95 | J128: 1492.70 | K128: 1517.40 | L128: 1468 | M128: 1416.55 | N128: 35216000 | O128: -1.52%
A129: 119 | B129: Metals | C129: SAIL | D129: 27.45 | E129: 28.02 | F129: 26.63 | G129: 25.82 | H129: 24.43 | I129: 28.83 | J129: 30.22 | K129: 31.03 | L129: 29.4 | M129: 27.2 | N129: 37868400 | O129: 14.37%
A130: 120 | B130: Finance | C130: SBILIFE | D130: 689.65 | E130: 697.88 | F130: 668.77 | G130: 647.88 | H130: 618.77 | I130: 718.77 | J130: 747.88 | K130: 768.77 | L130: 727 | M130: 677 | N130: 174750
A131: 121 | B131: Banking | C131: SBIN | D131: 178.80 | E131: 179.87 | F131: 176.38 | G131: 173.97 | H131: 170.48 | I131: 182.28 | J131: 185.77 | K131: 188.18 | L131: 183.35 | M131: 177.45 | N131: 92400000 | O131: -4.15%
A132: 122 | B132: Cement | C132: SHREECEM | D132: 18655.95 | E132: 18860.85 | F132: 18396.05 | G132: 18136.15 | H132: 17671.35 | I132: 19120.75 | J132: 19585.55 | K132: 19845.45 | L132: 19325.65 | M132: 18600.95 | N132: 138050 | O132: -0.40%
A133: 123 | B133: Capital_Goods | C133: SIEMENS | D133: 1094.05 | E133: 1093.35 | F133: 1069.70 | G133: 1045.35 | H133: 1021.70 | I133: 1117.70 | J133: 1141.35 | K133: 1165.70 | L133: 1117 | M133: 1069 | N133: 1471250 | O133: 1.17%
A134: 124 | B134: Textile | C134: SRF | D134: 3642.80 | E134: 3642.92 | F134: 3594.88 | G134: 3546.97 | H134: 3498.93 | I134: 3690.83 | J134: 3738.87 | K134: 3786.78 | L134: 3690.95 | M134: 3595 | N134: 479750 | O134: -2.69%
A135: 125 | B135: Finance | C135: SRTRANSFIN | D135: 707.80 | E135: 699.57 | F135: 674.33 | G135: 640.87 | H135: 615.63 | I135: 733.03 | J135: 758.27 | K135: 791.73 | L135: 724.8 | M135: 666.1 | N135: 2569800 | O135: 6.23%
A136: 126 | B136: Pharma | C136: SUNPHARMA | D136: 466.55 | E136: 466.38 | F136: 458.02 | G136: 449.48 | H136: 441.12 | I136: 474.92 | J136: 483.28 | K136: 491.82 | L136: 474.75 | M136: 457.85 | N136: 39593750 | O136: 1.17%
A137: 127 | B137: Media | C137: SUNTV | D137: 380.40 | E137: 380.30 | F137: 372.65 | G137: 364.90 | H137: 357.25 | I137: 388.05 | J137: 395.70 | K137: 403.45 | L137: 387.95 | M137: 372.55 | N137: 3614400 | O137: -0.69%
A138: 128 | B138: Fertilisers | C138: TATACHEM | D138: 279.80 | E138: 279.70 | F138: 272.70 | G138: 265.60 | H138: 258.60 | I138: 286.80 | J138: 293.80 | K138: 300.90 | L138: 286.7 | M138: 272.6 | N138: 1252800 | O138: 3.11%
A139: 129 | B139: Others | C139: TATACONSUM | D139: 336.05 | E139: 339.22 | F139: 330.08 | G139: 324.12 | H139: 314.98 | I139: 345.18 | J139: 354.32 | K139: 360.28 | L139: 348.35 | M139: 333.25 | N139: 8704800 | O139: 4.71%
A140: 130 | B140: Automobile | C140: TATAMOTORS | D140: 83.30 | E140: 83.95 | F140: 80.60 | G140: 77.90 | H140: 74.55 | I140: 86.65 | J140: 90.00 | K140: 92.70 | L140: 87.3 | M140: 81.25 | N140: 57512400 | O140: -2.01%
A141: 131 | B141: Power | C141: TATAPOWER | D141: 30.05 | E141: 30.47 | F141: 29.53 | G141: 29.02 | H141: 28.08 | I141: 30.98 | J141: 31.92 | K141: 32.43 | L141: 31.4 | M141: 29.95 | N141: 55836000 | O141: -1.29%
A142: 132 | B142: Metals | C142: TATASTEEL | D142: 271.25 | E142: 275.77 | F142: 264.48 | G142: 257.72 | H142: 246.43 | I142: 282.53 | J142: 293.82 | K142: 300.58 | L142: 287.05 | M142: 269 | N142: 16697900 | O142: 10.82%
A143: 133 | B143: Technology | C143: TCS | D143: 1933.20 | E143: 1941.87 | F143: 1913.33 | G143: 1893.47 | H143: 1864.93 | I143: 1961.73 | J143: 1990.27 | K143: 2010.13 | L143: 1970.4 | M143: 1922 | N143: 13897150 | O143: -0.49%
A144: 134 | B144: Technology | C144: TECHM | D144: 502.80 | E144: 507.43 | F144: 492.67 | G144: 482.53 | H144: 467.77 | I144: 517.57 | J144: 532.33 | K144: 542.47 | L144: 522.2 | M144: 497.3 | N144: 14378400 | O144: -8.83%
A145: 135 | B145: FMCG | C145: TITAN | D145: 894.50 | E145: 902.60 | F145: 875.60 | G145: 856.70 | H145: 829.70 | I145: 921.50 | J145: 948.50 | K145: 967.40 | L145: 929.6 | M145: 883.7 | N145: 6705000 | O145: -1.86%
A146: 136 | B146: Pharma | C146: TORNTPHARM | D146: 2376.20 | E146: 2379.92 | F146: 2324.83 | G146: 2273.47 | H146: 2218.38 | I146: 2431.28 | J146: 2486.37 | K146: 2537.73 | L146: 2435 | M146: 2328.55 | N146: 880500 | O146: 5.26%
A147: 137 | B147: Power | C147: TORNTPOWER | D147: 331.75 | E147: 329.78 | F147: 324.42 | G147: 317.08 | H147: 311.72 | I147: 337.12 | J147: 342.48 | K147: 349.82 | L147: 335.15 | M147: 322.45 | N147: 1698000 | O147: 18.16%
A148: 138 | B148: Automobile | C148: TVSMOTOR | D148: 303.20 | E148: 304.52 | F148: 298.18 | G148: 293.17 | H148: 286.83 | I148: 309.53 | J148: 315.87 | K148: 320.88 | L148: 310.85 | M148: 299.5 | N148: 3651750 | O148: -2.70%
A149: 139 | B149: FMCG | C149: UBL | D149: 972.45 | E149: 975.67 | F149: 944.83 | G149: 917.22 | H149: 886.38 | I149: 1003.28 | J149: 1034.12 | K149: 1061.73 | L149: 1006.5 | M149: 948.05 | N149: 772800 | O149: 40.64%
A150: 140 | B150: Finance | C150: UJJIVAN | D150: 163.25 | E150: 161.60 | F150: 155.15 | G150: 147.05 | H150: 140.60 | I150: 169.70 | J150: 176.15 | K150: 184.25 | L150: 168.05 | M150: 153.5 | N150: 3716200 | O150: 6.58%
A151: 141 | B151: Cement | C151: ULTRACEMCO | D151: 3354.85 | E151: 3387.07 | F151: 3298.78 | G151: 3242.72 | H151: 3154.43 | I151: 3443.13 | J151: 3531.42 | K151: 3587.48 | L151: 3475.35 | M151: 3331 | N151: 2250000 | O151: 1.93%
A152: 142 | B152: Fertilisers | C152: UPL | D152: 386.25 | E152: 396.13 | F152: 372.02 | G152: 357.78 | H152: 333.67 | I152: 410.37 | J152: 434.48 | K152: 448.72 | L152: 420.25 | M152: 381.9 | N152: 15050200 | O152: -3.15%
A153: 143 | B153: Metals | C153: VEDL | D153: 79.95 | E153: 81.02 | F153: 78.18 | G153: 76.42 | H153: 73.58 | I153: 82.78 | J153: 85.62 | K153: 87.38 | L153: 83.85 | M153: 79.25 | N153: 88296700 | O153: -1.66%
A154: 144 | B154: Capital_Goods | C154: VOLTAS | D154: 467.15 | E154: 475.80 | F154: 453.55 | G154: 439.95 | H154: 417.70 | I154: 489.40 | J154: 511.65 | K154: 525.25 | L154: 498.05 | M154: 462.2 | N154: 2249000 | O154: 0.31%
A155: 145 | B155: Technology | C155: WIPRO | D155: 189.95 | E155: 188.25 | F155: 185.75 | G155: 181.55 | H155: 179.05 | I155: 192.45 | J155: 194.95 | K155: 199.15 | L155: 190.75 | M155: 184.05 | N155: 22697600 | O155: 2.59%
A156: 146 | B156: Banking | C156: YESBANK | D156: 26.65 | E156: 26.75 | F156: 26.15 | G156: 25.65 | H156: 25.05 | I156: 27.25 | J156: 27.85 | K156: 28.35 | L156: 27.35 | M156: 26.25 | N156: 34566400 | O156: 1.05%
A157: 147 | B157: Media | C157: ZEEL | D157: 146.65 | E157: 147.15 | F157: 143.05 | G157: 139.45 | H157: 135.35 | I157: 150.75 | J157: 154.85 | K157: 158.45 | L157: 151.25 | M157: 143.55 | N157: 17720800 | O157: 1.24%
A175: Pivot Point: This is trigger point for intra day buy/sell based on the price range of the previous day
A176: As per the tool,the trader should take BUY position just above Pivot and keep the stop loss of pivot point and the first target would be Resistance 1(R1)
A177: If R1 is crossed then R2 becomes the next target with stop loss of at R1
A178: Similarly if price goes below pivot point then the trader should sell and keep a stop loss of pivot point and the first target would be S1
A179: If S1 is crossed then S2 becomes the next target with stop loss of at S1
A181: Disclaimer:
A182: This document has been prepared by the Retail Research Desk of Asit C Mehta
A183: Investment Intermediates Ltd. and is meant for use of the recipient only
A184: and is not for circulation. This document is not to be reported or
A185: copied or made available to others. It should not be considered to be
A186: taken as an offer to sell or a solicitation to buy any security. The
A187: information contained herein is from sources believed reliable. We do
A188: not represent that it is accurate or complete and it should not be
A189: relied upon as such. We may from time to time have positions in and buy
A190: and sell securities referred to herein

Sheet Cash Intra
M5: Back to Main Page
A6: FOR INTRA DAY TRADING | K6: =Main!B10 -> 2020-05-05
A8: Sr.no | B8: Scrip | C8: CLOSE RATE | D8: Pivot Point | E8: Supports | H8: Resistances
C9: Point | E9: S1 | F9: S2 | G9: S3 | H9: R1 | I9: R2 | J9: R3 | K9: HIGH | L9: LOW | M9: Total Trade Quanity in Lakhs
A10: 1 | B10: Nifty 50 | C10: 9293.5 | D10: 9364.65 | E10: 9195.80 | F10: 9098.10 | G10: 8929.25 | H10: 9462.35 | I10: 9631.20 | J10: 9728.90 | K10: 9533.5 | L10: 9266.95
A11: 2 | B11: Nifty Bank | C11: 19743.75 | D11: 19972.60 | E11: 19414.75 | F11: 19085.75 | G11: 18527.90 | H11: 20301.60 | I11: 20859.45 | J11: 21188.45 | K11: 20530.45 | L11: 19643.6
A12: 3 | B12: Nifty CPSE | C12: 1366.25 | D12: 1368.67 | E12: 1355.18 | F12: 1344.12 | G12: 1330.63 | H12: 1379.73 | I12: 1393.22 | J12: 1404.28 | K12: 1382.15 | L12: 1357.6
A13: 4 | B13: Nifty Infra | C13: 2666.6 | D13: 2673.72 | E13: 2649.78 | F13: 2632.97 | G13: 2609.03 | H13: 2690.53 | I13: 2714.47 | J13: 2731.28 | K13: 2697.65 | L13: 2656.9
A14: 5 | B14: Nifty IT | C14: 13454.25 | D14: 13526.28 | E14: 13352.32 | F14: 13250.38 | G14: 13076.42 | H14: 13628.22 | I14: 13802.18 | J14: 13904.12 | K14: 13700.25 | L14: 13424.35
A15: 6 | B15: Nifty PSE | C15: 2335.15 | D15: 2345.52 | E15: 2318.73 | F15: 2302.32 | G15: 2275.53 | H15: 2361.93 | I15: 2388.72 | J15: 2405.13 | K15: 2372.3 | L15: 2329.1
A16: 7 | B16: Nifty Midcap 50 | C16: 3548.65 | D16: 3562.72 | E16: 3516.88 | F16: 3485.12 | G16: 3439.28 | H16: 3594.48 | I16: 3640.32 | J16: 3672.08 | K16: 3608.55 | L16: 3530.95
A17: 8 | B17: ACC | C17: 1126.8 | D17: 1131.13 | E17: 1112.87 | F17: 1098.93 | G17: 1080.67 | H17: 1145.07 | I17: 1163.33 | J17: 1177.27 | K17: 1149.4 | L17: 1117.2 | M17: 9.60797
A18: 9 | B18: AUBANK | C18: 517.05 | D18: 517.05 | E18: 517.05 | F18: 517.05 | G18: 517.05 | H18: 517.05 | I18: 517.05 | J18: 517.05 | K18: 517.05 | L18: 517.05 | M18: 1.09074
A19: 10 | B19: ADANIPORTS | C19: 266.35 | D19: 269.45 | E19: 258.90 | F19: 251.45 | G19: 240.90 | H19: 276.90 | I19: 287.45 | J19: 294.90 | K19: 280 | L19: 262 | M19: 63.59013
A20: 11 | B20: ADANIPOWER | C20: 29.85 | D20: 30.15 | E20: 29.30 | F20: 28.75 | G20: 27.90 | H20: 30.70 | I20: 31.55 | J20: 32.10 | K20: 31 | L20: 29.6 | M20: 76.1221
A21: 12 | B21: ABCAPITAL | C21: 45.8 | D21: 46.42 | E21: 44.68 | F21: 43.57 | G21: 41.83 | H21: 47.53 | I21: 49.27 | J21: 50.38 | K21: 48.15 | L21: 45.3 | M21: 21.71864
A22: 13 | B22: ABFRL | C22: 109.1 | D22: 110.63 | E22: 106.27 | F22: 103.43 | G22: 99.07 | H22: 113.47 | I22: 117.83 | J22: 120.67 | K22: 115 | L22: 107.8 | M22: 19.79857
A23: 14 | B23: AJANTPHARM | C23: 1469.35 | D23: 1477.32 | E23: 1434.63 | F23: 1399.92 | G23: 1357.23 | H23: 1512.03 | I23: 1554.72 | J23: 1589.43 | K23: 1520 | L23: 1442.6 | M23: 1.67515
A24: 15 | B24: ALKEM | C24: 2663.55 | D24: 2622.18 | E24: 2521.37 | F24: 2379.18 | G24: 2278.37 | H24: 2764.37 | I24: 2865.18 | J24: 3007.37 | K24: 2723 | L24: 2480 | M24: 2.5989
A25: 16 | B25: AMARAJABAT | C25: 550.85 | D25: 545.45 | E25: 532.40 | F25: 513.95 | G25: 500.90 | H25: 563.90 | I25: 576.95 | J25: 595.40 | K25: 558.5 | L25: 527 | M25: 12.30603
A26: 17 | B26: AMBUJACEM | C26: 162.35 | D26: 164.55 | E26: 159.30 | F26: 156.25 | G26: 151.00 | H26: 167.60 | I26: 172.85 | J26: 175.90 | K26: 169.8 | L26: 161.5 | M26: 49.49252
A27: 18 | B27: APOLLOHOSP | C27: 1371.75 | D27: 1384.80 | E27: 1342.45 | F27: 1313.15 | G27: 1270.80 | H27: 1414.10 | I27: 1456.45 | J27: 1485.75 | K27: 1427.15 | L27: 1355.5 | M27: 15.32116
A28: 19 | B28: APOLLOTYRE | C28: 88.75 | D28: 89.78 | E28: 86.07 | F28: 83.38 | G28: 79.67 | H28: 92.47 | I28: 96.18 | J28: 98.87 | K28: 93.5 | L28: 87.1 | M28: 69.08439
A29: 20 | B29: ASHOKLEY | C29: 49.3 | D29: 49.67 | E29: 47.88 | F29: 46.47 | G29: 44.68 | H29: 51.08 | I29: 52.87 | J29: 54.28 | K29: 51.45 | L29: 48.25 | M29: 328.87633
A30: 21 | B30: ASIANPAINT | C30: 1676.8 | D30: 1699.77 | E30: 1648.53 | F30: 1620.27 | G30: 1569.03 | H30: 1728.03 | I30: 1779.27 | J30: 1807.53 | K30: 1751 | L30: 1671.5 | M30: 29.42445
A31: 22 | B31: AUROPHARMA | C31: 653.3 | D31: 645.97 | E31: 610.33 | F31: 567.37 | G31: 531.73 | H31: 688.93 | I31: 724.57 | J31: 767.53 | K31: 681.6 | L31: 603 | M31: 169.04893
A32: 23 | B32: DMART | C32: 2281.3 | D32: 2298.75 | E32: 2252.50 | F32: 2223.70 | G32: 2177.45 | H32: 2327.55 | I32: 2373.80 | J32: 2402.60 | K32: 2345 | L32: 2269.95 | M32: 2.34634
A33: 24 | B33: AXISBANK | C33: 402.8 | D33: 408.83 | E33: 393.67 | F33: 384.53 | G33: 369.37 | H33: 417.97 | I33: 433.13 | J33: 442.27 | K33: 424 | L33: 399.7 | M33: 378.54079
A34: 25 | B34: BAJAJ-AUTO | C34: 2442.15 | D34: 2470.83 | E34: 2386.72 | F34: 2331.28 | G34: 2247.17 | H34: 2526.27 | I34: 2610.38 | J34: 2665.82 | K34: 2554.95 | L34: 2415.4 | M34: 5.74562
A35: 26 | B35: BAJFINANCE | C35: 2079.65 | D35: 2103.47 | E35: 2004.73 | F35: 1929.82 | G35: 1831.08 | H35: 2178.38 | I35: 2277.12 | J35: 2352.03 | K35: 2202.2 | L35: 2028.55 | M35: 73.12754
A36: 27 | B36: BAJAJFINSV | C36: 4762.35 | D36: 4807.42 | E36: 4674.93 | F36: 4587.52 | G36: 4455.03 | H36: 4894.83 | I36: 5027.32 | J36: 5114.73 | K36: 4939.9 | L36: 4720 | M36: 8.10709
A37: 28 | B37: BAJAJHLDNG | C37: 1892.6 | D37: 1923.92 | E37: 1847.83 | F37: 1803.07 | G37: 1726.98 | H37: 1968.68 | I37: 2044.77 | J37: 2089.53 | K37: 2000 | L37: 1879.15 | M37: 0.52291
A38: 29 | B38: BALKRISIND | C38: 880.3 | D38: 882.87 | E38: 865.73 | F38: 851.17 | G38: 834.03 | H38: 897.43 | I38: 914.57 | J38: 929.13 | K38: 900 | L38: 868.3 | M38: 5.8487
A39: 30 | B39: BANDHANBNK | C39: 240.95 | D39: 240.70 | E39: 236.40 | F39: 231.85 | G39: 227.55 | H39: 245.25 | I39: 249.55 | J39: 254.10 | K39: 245 | L39: 236.15 | M39: 150.31872
A40: 31 | B40: BANKBARODA | C40: 45.85 | D40: 46.45 | E40: 44.90 | F40: 43.95 | G40: 42.40 | H40: 47.40 | I40: 48.95 | J40: 49.90 | K40: 48 | L40: 45.5 | M40: 231.90611
A41: 32 | B41: BANKINDIA | C41: 33.7 | D41: 34.13 | E41: 33.07 | F41: 32.43 | G41: 31.37 | H41: 34.77 | I41: 35.83 | J41: 36.47 | K41: 35.2 | L41: 33.5 | M41: 36.22631
A42: 33 | B42: BATAINDIA | C42: 1313.3 | D42: 1321.85 | E42: 1297.45 | F42: 1281.60 | G42: 1257.20 | H42: 1337.70 | I42: 1362.10 | J42: 1377.95 | K42: 1346.25 | L42: 1306 | M42: 9.88502
A43: 34 | B43: BERGEPAINT | C43: 481.1 | D43: 487.28 | E43: 472.57 | F43: 464.03 | G43: 449.32 | H43: 495.82 | I43: 510.53 | J43: 519.07 | K43: 502 | L43: 478.75 | M43: 12.02869
A44: 35 | B44: BEL | C44: 67.45 | D44: 68.38 | E44: 66.07 | F44: 64.68 | G44: 62.37 | H44: 69.77 | I44: 72.08 | J44: 73.47 | K44: 70.7 | L44: 67 | M44: 120.20561
A45: 36 | B45: BHARATFORG | C45: 269.8 | D45: 278.80 | E45: 258.90 | F45: 248.00 | G45: 228.10 | H45: 289.70 | I45: 309.60 | J45: 320.50 | K45: 298.7 | L45: 267.9 | M45: 34.50715
A46: 37 | B46: BHEL | C46: 23.5 | D46: 23.08 | E46: 21.32 | F46: 19.13 | G46: 17.37 | H46: 25.27 | I46: 27.03 | J46: 29.22 | K46: 24.85 | L46: 20.9 | M46: 1455.51747
A47: 38 | B47: BPCL | C47: 347.9 | D47: 350.48 | E47: 338.97 | F47: 330.03 | G47: 318.52 | H47: 359.42 | I47: 370.93 | J47: 379.87 | K47: 362 | L47: 341.55 | M47: 72.55215
A48: 39 | B48: BHARTIARTL | C48: 532.5 | D48: 524.13 | E48: 508.27 | F48: 484.03 | G48: 468.17 | H48: 548.37 | I48: 564.23 | J48: 588.47 | K48: 540 | L48: 499.9 | M48: 340.19465
A49: 40 | B49: INFRATEL | C49: 168.5 | D49: 167.72 | E49: 163.68 | F49: 158.87 | G49: 154.83 | H49: 172.53 | I49: 176.57 | J49: 181.38 | K49: 171.75 | L49: 162.9 | M49: 35.35528
A50: 41 | B50: BIOCON | C50: 357.95 | D50: 357.70 | E50: 349.40 | F50: 340.85 | G50: 332.55 | H50: 366.25 | I50: 374.55 | J50: 383.10 | K50: 366 | L50: 349.15 | M50: 90.23425
A51: 42 | B51: BBTC | C51: 854.5 | D51: 863.83 | E51: 838.67 | F51: 822.83 | G51: 797.67 | H51: 879.67 | I51: 904.83 | J51: 920.67 | K51: 889 | L51: 848 | M51: 0.45554
A52: 43 | B52: BOSCHLTD | C52: 9925.6 | D52: 10036.95 | E52: 9773.65 | F52: 9621.70 | G52: 9358.40 | H52: 10188.90 | I52: 10452.20 | J52: 10604.15 | K52: 10300.25 | L52: 9885 | M52: 0.3761
A53: 44 | B53: BRITANNIA | C53: 3092.95 | D53: 3102.98 | E53: 3045.97 | F53: 2998.98 | G53: 2941.97 | H53: 3149.97 | I53: 3206.98 | J53: 3253.97 | K53: 3160 | L53: 3056 | M53: 5.91353
A54: 45 | B54: CESC | C54: 629.8 | D54: 622.40 | E54: 599.85 | F54: 569.90 | G54: 547.35 | H54: 652.35 | I54: 674.90 | J54: 704.85 | K54: 644.95 | L54: 592.45 | M54: 13.0086
A55: 46 | B55: CADILAHC | C55: 330.2 | D55: 329.22 | E55: 321.18 | F55: 312.17 | G55: 304.13 | H55: 338.23 | I55: 346.27 | J55: 355.28 | K55: 337.25 | L55: 320.2 | M55: 100.69776
A56: 47 | B56: CANBK | C56: 81.4 | D56: 82.38 | E56: 79.17 | F56: 76.93 | G56: 73.72 | H56: 84.62 | I56: 87.83 | J56: 90.07 | K56: 85.6 | L56: 80.15 | M56: 120.23059
A57: 48 | B57: CASTROLIND | C57: 124.95 | D57: 125.02 | E57: 122.23 | F57: 119.52 | G57: 116.73 | H57: 127.73 | I57: 130.52 | J57: 133.23 | K57: 127.8 | L57: 122.3 | M57: 10.52285
A58: 49 | B58: CHOLAFIN | C58: 141.7 | D58: 143.88 | E58: 136.87 | F58: 132.03 | G58: 125.02 | H58: 148.72 | I58: 155.73 | J58: 160.57 | K58: 150.9 | L58: 139.05 | M58: 118.59044
A59: 50 | B59: CIPLA | C59: 611.85 | D59: 603.13 | E59: 589.32 | F59: 566.78 | G59: 552.97 | H59: 625.67 | I59: 639.48 | J59: 662.02 | K59: 616.95 | L59: 580.6 | M59: 168.16196
A60: 51 | B60: CUB | C60: 135 | D60: 136.38 | E60: 132.77 | F60: 130.53 | G60: 126.92 | H60: 138.62 | I60: 142.23 | J60: 144.47 | K60: 140 | L60: 134.15 | M60: 29.85903
A61: 52 | B61: COALINDIA | C61: 142.3 | D61: 142.45 | E61: 140.20 | F61: 138.10 | G61: 135.85 | H61: 144.55 | I61: 146.80 | J61: 148.90 | K61: 144.7 | L61: 140.35 | M61: 83.56131
A62: 53 | B62: COLPAL | C62: 1382.65 | D62: 1397.77 | E62: 1350.53 | F62: 1318.42 | G62: 1271.18 | H62: 1429.88 | I62: 1477.12 | J62: 1509.23 | K62: 1445 | L62: 1365.65 | M62: 16.32663
A63: 54 | B63: CONCOR | C63: 348.35 | D63: 353.88 | E63: 336.77 | F63: 325.18 | G63: 308.07 | H63: 365.47 | I63: 382.58 | J63: 394.17 | K63: 371 | L63: 342.3 | M63: 9.89252
A64: 55 | B64: COROMANDEL | C64: 569.2 | D64: 571.35 | E64: 561.00 | F64: 552.80 | G64: 542.45 | H64: 579.55 | I64: 589.90 | J64: 598.10 | K64: 581.7 | L64: 563.15 | M64: 1.62118
A65: 56 | B65: CROMPTON | C65: 213.25 | D65: 217.30 | E65: 208.20 | F65: 203.15 | G65: 194.05 | H65: 222.35 | I65: 231.45 | J65: 236.50 | K65: 226.4 | L65: 212.25 | M65: 5.52983
A66: 57 | B66: CUMMINSIND | C66: 373 | D66: 369.67 | E66: 357.33 | F66: 341.67 | G66: 329.33 | H66: 385.33 | I66: 397.67 | J66: 413.33 | K66: 382 | L66: 354 | M66: 21.34801
A67: 58 | B67: DLF | C67: 133.05 | D67: 135.13 | E67: 129.02 | F67: 124.98 | G67: 118.87 | H67: 139.17 | I67: 145.28 | J67: 149.32 | K67: 141.25 | L67: 131.1 | M67: 77.68173
A68: 59 | B68: DABUR | C68: 468.75 | D68: 472.42 | E68: 462.03 | F68: 455.32 | G68: 444.93 | H68: 479.13 | I68: 489.52 | J68: 496.23 | K68: 482.8 | L68: 465.7 | M68: 32.67524
A69: 60 | B69: DALBHARAT | C69: 510.55 | D69: 516.07 | E69: 500.48 | F69: 490.42 | G69: 474.83 | H69: 526.13 | I69: 541.72 | J69: 551.78 | K69: 531.65 | L69: 506 | M69: 4.67343
A70: 61 | B70: DIVISLAB | C70: 2287.15 | D70: 2285.70 | E70: 2227.45 | F70: 2167.75 | G70: 2109.50 | H70: 2345.40 | I70: 2403.65 | J70: 2463.35 | K70: 2343.95 | L70: 2226 | M70: 9.36799
A71: 62 | B71: DRREDDY | C71: 3939 | D71: 3931.07 | E71: 3856.13 | F71: 3773.27 | G71: 3698.33 | H71: 4013.93 | I71: 4088.87 | J71: 4171.73 | K71: 4006 | L71: 3848.2 | M71: 14.15492
A72: 63 | B72: EDELWEISS | C72: 37.85 | D72: 38.03 | E72: 37.67 | F72: 37.48 | G72: 37.12 | H72: 38.22 | I72: 38.58 | J72: 38.77 | K72: 38.4 | L72: 37.85 | M72: 6.77044
A73: 64 | B73: EICHERMOT | C73: 13748.8 | D73: 13917.72 | E73: 13445.43 | F73: 13142.07 | G73: 12669.78 | H73: 14221.08 | I73: 14693.37 | J73: 14996.73 | K73: 14390 | L73: 13614.35 | M73: 1.92447
A74: 65 | B74: EMAMILTD | C74: 188.75 | D74: 189.80 | E74: 186.60 | F74: 184.45 | G74: 181.25 | H74: 191.95 | I74: 195.15 | J74: 197.30 | K74: 193 | L74: 187.65 | M74: 2.03038
A75: 66 | B75: ENDURANCE | C75: 617.15 | D75: 632.05 | E75: 596.10 | F75: 575.05 | G75: 539.10 | H75: 653.10 | I75: 689.05 | J75: 710.10 | K75: 668 | L75: 611 | M75: 1.89707
A76: 67 | B76: ENGINERSIN | C76: 66.55 | D76: 66.68 | E76: 64.87 | F76: 63.18 | G76: 61.37 | H76: 68.37 | I76: 70.18 | J76: 71.87 | K76: 68.5 | L76: 65 | M76: 12.10467
A77: 68 | B77: ESCORTS | C77: 682.85 | D77: 681.52 | E77: 668.63 | F77: 654.42 | G77: 641.53 | H77: 695.73 | I77: 708.62 | J77: 722.83 | K77: 694.4 | L77: 667.3 | M77: 18.79995
A78: 69 | B78: EXIDEIND | C78: 147.25 | D78: 148.88 | E78: 144.77 | F78: 142.28 | G78: 138.17 | H78: 151.37 | I78: 155.48 | J78: 157.97 | K78: 153 | L78: 146.4 | M78: 13.00324
A79: 70 | B79: FEDERALBNK | C79: 44.05 | D79: 44.70 | E79: 43.00 | F79: 41.95 | G79: 40.25 | H79: 45.75 | I79: 47.45 | J79: 48.50 | K79: 46.4 | L79: 43.65 | M79: 296.22171
A80: 71 | B80: FORTIS | C80: 125.25 | D80: 123.98 | E80: 121.17 | F80: 117.08 | G80: 114.27 | H80: 128.07 | I80: 130.88 | J80: 134.97 | K80: 126.8 | L80: 119.9 | M80: 14.32507
A81: 72 | B81: FCONSUMER | C81: 9.1 | D81: 9.12 | E81: 8.78 | F81: 8.47 | G81: 8.13 | H81: 9.43 | I81: 9.77 | J81: 10.08 | K81: 9.45 | L81: 8.8 | M81: 73.40618
A82: 73 | B82: FRETAIL | C82: 80.85 | D82: 81.57 | E82: 80.13 | F82: 79.42 | G82: 77.98 | H82: 82.28 | I82: 83.72 | J82: 84.43 | K82: 83 | L82: 80.85 | M82: 15.05612
A83: 74 | B83: GAIL | C83: 93.5 | D83: 92.78 | E83: 90.32 | F83: 87.13 | G83: 84.67 | H83: 95.97 | I83: 98.43 | J83: 101.62 | K83: 95.25 | L83: 89.6 | M83: 211.32743
A84: 75 | B84: GMRINFRA | C84: 16.6 | D84: 16.60 | E84: 16.30 | F84: 16.00 | G84: 15.70 | H84: 16.90 | I84: 17.20 | J84: 17.50 | K84: 16.9 | L84: 16.3 | M84: 74.21512
A85: 76 | B85: GICRE | C85: 133 | D85: 134.82 | E85: 131.18 | F85: 129.37 | G85: 125.73 | H85: 136.63 | I85: 140.27 | J85: 142.08 | K85: 138.45 | L85: 133 | M85: 0.99437
A86: 77 | B86: GLENMARK | C86: 337.35 | D86: 338.22 | E86: 329.13 | F86: 320.92 | G86: 311.83 | H86: 346.43 | I86: 355.52 | J86: 363.73 | K86: 347.3 | L86: 330 | M86: 85.34892
A87: 78 | B87: GODREJAGRO | C87: 393.1 | D87: 395.70 | E87: 387.40 | F87: 381.70 | G87: 373.40 | H87: 401.40 | I87: 409.70 | J87: 415.40 | K87: 404 | L87: 390 | M87: 0.9045
A88: 79 | B88: GODREJCP | C88: 526.3 | D88: 528.68 | E88: 519.92 | F88: 513.53 | G88: 504.77 | H88: 535.07 | I88: 543.83 | J88: 550.22 | K88: 537.45 | L88: 522.3 | M88: 29.4024
A89: 80 | B89: GODREJIND | C89: 252.15 | D89: 255.73 | E89: 247.47 | F89: 242.78 | G89: 234.52 | H89: 260.42 | I89: 268.68 | J89: 273.37 | K89: 264 | L89: 251.05 | M89: 5.1519
A90: 81 | B90: GODREJPROP | C90: 618.15 | D90: 631.38 | E90: 602.77 | F90: 587.38 | G90: 558.77 | H90: 646.77 | I90: 675.38 | J90: 690.77 | K90: 660 | L90: 616 | M90: 6.83268
A91: 82 | B91: GRAPHITE | C91: 201.9 | D91: 203.60 | E91: 196.20 | F91: 190.50 | G91: 183.10 | H91: 209.30 | I91: 216.70 | J91: 222.40 | K91: 211 | L91: 197.9 | M91: 12.46827
A92: 83 | B92: GRASIM | C92: 479.05 | D92: 483.45 | E92: 471.95 | F92: 464.85 | G92: 453.35 | H92: 490.55 | I92: 502.05 | J92: 509.15 | K92: 494.95 | L92: 476.35 | M92: 33.07728
A93: 84 | B93: GSPL | C93: 199.2 | D93: 200.92 | E93: 196.33 | F93: 193.47 | G93: 188.88 | H93: 203.78 | I93: 208.37 | J93: 211.23 | K93: 205.5 | L93: 198.05 | M93: 2.18682
A94: 85 | B94: HEG | C94: 790.3 | D94: 791.97 | E94: 759.93 | F94: 729.57 | G94: 697.53 | H94: 822.33 | I94: 854.37 | J94: 884.73 | K94: 824 | L94: 761.6 | M94: 3.0272
A95: 86 | B95: HCLTECH | C95: 514.25 | D95: 516.65 | E95: 505.80 | F95: 497.35 | G95: 486.50 | H95: 525.10 | I95: 535.95 | J95: 544.40 | K95: 527.5 | L95: 508.2 | M95: 70.32553
A96: 87 | B96: HDFCAMC | C96: 2554.8 | D96: 2512.95 | E96: 2451.90 | F96: 2349.00 | G96: 2287.95 | H96: 2615.85 | I96: 2676.90 | J96: 2779.80 | K96: 2574 | L96: 2410.05 | M96: 6.48606
A97: 88 | B97: HDFCBANK | C97: 923 | D97: 933.50 | E97: 907.00 | F97: 891.00 | G97: 864.50 | H97: 949.50 | I97: 976.00 | J97: 992.00 | K97: 960 | L97: 917.5 | M97: 133.61177
A98: 89 | B98: HDFCLIFE | C98: 478.95 | D98: 480.02 | E98: 471.03 | F98: 463.12 | G98: 454.13 | H98: 487.93 | I98: 496.92 | J98: 504.83 | K98: 489 | L98: 472.1 | M98: 24.76319
A99: 90 | B99: HAVELLS | C99: 524.85 | D99: 531.88 | E99: 511.02 | F99: 497.18 | G99: 476.32 | H99: 545.72 | I99: 566.58 | J99: 580.42 | K99: 552.75 | L99: 518.05 | M99: 18.35906
A100: 91 | B100: HEROMOTOCO | C100: 2000.7 | D100: 2020.22 | E100: 1965.48 | F100: 1930.27 | G100: 1875.53 | H100: 2055.43 | I100: 2110.17 | J100: 2145.38 | K100: 2074.95 | L100: 1985 | M100: 13.28872
A101: 92 | B101: HEXAWARE | C101: 266.45 | D101: 268.98 | E101: 262.97 | F101: 259.48 | G101: 253.47 | H101: 272.47 | I101: 278.48 | J101: 281.97 | K101: 275 | L101: 265.5 | M101: 4.33929
A102: 93 | B102: HINDALCO | C102: 115.9 | D102: 117.83 | E102: 112.67 | F102: 109.43 | G102: 104.27 | H102: 121.07 | I102: 126.23 | J102: 129.47 | K102: 123 | L102: 114.6 | M102: 224.96899
A103: 94 | B103: HINDPETRO | C103: 207.8 | D103: 209.27 | E103: 203.28 | F103: 198.77 | G103: 192.78 | H103: 213.78 | I103: 219.77 | J103: 224.28 | K103: 215.25 | L103: 204.75 | M103: 71.23341
A104: 95 | B104: HINDUNILVR | C104: 2082.65 | D104: 2102.88 | E104: 2045.77 | F104: 2008.88 | G104: 1951.77 | H104: 2139.77 | I104: 2196.88 | J104: 2233.77 | K104: 2160 | L104: 2066 | M104: 84.74699
A105: 96 | B105: HINDZINC | C105: 165.75 | D105: 166.72 | E105: 164.08 | F105: 162.42 | G105: 159.78 | H105: 168.38 | I105: 171.02 | J105: 172.68 | K105: 169.35 | L105: 165.05 | M105: 4.61891
A106: 97 | B106: HUDCO | C106: 23.55 | D106: 23.82 | E106: 23.13 | F106: 22.72 | G106: 22.03 | H106: 24.23 | I106: 24.92 | J106: 25.33 | K106: 24.5 | L106: 23.4 | M106: 15.83461
A107: 98 | B107: HDFC | C107: 1724.35 | D107: 1762.88 | E107: 1669.77 | F107: 1615.18 | G107: 1522.07 | H107: 1817.47 | I107: 1910.58 | J107: 1965.17 | K107: 1856 | L107: 1708.3 | M107: 60.40202
A108: 99 | B108: ICICIBANK | C108: 338.05 | D108: 344.35 | E108: 329.70 | F108: 321.35 | G108: 306.70 | H108: 352.70 | I108: 367.35 | J108: 375.70 | K108: 359 | L108: 336 | M108: 388.37866
A109: 100 | B109: ICICIGI | C109: 1208.85 | D109: 1220.95 | E109: 1176.90 | F109: 1144.95 | G109: 1100.90 | H109: 1252.90 | I109: 1296.95 | J109: 1328.90 | K109: 1265 | L109: 1189 | M109: 7.02118
A110: 101 | B110: ICICIPRULI | C110: 391.4 | D110: 392.78 | E110: 385.97 | F110: 380.53 | G110: 373.72 | H110: 398.22 | I110: 405.03 | J110: 410.47 | K110: 399.6 | L110: 387.35 | M110: 30.32638
A111: 102 | B111: IDBI | C111: 20.75 | D111: 20.82 | E111: 20.23 | F111: 19.72 | G111: 19.13 | H111: 21.33 | I111: 21.92 | J111: 22.43 | K111: 21.4 | L111: 20.3 | M111: 28.92007
A112: 103 | B112: IDFCFIRSTB | C112: 20.6 | D112: 20.75 | E112: 20.05 | F112: 19.50 | G112: 18.80 | H112: 21.30 | I112: 22.00 | J112: 22.55 | K112: 21.45 | L112: 20.2 | M112: 436.80075
A113: 104 | B113: ITC | C113: 174.05 | D113: 175.48 | E113: 169.22 | F113: 164.38 | G113: 158.12 | H113: 180.32 | I113: 186.58 | J113: 191.42 | K113: 181.75 | L113: 170.65 | M113: 302.98058
A114: 105 | B114: IBULHSGFIN | C114: 121.4 | D114: 122.45 | E114: 118.50 | F114: 115.60 | G114: 111.65 | H114: 125.35 | I114: 129.30 | J114: 132.20 | K114: 126.4 | L114: 119.55 | M114: 136.81171
A115: 106 | B115: IBVENTURES | C115: 105.3 | D115: 104.83 | E115: 102.17 | F115: 99.03 | G115: 96.37 | H115: 107.97 | I115: 110.63 | J115: 113.77 | K115: 107.5 | L115: 101.7 | M115: 6.80433
A116: 107 | B116: INDIANB | C116: 47.05 | D116: 48.27 | E116: 45.63 | F116: 44.22 | G116: 41.58 | H116: 49.68 | I116: 52.32 | J116: 53.73 | K116: 50.9 | L116: 46.85 | M116: 33.97429
A117: 108 | B117: INDHOTEL | C117: 72.65 | D117: 74.03 | E117: 71.07 | F117: 69.48 | G117: 66.52 | H117: 75.62 | I117: 78.58 | J117: 80.17 | K117: 77 | L117: 72.45 | M117: 20.44536
A118: 109 | B118: IOC | C118: 79.75 | D118: 80.65 | E118: 78.60 | F118: 77.45 | G118: 75.40 | H118: 81.80 | I118: 83.85 | J118: 85.00 | K118: 82.7 | L118: 79.5 | M118: 122.77492
A119: 110 | B119: IGL | C119: 469.7 | D119: 469.07 | E119: 459.33 | F119: 448.97 | G119: 439.23 | H119: 479.43 | I119: 489.17 | J119: 499.53 | K119: 478.8 | L119: 458.7 | M119: 35.18111
A120: 111 | B120: INDUSINDBK | C120: 423.05 | D120: 427.70 | E120: 411.35 | F120: 399.65 | G120: 383.30 | H120: 439.40 | I120: 455.75 | J120: 467.45 | K120: 444.05 | L120: 416 | M120: 175.67536
A121: 112 | B121: NAUKRI | C121: 2500.75 | D121: 2503.15 | E121: 2458.75 | F121: 2416.75 | G121: 2372.35 | H121: 2545.15 | I121: 2589.55 | J121: 2631.55 | K121: 2547.55 | L121: 2461.15 | M121: 2.80623
A122: 113 | B122: INFY | C122: 673.7 | D122: 681.75 | E122: 662.30 | F122: 650.90 | G122: 631.45 | H122: 693.15 | I122: 712.60 | J122: 724.00 | K122: 701.2 | L122: 670.35 | M122: 91.22803
A123: 114 | B123: INDIGO | C123: 928 | D123: 932.58 | E123: 910.42 | F123: 892.83 | G123: 870.67 | H123: 950.17 | I123: 972.33 | J123: 989.92 | K123: 954.75 | L123: 915 | M123: 18.78521
A124: 115 | B124: IPCALAB | C124: 1614.55 | D124: 1606.28 | E124: 1572.72 | F124: 1530.88 | G124: 1497.32 | H124: 1648.12 | I124: 1681.68 | J124: 1723.52 | K124: 1639.85 | L124: 1564.45 | M124: 6.8229
A125: 116 | B125: JSWENERGY | C125: 41.4 | D125: 41.80 | E125: 40.70 | F125: 40.00 | G125: 38.90 | H125: 42.50 | I125: 43.60 | J125: 44.30 | K125: 42.9 | L125: 41.1 | M125: 10.78974
A126: 117 | B126: JSWSTEEL | C126: 163.55 | D126: 165.62 | E126: 160.28 | F126: 157.02 | G126: 151.68 | H126: 168.88 | I126: 174.22 | J126: 177.48 | K126: 170.95 | L126: 162.35 | M126: 106.46028
A127: 118 | B127: JINDALSTEL | C127: 85.4 | D127: 85.88 | E127: 82.87 | F127: 80.33 | G127: 77.32 | H127: 88.42 | I127: 91.43 | J127: 93.97 | K127: 88.9 | L127: 83.35 | M127: 201.69754
A128: 119 | B128: JUBLFOOD | C128: 1547.9 | D128: 1547.75 | E128: 1520.25 | F128: 1492.60 | G128: 1465.10 | H128: 1575.40 | I128: 1602.90 | J128: 1630.55 | K128: 1575.25 | L128: 1520.1 | M128: 7.97158
A129: 120 | B129: JUBILANT | C129: 380.25 | D129: 384.17 | E129: 376.33 | F129: 372.42 | G129: 364.58 | H129: 388.08 | I129: 395.92 | J129: 399.83 | K129: 392 | L129: 380.25 | M129: 2.52015
A130: 121 | B130: KOTAKBANK | C130: 1277.8 | D130: 1282.47 | E130: 1259.03 | F130: 1240.27 | G130: 1216.83 | H130: 1301.23 | I130: 1324.67 | J130: 1343.43 | K130: 1305.9 | L130: 1263.7 | M130: 50.9646
A131: 122 | B131: L&TFH | C131: 58 | D131: 58.77 | E131: 55.03 | F131: 52.07 | G131: 48.33 | H131: 61.73 | I131: 65.47 | J131: 68.43 | K131: 62.5 | L131: 55.8 | M131: 191.85642
A132: 123 | B132: LTTS | C132: 1185.75 | D132: 1187.93 | E132: 1165.87 | F132: 1145.98 | G132: 1123.92 | H132: 1207.82 | I132: 1229.88 | J132: 1249.77 | K132: 1210 | L132: 1168.05 | M132: 0.67529
A133: 124 | B133: LICHSGFIN | C133: 259 | D133: 261.90 | E133: 252.10 | F133: 245.20 | G133: 235.40 | H133: 268.80 | I133: 278.60 | J133: 285.50 | K133: 271.7 | L133: 255 | M133: 65.98767
A134: 125 | B134: LTI | C134: 1545.35 | D134: 1539.53 | E134: 1509.07 | F134: 1472.78 | G134: 1442.32 | H134: 1575.82 | I134: 1606.28 | J134: 1642.57 | K134: 1570 | L134: 1503.25 | M134: 0.78506
A135: 126 | B135: LT | C135: 850.65 | D135: 858.55 | E135: 837.10 | F135: 823.55 | G135: 802.10 | H135: 872.10 | I135: 893.55 | J135: 907.10 | K135: 880 | L135: 845 | M135: 46.78679
A136: 127 | B136: LUPIN | C136: 841.65 | D136: 840.82 | E136: 815.83 | F136: 790.02 | G136: 765.03 | H136: 866.63 | I136: 891.62 | J136: 917.43 | K136: 865.8 | L136: 815 | M136: 54.82347
A137: 128 | B137: MRF | C137: 57987.3 | D137: 58395.75 | E137: 57291.55 | F137: 56595.80 | G137: 55491.60 | H137: 59091.50 | I137: 60195.70 | J137: 60891.45 | K137: 59499.95 | L137: 57700 | M137: 0.09677
A138: 129 | B138: MGL | C138: 941.65 | D138: 949.83 | E138: 923.92 | F138: 906.18 | G138: 880.27 | H138: 967.57 | I138: 993.48 | J138: 1011.22 | K138: 975.75 | L138: 932.1 | M138: 6.07293
A139: 130 | B139: M&MFIN | C139: 160.25 | D139: 158.42 | E139: 152.03 | F139: 143.82 | G139: 137.43 | H139: 166.63 | I139: 173.02 | J139: 181.23 | K139: 164.8 | L139: 150.2 | M139: 128.30579
A140: 131 | B140: M&M | C140: 357.05 | D140: 353.52 | E140: 344.63 | F140: 332.22 | G140: 323.33 | H140: 365.93 | I140: 374.82 | J140: 387.23 | K140: 362.4 | L140: 341.1 | M140: 71.25034
A141: 132 | B141: MANAPPURAM | C141: 120.8 | D141: 122.70 | E141: 116.20 | F141: 111.60 | G141: 105.10 | H141: 127.30 | I141: 133.80 | J141: 138.40 | K141: 129.2 | L141: 118.1 | M141: 104.90009
A142: 133 | B142: MRPL | C142: 31.25 | D142: 31.80 | E142: 30.45 | F142: 29.65 | G142: 28.30 | H142: 32.60 | I142: 33.95 | J142: 34.75 | K142: 33.15 | L142: 31 | M142: 2.72353
A143: 134 | B143: MARICO | C143: 284.35 | D143: 285.33 | E143: 276.12 | F143: 267.88 | G143: 258.67 | H143: 293.57 | I143: 302.78 | J143: 311.02 | K143: 294.55 | L143: 277.1 | M143: 71.71676
A144: 135 | B144: MARUTI | C144: 4886.3 | D144: 4952.18 | E144: 4774.12 | F144: 4661.93 | G144: 4483.87 | H144: 5064.37 | I144: 5242.43 | J144: 5354.62 | K144: 5130.25 | L144: 4840 | M144: 17.42871
A145: 136 | B145: MFSL | C145: 462.7 | D145: 457.68 | E145: 449.02 | F145: 435.33 | G145: 426.67 | H145: 471.37 | I145: 480.03 | J145: 493.72 | K145: 466.35 | L145: 444 | M145: 20.91702
A146: 137 | B146: MINDTREE | C146: 903.4 | D146: 896.32 | E146: 882.98 | F146: 862.57 | G146: 849.23 | H146: 916.73 | I146: 930.07 | J146: 950.48 | K146: 909.65 | L146: 875.9 | M146: 7.41561
A147: 138 | B147: MOTHERSUMI | C147: 76.6 | D147: 78.60 | E147: 74.30 | F147: 72.00 | G147: 67.70 | H147: 80.90 | I147: 85.20 | J147: 87.50 | K147: 82.9 | L147: 76.3 | M147: 265.07174
A148: 139 | B148: MPHASIS | C148: 700.8 | D148: 705.62 | E148: 687.73 | F148: 674.67 | G148: 656.78 | H148: 718.68 | I148: 736.57 | J148: 749.63 | K148: 723.5 | L148: 692.55 | M148: 7.43496
A149: 140 | B149: MUTHOOTFIN | C149: 783.8 | D149: 798.60 | E149: 757.20 | F149: 730.60 | G149: 689.20 | H149: 825.20 | I149: 866.60 | J149: 893.20 | K149: 840 | L149: 772 | M149: 23.62297
A150: 141 | B150: NATCOPHARM | C150: 612.3 | D150: 615.05 | E150: 600.30 | F150: 588.30 | G150: 573.55 | H150: 627.05 | I150: 641.80 | J150: 653.80 | K150: 629.8 | L150: 603.05 | M150: 3.31007
A151: 142 | B151: NBCC | C151: 19.2 | D151: 19.25 | E151: 18.80 | F151: 18.40 | G151: 17.95 | H151: 19.65 | I151: 20.10 | J151: 20.50 | K151: 19.7 | L151: 18.85 | M151: 42.88059
A152: 143 | B152: NHPC | C152: 20.25 | D152: 20.37 | E152: 20.03 | F152: 19.82 | G152: 19.48 | H152: 20.58 | I152: 20.92 | J152: 21.13 | K152: 20.7 | L152: 20.15 | M152: 37.83036
A153: 144 | B153: NMDC | C153: 74.7 | D153: 75.45 | E153: 73.05 | F153: 71.40 | G153: 69.00 | H153: 77.10 | I153: 79.50 | J153: 81.15 | K153: 77.85 | L153: 73.8 | M153: 64.07414
A154: 145 | B154: NTPC | C154: 91.45 | D154: 91.87 | E154: 90.08 | F154: 88.72 | G154: 86.93 | H154: 93.23 | I154: 95.02 | J154: 96.38 | K154: 93.65 | L154: 90.5 | M154: 103.05675
A155: 146 | B155: NATIONALUM | C155: 30.2 | D155: 30.30 | E155: 29.80 | F155: 29.40 | G155: 28.90 | H155: 30.70 | I155: 31.20 | J155: 31.60 | K155: 30.8 | L155: 29.9 | M155: 86.4345
A156: 147 | B156: NESTLEIND | C156: 17456.45 | D156: 17514.88 | E156: 17301.62 | F156: 17146.78 | G156: 16933.52 | H156: 17669.72 | I156: 17882.98 | J156: 18037.82 | K156: 17728.15 | L156: 17360.05 | M156: 1.18975
A157: 148 | B157: NAM-INDIA | C157: 236.1 | D157: 236.35 | E157: 230.75 | F157: 225.40 | G157: 219.80 | H157: 241.70 | I157: 247.30 | J157: 252.65 | K157: 241.95 | L157: 231 | M157: 15.04375
A158: 149 | B158: OBEROIRLTY | C158: 318.1 | D158: 322.48 | E158: 311.07 | F158: 304.03 | G158: 292.62 | H158: 329.52 | I158: 340.93 | J158: 347.97 | K158: 333.9 | L158: 315.45 | M158: 3.21418
A159: 150 | B159: ONGC | C159: 76.55 | D159: 76.15 | E159: 74.45 | F159: 72.35 | G159: 70.65 | H159: 78.25 | I159: 79.95 | J159: 82.05 | K159: 77.85 | L159: 74.05 | M159: 286.42245
A160: 151 | B160: OIL | C160: 94 | D160: 94.10 | E160: 92.20 | F160: 90.40 | G160: 88.50 | H160: 95.90 | I160: 97.80 | J160: 99.60 | K160: 96 | L160: 92.3 | M160: 9.81849
A161: 152 | B161: OFSS | C161: 2311.1 | D161: 2303.57 | E161: 2222.13 | F161: 2133.17 | G161: 2051.73 | H161: 2392.53 | I161: 2473.97 | J161: 2562.93 | K161: 2385 | L161: 2214.6 | M161: 0.30123
A162: 153 | B162: PIIND | C162: 1514.6 | D162: 1524.08 | E162: 1481.72 | F162: 1448.83 | G162: 1406.47 | H162: 1556.97 | I162: 1599.33 | J162: 1632.22 | K162: 1566.45 | L162: 1491.2 | M162: 1.36664
A163: 154 | B163: PNBHOUSING | C163: 188 | D163: 188.72 | E163: 187.28 | F163: 186.57 | G163: 185.13 | H163: 189.43 | I163: 190.87 | J163: 191.58 | K163: 190.15 | L163: 188 | M163: 9.55814
A164: 155 | B164: PAGEIND | C164: 17359.5 | D164: 17541.40 | E164: 17082.80 | F164: 16806.10 | G164: 16347.50 | H164: 17818.10 | I164: 18276.70 | J164: 18553.40 | K164: 18000 | L164: 17264.7 | M164: 0.24748
A165: 156 | B165: PETRONET | C165: 231.2 | D165: 231.60 | E165: 224.25 | F165: 217.30 | G165: 209.95 | H165: 238.55 | I165: 245.90 | J165: 252.85 | K165: 238.95 | L165: 224.65 | M165: 37.64359
A166: 157 | B166: PFIZER | C166: 5001.3 | D166: 4970.80 | E166: 4901.50 | F166: 4801.70 | G166: 4732.40 | H166: 5070.60 | I166: 5139.90 | J166: 5239.70 | K166: 5040.1 | L166: 4871 | M166: 1.34758
A167: 158 | B167: PIDILITIND | C167: 1424.65 | D167: 1455.45 | E167: 1389.40 | F167: 1354.15 | G167: 1288.10 | H167: 1490.70 | I167: 1556.75 | J167: 1592.00 | K167: 1521.5 | L167: 1420.2 | M167: 8.1761
A168: 159 | B168: PEL | C168: 904.65 | D168: 915.55 | E168: 886.10 | F168: 867.55 | G168: 838.10 | H168: 934.10 | I168: 963.55 | J168: 982.10 | K168: 945 | L168: 897 | M168: 18.26563
A169: 160 | B169: PFC | C169: 91.3 | D169: 91.53 | E169: 89.87 | F169: 88.43 | G169: 86.77 | H169: 92.97 | I169: 94.63 | J169: 96.07 | K169: 93.2 | L169: 90.1 | M169: 36.25888
A170: 161 | B170: POWERGRID | C170: 159.05 | D170: 159.38 | E170: 157.27 | F170: 155.48 | G170: 153.37 | H170: 161.17 | I170: 163.28 | J170: 165.07 | K170: 161.5 | L170: 157.6 | M170: 70.86594
A171: 162 | B171: PRESTIGE | C171: 163.55 | D171: 164.90 | E171: 160.75 | F171: 157.95 | G171: 153.80 | H171: 167.70 | I171: 171.85 | J171: 174.65 | K171: 169.05 | L171: 162.1 | M171: 2.95692
A172: 163 | B172: PGHH | C172: 10321.05 | D172: 10384.82 | E172: 10119.63 | F172: 9918.22 | G172: 9653.03 | H172: 10586.23 | I172: 10851.42 | J172: 11052.83 | K172: 10650 | L172: 10183.4 | M172: 0.0499
A173: 164 | B173: PNB | C173: 30.15 | D173: 30.38 | E173: 29.67 | F173: 29.18 | G173: 28.47 | H173: 30.87 | I173: 31.58 | J173: 32.07 | K173: 31.1 | L173: 29.9 | M173: 218.41848
A174: 165 | B174: QUESS | C174: 203.7 | D174: 206.13 | E174: 200.57 | F174: 197.43 | G174: 191.87 | H174: 209.27 | I174: 214.83 | J174: 217.97 | K174: 211.7 | L174: 203 | M174: 4.44775
A175: 166 | B175: RBLBANK | C175: 121.05 | D175: 121.50 | E175: 116.70 | F175: 112.35 | G175: 107.55 | H175: 125.85 | I175: 130.65 | J175: 135.00 | K175: 126.3 | L175: 117.15 | M175: 245.98203
A176: 167 | B176: RECLTD | C176: 90.05 | D176: 90.67 | E176: 88.38 | F176: 86.72 | G176: 84.43 | H176: 92.33 | I176: 94.62 | J176: 96.28 | K176: 92.95 | L176: 89 | M176: 125.01967
A177: 168 | B177: RAJESHEXPO | C177: 552.85 | D177: 569.53 | E177: 526.12 | F177: 499.38 | G177: 455.97 | H177: 596.27 | I177: 639.68 | J177: 666.42 | K177: 612.95 | L177: 542.8 | M177: 1.74182
A178: 169 | B178: RELIANCE | C178: 1435.2 | D178: 1439.22 | E178: 1413.43 | F178: 1391.67 | G178: 1365.88 | H178: 1460.98 | I178: 1486.77 | J178: 1508.53 | K178: 1465 | L178: 1417.45 | M178: 244.3924
A179: 170 | B179: SBILIFE | C179: 687.65 | D179: 696.38 | E179: 666.77 | F179: 645.88 | G179: 616.27 | H179: 717.27 | I179: 746.88 | J179: 767.77 | K179: 726 | L179: 675.5 | M179: 14.18027
A180: 171 | B180: SRF | C180: 3640.55 | D180: 3637.68 | E180: 3583.67 | F180: 3526.78 | G180: 3472.77 | H180: 3694.57 | I180: 3748.58 | J180: 3805.47 | K180: 3691.7 | L180: 3580.8 | M180: 2.29759
A181: 172 | B181: SHREECEM | C181: 18625 | D181: 18823.22 | E181: 18341.78 | F181: 18058.57 | G181: 17577.13 | H181: 19106.43 | I181: 19587.87 | J181: 19871.08 | K181: 19304.65 | L181: 18540 | M181: 0.35572
A182: 173 | B182: SRTRANSFIN | C182: 747.4 | D182: 733.83 | E182: 703.77 | F182: 660.13 | G182: 630.07 | H182: 777.47 | I182: 807.53 | J182: 851.17 | K182: 763.9 | L182: 690.2 | M182: 58.37828
A183: 174 | B183: SIEMENS | C183: 1095.45 | D183: 1091.15 | E183: 1072.30 | F183: 1049.15 | G183: 1030.30 | H183: 1114.30 | I183: 1133.15 | J183: 1156.30 | K183: 1110 | L183: 1068 | M183: 5.85366
A184: 175 | B184: SBIN | C184: 178.85 | D184: 180.12 | E184: 176.73 | F184: 174.62 | G184: 171.23 | H184: 182.23 | I184: 185.62 | J184: 187.73 | K184: 183.5 | L184: 178 | M184: 581.22608
A185: 176 | B185: SAIL | C185: 28.85 | D185: 28.98 | E185: 28.27 | F185: 27.68 | G185: 26.97 | H185: 29.57 | I185: 30.28 | J185: 30.87 | K185: 29.7 | L185: 28.4 | M185: 194.96308
A186: 177 | B186: STRTECH | C186: 87.45 | D186: 87.87 | E186: 86.43 | F186: 85.42 | G186: 83.98 | H186: 88.88 | I186: 90.32 | J186: 91.33 | K186: 89.3 | L186: 86.85 | M186: 12.45922
A187: 178 | B187: SUNPHARMA | C187: 465.45 | D187: 465.98 | E187: 457.47 | F187: 449.48 | G187: 440.97 | H187: 473.97 | I187: 482.48 | J187: 490.47 | K187: 474.5 | L187: 458 | M187: 160.97081
A188: 179 | B188: SUNTV | C188: 381.25 | D188: 380.62 | E188: 373.23 | F188: 365.22 | G188: 357.83 | H188: 388.63 | I188: 396.02 | J188: 404.03 | K188: 388 | L188: 372.6 | M188: 22.95036
A189: 180 | B189: SYNGENE | C189: 319.85 | D189: 319.60 | E189: 309.20 | F189: 298.55 | G189: 288.15 | H189: 330.25 | I189: 340.65 | J189: 351.30 | K189: 330 | L189: 308.95 | M189: 5.68621
A190: 181 | B190: TVSMOTOR | C190: 310.45 | D190: 309.12 | E190: 305.43 | F190: 300.42 | G190: 296.73 | H190: 314.13 | I190: 317.82 | J190: 322.83 | K190: 312.8 | L190: 304.1 | M190: 26.0863
A191: 182 | B191: TCS | C191: 1930.45 | D191: 1936.70 | E191: 1907.40 | F191: 1884.35 | G191: 1855.05 | H191: 1959.75 | I191: 1989.05 | J191: 2012.10 | K191: 1966 | L191: 1913.65 | M191: 37.29409
A192: 183 | B192: TATACONSUM | C192: 334.95 | D192: 338.38 | E192: 329.57 | F192: 324.18 | G192: 315.37 | H192: 343.77 | I192: 352.58 | J192: 357.97 | K192: 347.2 | L192: 333 | M192: 33.85502
A193: 184 | B193: TATAMTRDVR | C193: 36 | D193: 36.35 | E193: 35.20 | F193: 34.40 | G193: 33.25 | H193: 37.15 | I193: 38.30 | J193: 39.10 | K193: 37.5 | L193: 35.55 | M193: 39.59691
A194: 185 | B194: TATAMOTORS | C194: 83.9 | D194: 84.20 | E194: 81.20 | F194: 78.50 | G194: 75.50 | H194: 86.90 | I194: 89.90 | J194: 92.60 | K194: 87.2 | L194: 81.5 | M194: 911.67307
A195: 186 | B195: TATAPOWER | C195: 30.1 | D195: 30.53 | E195: 29.57 | F195: 29.03 | G195: 28.07 | H195: 31.07 | I195: 32.03 | J195: 32.57 | K195: 31.5 | L195: 30 | M195: 158.45975
A196: 187 | B196: TATASTEEL | C196: 273.6 | D196: 276.62 | E196: 267.08 | F196: 260.57 | G196: 251.03 | H196: 283.13 | I196: 292.67 | J196: 299.18 | K196: 286.15 | L196: 270.1 | M196: 128.92158
A197: 188 | B197: TECHM | C197: 502.45 | D197: 506.73 | E197: 493.72 | F197: 484.98 | G197: 471.97 | H197: 515.47 | I197: 528.48 | J197: 537.22 | K197: 519.75 | L197: 498 | M197: 148.14583
A198: 189 | B198: NIACL | C198: 113.65 | D198: 113.88 | E198: 111.77 | F198: 109.88 | G198: 107.77 | H198: 115.77 | I198: 117.88 | J198: 119.77 | K198: 116 | L198: 112 | M198: 1.88023
A199: 190 | B199: RAMCOCEM | C199: 514.05 | D199: 522.73 | E199: 495.77 | F199: 477.48 | G199: 450.52 | H199: 541.02 | I199: 567.98 | J199: 586.27 | K199: 549.7 | L199: 504.45 | M199: 10.13997
A200: 191 | B200: TITAN | C200: 891.85 | D200: 902.28 | E200: 875.57 | F200: 859.28 | G200: 832.57 | H200: 918.57 | I200: 945.28 | J200: 961.57 | K200: 929 | L200: 886 | M200: 42.01102
A201: 192 | B201: TORNTPHARM | C201: 2375.85 | D201: 2374.28 | E201: 2323.57 | F201: 2271.28 | G201: 2220.57 | H201: 2426.57 | I201: 2477.28 | J201: 2529.57 | K201: 2425 | L201: 2322 | M201: 10.05595
A202: 193 | B202: TORNTPOWER | C202: 330.75 | D202: 329.67 | E202: 321.43 | F202: 312.12 | G202: 303.88 | H202: 338.98 | I202: 347.22 | J202: 356.53 | K202: 337.9 | L202: 320.35 | M202: 15.2997
A203: 194 | B203: UPL | C203: 385.4 | D203: 395.42 | E203: 371.33 | F203: 357.27 | G203: 333.18 | H203: 409.48 | I203: 433.57 | J203: 447.63 | K203: 419.5 | L203: 381.35 | M203: 103.95308
A204: 195 | B204: ULTRACEMCO | C204: 3347.6 | D204: 3378.45 | E204: 3295.20 | F204: 3242.80 | G204: 3159.55 | H204: 3430.85 | I204: 3514.10 | J204: 3566.50 | K204: 3461.7 | L204: 3326.05 | M204: 5.19186
A205: 196 | B205: UNIONBANK | C205: 26.1 | D205: 26.28 | E205: 25.82 | F205: 25.53 | G205: 25.07 | H205: 26.57 | I205: 27.03 | J205: 27.32 | K205: 26.75 | L205: 26 | M205: 33.34752
... 30 more rows

Sheet MidCap Intra
L5: Back To Main Page
A6: FOR INTRA DAY TRADING | K6: =Main!B10 -> 2020-05-05
A9: Sr.no | B9: Scrip | C9: CLOSE RATE | D9: Pivot Point | E9: Supports | H9: Resistances
C10: Point | E10: S1 | F10: S2 | G10: S3 | H10: R1 | I10: R2 | J10: R3 | K10: HIGH | L10: LOW | M10: Total Trade Quanity in Lakhs
A11: 1 | B11: 3MINDIA | C11: 18828.5 | D11: 18935.37 | E11: 18630.73 | F11: 18432.97 | G11: 18128.33 | H11: 19133.13 | I11: 19437.77 | J11: 19635.53 | K11: 19240 | L11: 18737.6 | M11: 0.02584
A12: 2 | B12: AARTIIND | C12: 1095.35 | D12: 1088.50 | E12: 1052.00 | F12: 1008.65 | G12: 972.15 | H12: 1131.85 | I12: 1168.35 | J12: 1211.70 | K12: 1125 | L12: 1045.15 | M12: 4.62257
A13: 3 | B13: AAVAS | C13: 1130.6 | D13: 1145.10 | E13: 1114.10 | F13: 1097.60 | G13: 1066.60 | H13: 1161.60 | I13: 1192.60 | J13: 1209.10 | K13: 1176.1 | L13: 1128.6 | M13: 0.21872
A14: 4 | B14: ABBOTINDIA | C14: 18195.35 | D14: 18002.57 | E14: 17405.13 | F14: 16614.92 | G14: 16017.48 | H14: 18792.78 | I14: 19390.22 | J14: 20180.43 | K14: 18600 | L14: 17212.35 | M14: 0.40295
A15: 5 | B15: ABCAPITAL | C15: 45.8 | D15: 46.42 | E15: 44.68 | F15: 43.57 | G15: 41.83 | H15: 47.53 | I15: 49.27 | J15: 50.38 | K15: 48.15 | L15: 45.3 | M15: 21.71864
A16: 6 | B16: ABFRL | C16: 109.1 | D16: 110.63 | E16: 106.27 | F16: 103.43 | G16: 99.07 | H16: 113.47 | I16: 117.83 | J16: 120.67 | K16: 115 | L16: 107.8 | M16: 19.79857
A17: 7 | B17: ACC | C17: 1126.8 | D17: 1131.13 | E17: 1112.87 | F17: 1098.93 | G17: 1080.67 | H17: 1145.07 | I17: 1163.33 | J17: 1177.27 | K17: 1149.4 | L17: 1117.2 | M17: 9.60797
A18: 8 | B18: ADANIGAS | C18: 99.8 | D18: 100.25 | E18: 98.60 | F18: 97.40 | G18: 95.75 | H18: 101.45 | I18: 103.10 | J18: 104.30 | K18: 101.9 | L18: 99.05 | M18: 35.822
A19: 9 | B19: ADANIGREEN | C19: 209.55 | D19: 209.17 | E19: 200.33 | F19: 191.12 | G19: 182.28 | H19: 218.38 | I19: 227.22 | J19: 236.43 | K19: 218 | L19: 199.95 | M19: 16.98451
A20: 10 | B20: ADANIPORTS | C20: 266.35 | D20: 269.45 | E20: 258.90 | F20: 251.45 | G20: 240.90 | H20: 276.90 | I20: 287.45 | J20: 294.90 | K20: 280 | L20: 262 | M20: 63.59013
A21: 11 | B21: ADANIPOWER | C21: 29.85 | D21: 30.15 | E21: 29.30 | F21: 28.75 | G21: 27.90 | H21: 30.70 | I21: 31.55 | J21: 32.10 | K21: 31 | L21: 29.6 | M21: 76.1221
A22: 12 | B22: ADANITRANS | C22: 198.85 | D22: 199.28 | E22: 196.57 | F22: 194.28 | G22: 191.57 | H22: 201.57 | I22: 204.28 | J22: 206.57 | K22: 202 | L22: 197 | M22: 1.14121
A23: 13 | B23: ADVENZYMES | C23: 142.15 | D23: 142.22 | E23: 138.93 | F23: 135.72 | G23: 132.43 | H23: 145.43 | I23: 148.72 | J23: 151.93 | K23: 145.5 | L23: 139 | M23: 0.55682
A24: 14 | B24: AEGISCHEM | C24: 163.6 | D24: 164.17 | E24: 161.43 | F24: 159.27 | G24: 156.53 | H24: 166.33 | I24: 169.07 | J24: 171.23 | K24: 166.9 | L24: 162 | M24: 1.45999
A25: 15 | B25: AFFLE | C25: 1384.25 | D25: 1381.45 | E25: 1362.90 | F25: 1341.55 | G25: 1323.00 | H25: 1402.80 | I25: 1421.35 | J25: 1442.70 | K25: 1400 | L25: 1360.1 | M25: 0.23166
A26: 16 | B26: AIAENG | C26: 1560 | D26: 1560.78 | E26: 1540.27 | F26: 1520.53 | G26: 1500.02 | H26: 1580.52 | I26: 1601.03 | J26: 1620.77 | K26: 1581.3 | L26: 1541.05 | M26: 0.18932
A27: 17 | B27: AJANTPHARM | C27: 1469.35 | D27: 1477.32 | E27: 1434.63 | F27: 1399.92 | G27: 1357.23 | H27: 1512.03 | I27: 1554.72 | J27: 1589.43 | K27: 1520 | L27: 1442.6 | M27: 1.67515
A28: 18 | B28: AKZOINDIA | C28: 1990.1 | D28: 2008.20 | E28: 1966.45 | F28: 1942.80 | G28: 1901.05 | H28: 2031.85 | I28: 2073.60 | J28: 2097.25 | K28: 2049.95 | L28: 1984.55 | M28: 0.08312
A29: 19 | B29: ALKEM | C29: 2663.55 | D29: 2622.18 | E29: 2521.37 | F29: 2379.18 | G29: 2278.37 | H29: 2764.37 | I29: 2865.18 | J29: 3007.37 | K29: 2723 | L29: 2480 | M29: 2.5989
A30: 20 | B30: ALLCARGO | C30: 71.75 | D30: 72.40 | E30: 70.80 | F30: 69.85 | G30: 68.25 | H30: 73.35 | I30: 74.95 | J30: 75.90 | K30: 74 | L30: 71.45 | M30: 0.84171
A31: 21 | B31: AMARAJABAT | C31: 550.85 | D31: 545.45 | E31: 532.40 | F31: 513.95 | G31: 500.90 | H31: 563.90 | I31: 576.95 | J31: 595.40 | K31: 558.5 | L31: 527 | M31: 12.30603
A32: 22 | B32: AMBER | C32: 1080.1 | D32: 1062.68 | E32: 1027.42 | F32: 974.73 | G32: 939.47 | H32: 1115.37 | I32: 1150.63 | J32: 1203.32 | K32: 1097.95 | L32: 1010 | M32: 0.94569
A33: 23 | B33: AMBUJACEM | C33: 162.35 | D33: 164.55 | E33: 159.30 | F33: 156.25 | G33: 151.00 | H33: 167.60 | I33: 172.85 | J33: 175.90 | K33: 169.8 | L33: 161.5 | M33: 49.49252
A34: 24 | B34: APLAPOLLO | C34: 1302.25 | D34: 1323.08 | E34: 1259.17 | F34: 1216.08 | G34: 1152.17 | H34: 1366.17 | I34: 1430.08 | J34: 1473.17 | K34: 1387 | L34: 1280 | M34: 0.45099
A35: 25 | B35: APLLTD | C35: 752.85 | D35: 752.75 | E35: 731.10 | F35: 709.35 | G35: 687.70 | H35: 774.50 | I35: 796.15 | J35: 817.90 | K35: 774.4 | L35: 731 | M35: 9.15896
A36: 26 | B36: APOLLOHOSP | C36: 1371.75 | D36: 1384.80 | E36: 1342.45 | F36: 1313.15 | G36: 1270.80 | H36: 1414.10 | I36: 1456.45 | J36: 1485.75 | K36: 1427.15 | L36: 1355.5 | M36: 15.32116
A37: 27 | B37: APOLLOTYRE | C37: 88.75 | D37: 89.78 | E37: 86.07 | F37: 83.38 | G37: 79.67 | H37: 92.47 | I37: 96.18 | J37: 98.87 | K37: 93.5 | L37: 87.1 | M37: 69.08439
A38: 28 | B38: ARVINDFASN | C38: 134.6 | D38: 134.87 | E38: 131.83 | F38: 129.07 | G38: 126.03 | H38: 137.63 | I38: 140.67 | J38: 143.43 | K38: 137.9 | L38: 132.1 | M38: 0.31143
A39: 29 | B39: ASAHIINDIA | C39: 159 | D39: 160.52 | E39: 155.13 | F39: 151.27 | G39: 145.88 | H39: 164.38 | I39: 169.77 | J39: 173.63 | K39: 165.9 | L39: 156.65 | M39: 0.21805
A40: 30 | B40: ASHOKA | C40: 59.3 | D40: 60.37 | E40: 57.73 | F40: 56.17 | G40: 53.53 | H40: 61.93 | I40: 64.57 | J40: 66.13 | K40: 63 | L40: 58.8 | M40: 3.58545
A41: 31 | B41: ASHOKLEY | C41: 49.3 | D41: 49.67 | E41: 47.88 | F41: 46.47 | G41: 44.68 | H41: 51.08 | I41: 52.87 | J41: 54.28 | K41: 51.45 | L41: 48.25 | M41: 328.87633
A42: 32 | B42: ASIANPAINT | C42: 1676.8 | D42: 1699.77 | E42: 1648.53 | F42: 1620.27 | G42: 1569.03 | H42: 1728.03 | I42: 1779.27 | J42: 1807.53 | K42: 1751 | L42: 1671.5 | M42: 29.42445
A43: 33 | B43: ASTERDM | C43: 98.1 | D43: 99.00 | E43: 97.00 | F43: 95.90 | G43: 93.90 | H43: 100.10 | I43: 102.10 | J43: 103.20 | K43: 101 | L43: 97.9 | M43: 0.98364
A44: 34 | B44: ASTRAL | C44: 930.15 | D44: 934.75 | E44: 907.50 | F44: 884.85 | G44: 857.60 | H44: 957.40 | I44: 984.65 | J44: 1007.30 | K44: 962 | L44: 912.1 | M44: 1.15381
A45: 35 | B45: ASTRAZEN | C45: 3242.55 | D45: 3166.53 | E45: 3036.07 | F45: 2829.58 | G45: 2699.12 | H45: 3373.02 | I45: 3503.48 | J45: 3709.97 | K45: 3297 | L45: 2960.05 | M45: 1.33103
A46: 36 | B46: ATUL | C46: 4631.55 | D46: 4676.52 | E46: 4505.03 | F46: 4378.52 | G46: 4207.03 | H46: 4803.03 | I46: 4974.52 | J46: 5101.03 | K46: 4848 | L46: 4550 | M46: 0.35312
A47: 37 | B47: AUBANK | C47: 517.05 | D47: 517.05 | E47: 517.05 | F47: 517.05 | G47: 517.05 | H47: 517.05 | I47: 517.05 | J47: 517.05 | K47: 517.05 | L47: 517.05 | M47: 1.09074
A48: 38 | B48: AUROPHARMA | C48: 653.3 | D48: 645.97 | E48: 610.33 | F48: 567.37 | G48: 531.73 | H48: 688.93 | I48: 724.57 | J48: 767.53 | K48: 681.6 | L48: 603 | M48: 169.04893
A49: 39 | B49: AVANTIFEED | C49: 401.45 | D49: 404.47 | E49: 394.98 | F49: 388.52 | G49: 379.03 | H49: 410.93 | I49: 420.42 | J49: 426.88 | K49: 413.95 | L49: 398 | M49: 4.37562
A50: 40 | B50: AXISBANK | C50: 402.8 | D50: 408.83 | E50: 393.67 | F50: 384.53 | G50: 369.37 | H50: 417.97 | I50: 433.13 | J50: 442.27 | K50: 424 | L50: 399.7 | M50: 378.54079
A51: 41 | B51: BAJAJ-AUTO | C51: 2442.15 | D51: 2470.83 | E51: 2386.72 | F51: 2331.28 | G51: 2247.17 | H51: 2526.27 | I51: 2610.38 | J51: 2665.82 | K51: 2554.95 | L51: 2415.4 | M51: 5.74562
A52: 42 | B52: BAJAJCON | C52: 137.95 | D52: 139.75 | E52: 135.55 | F52: 133.15 | G52: 128.95 | H52: 142.15 | I52: 146.35 | J52: 148.75 | K52: 143.95 | L52: 137.35 | M52: 2.47412
A53: 43 | B53: BAJAJELEC | C53: 335.8 | D53: 335.93 | E53: 331.87 | F53: 327.93 | G53: 323.87 | H53: 339.87 | I53: 343.93 | J53: 347.87 | K53: 340 | L53: 332 | M53: 0.74179
A54: 44 | B54: BAJAJFINSV | C54: 4762.35 | D54: 4807.42 | E54: 4674.93 | F54: 4587.52 | G54: 4455.03 | H54: 4894.83 | I54: 5027.32 | J54: 5114.73 | K54: 4939.9 | L54: 4720 | M54: 8.10709
A55: 45 | B55: BAJAJHLDNG | C55: 1892.6 | D55: 1923.92 | E55: 1847.83 | F55: 1803.07 | G55: 1726.98 | H55: 1968.68 | I55: 2044.77 | J55: 2089.53 | K55: 2000 | L55: 1879.15 | M55: 0.52291
A56: 46 | B56: BAJFINANCE | C56: 2079.65 | D56: 2103.47 | E56: 2004.73 | F56: 1929.82 | G56: 1831.08 | H56: 2178.38 | I56: 2277.12 | J56: 2352.03 | K56: 2202.2 | L56: 2028.55 | M56: 73.12754
A57: 47 | B57: BALKRISIND | C57: 880.3 | D57: 882.87 | E57: 865.73 | F57: 851.17 | G57: 834.03 | H57: 897.43 | I57: 914.57 | J57: 929.13 | K57: 900 | L57: 868.3 | M57: 5.8487
A58: 48 | B58: BALMLAWRIE | C58: 98.3 | D58: 98.67 | E58: 97.43 | F58: 96.57 | G58: 95.33 | H58: 99.53 | I58: 100.77 | J58: 101.63 | K58: 99.9 | L58: 97.8 | M58: 1.3454
A59: 49 | B59: BALRAMCHIN | C59: 94.75 | D59: 95.92 | E59: 93.03 | F59: 91.32 | G59: 88.43 | H59: 97.63 | I59: 100.52 | J59: 102.23 | K59: 98.8 | L59: 94.2 | M59: 4.35009
A60: 50 | B60: BANDHANBNK | C60: 240.95 | D60: 240.70 | E60: 236.40 | F60: 231.85 | G60: 227.55 | H60: 245.25 | I60: 249.55 | J60: 254.10 | K60: 245 | L60: 236.15 | M60: 150.31872
A61: 51 | B61: BANKBARODA | C61: 45.85 | D61: 46.45 | E61: 44.90 | F61: 43.95 | G61: 42.40 | H61: 47.40 | I61: 48.95 | J61: 49.90 | K61: 48 | L61: 45.5 | M61: 231.90611
A62: 52 | B62: BANKINDIA | C62: 33.7 | D62: 34.13 | E62: 33.07 | F62: 32.43 | G62: 31.37 | H62: 34.77 | I62: 35.83 | J62: 36.47 | K62: 35.2 | L62: 33.5 | M62: 36.22631
A63: 53 | B63: BASF | C63: 1009.4 | D63: 1017.78 | E63: 996.62 | F63: 983.83 | G63: 962.67 | H63: 1030.57 | I63: 1051.73 | J63: 1064.52 | K63: 1038.95 | L63: 1005 | M63: 0.1441
A64: 54 | B64: BATAINDIA | C64: 1313.3 | D64: 1321.85 | E64: 1297.45 | F64: 1281.60 | G64: 1257.20 | H64: 1337.70 | I64: 1362.10 | J64: 1377.95 | K64: 1346.25 | L64: 1306 | M64: 9.88502
A65: 55 | B65: BAYERCROP | C65: 4410.8 | D65: 4355.87 | E65: 4267.03 | F65: 4123.27 | G65: 4034.43 | H65: 4499.63 | I65: 4588.47 | J65: 4732.23 | K65: 4444.7 | L65: 4212.1 | M65: 0.19612
A66: 56 | B66: BBTC | C66: 854.5 | D66: 863.83 | E66: 838.67 | F66: 822.83 | G66: 797.67 | H66: 879.67 | I66: 904.83 | J66: 920.67 | K66: 889 | L66: 848 | M66: 0.45554
A67: 57 | B67: BDL | C67: 209.65 | D67: 210.70 | E67: 206.05 | F67: 202.45 | G67: 197.80 | H67: 214.30 | I67: 218.95 | J67: 222.55 | K67: 215.35 | L67: 207.1 | M67: 0.40692
A68: 58 | B68: BEL | C68: 67.45 | D68: 68.38 | E68: 66.07 | F68: 64.68 | G68: 62.37 | H68: 69.77 | I68: 72.08 | J68: 73.47 | K68: 70.7 | L68: 67 | M68: 120.20561
A69: 59 | B69: BEML | C69: 561.1 | D69: 564.12 | E69: 552.98 | F69: 544.87 | G69: 533.73 | H69: 572.23 | I69: 583.37 | J69: 591.48 | K69: 575.25 | L69: 556 | M69: 3.42838
A70: 60 | B70: BERGEPAINT | C70: 481.1 | D70: 487.28 | E70: 472.57 | F70: 464.03 | G70: 449.32 | H70: 495.82 | I70: 510.53 | J70: 519.07 | K70: 502 | L70: 478.75 | M70: 12.02869
A71: 61 | B71: BHARATFORG | C71: 269.8 | D71: 278.80 | E71: 258.90 | F71: 248.00 | G71: 228.10 | H71: 289.70 | I71: 309.60 | J71: 320.50 | K71: 298.7 | L71: 267.9 | M71: 34.50715
A72: 62 | B72: BHARTIARTL | C72: 532.5 | D72: 524.13 | E72: 508.27 | F72: 484.03 | G72: 468.17 | H72: 548.37 | I72: 564.23 | J72: 588.47 | K72: 540 | L72: 499.9 | M72: 340.19465
A73: 63 | B73: BHEL | C73: 23.5 | D73: 23.08 | E73: 21.32 | F73: 19.13 | G73: 17.37 | H73: 25.27 | I73: 27.03 | J73: 29.22 | K73: 24.85 | L73: 20.9 | M73: 1455.51747
A74: 64 | B74: BIOCON | C74: 357.95 | D74: 357.70 | E74: 349.40 | F74: 340.85 | G74: 332.55 | H74: 366.25 | I74: 374.55 | J74: 383.10 | K74: 366 | L74: 349.15 | M74: 90.23425
A75: 65 | B75: BIRLACORPN | C75: 403.4 | D75: 402.10 | E75: 395.30 | F75: 387.20 | G75: 380.40 | H75: 410.20 | I75: 417.00 | J75: 425.10 | K75: 408.9 | L75: 394 | M75: 1.39964
A76: 66 | B76: BLISSGVS | C76: 97.1 | D76: 97.30 | E76: 96.15 | F76: 95.20 | G76: 94.05 | H76: 98.25 | I76: 99.40 | J76: 100.35 | K76: 98.45 | L76: 96.35 | M76: 0.68034
A77: 67 | B77: BLUEDART | C77: 2248.3 | D77: 2235.78 | E77: 2149.57 | F77: 2050.83 | G77: 1964.62 | H77: 2334.52 | I77: 2420.73 | J77: 2519.47 | K77: 2322 | L77: 2137.05 | M77: 0.13366
A78: 68 | B78: BLUESTARCO | C78: 508.1 | D78: 511.70 | E78: 491.85 | F78: 475.60 | G78: 455.75 | H78: 527.95 | I78: 547.80 | J78: 564.05 | K78: 531.55 | L78: 495.45 | M78: 0.76681
A79: 69 | B79: BOMDYEING | C79: 49.35 | D79: 49.67 | E79: 48.83 | F79: 48.32 | G79: 47.48 | H79: 50.18 | I79: 51.02 | J79: 51.53 | K79: 50.5 | L79: 49.15 | M79: 5.51638
A80: 70 | B80: BOSCHLTD | C80: 9925.6 | D80: 10036.95 | E80: 9773.65 | F80: 9621.70 | G80: 9358.40 | H80: 10188.90 | I80: 10452.20 | J80: 10604.15 | K80: 10300.25 | L80: 9885 | M80: 0.3761
A81: 71 | B81: BPCL | C81: 347.9 | D81: 350.48 | E81: 338.97 | F81: 330.03 | G81: 318.52 | H81: 359.42 | I81: 370.93 | J81: 379.87 | K81: 362 | L81: 341.55 | M81: 72.55215
A82: 72 | B82: BRIGADE | C82: 113.95 | D82: 116.00 | E82: 111.40 | F82: 108.85 | G82: 104.25 | H82: 118.55 | I82: 123.15 | J82: 125.70 | K82: 120.6 | L82: 113.45 | M82: 2.04088
A83: 73 | B83: BRITANNIA | C83: 3092.95 | D83: 3102.98 | E83: 3045.97 | F83: 2998.98 | G83: 2941.97 | H83: 3149.97 | I83: 3206.98 | J83: 3253.97 | K83: 3160 | L83: 3056 | M83: 5.91353
A84: 74 | B84: BSE | C84: 378.6 | D84: 379.20 | E84: 372.40 | F84: 366.20 | G84: 359.40 | H84: 385.40 | I84: 392.20 | J84: 398.40 | K84: 386 | L84: 373 | M84: 1.53363
A85: 75 | B85: BSOFT | C85: 68.9 | D85: 68.92 | E85: 67.33 | F85: 65.77 | G85: 64.18 | H85: 70.48 | I85: 72.07 | J85: 73.63 | K85: 70.5 | L85: 67.35 | M85: 3.93262
A86: 76 | B86: CADILAHC | C86: 330.2 | D86: 329.22 | E86: 321.18 | F86: 312.17 | G86: 304.13 | H86: 338.23 | I86: 346.27 | J86: 355.28 | K86: 337.25 | L86: 320.2 | M86: 100.69776
A87: 77 | B87: CANBK | C87: 81.4 | D87: 82.38 | E87: 79.17 | F87: 76.93 | G87: 73.72 | H87: 84.62 | I87: 87.83 | J87: 90.07 | K87: 85.6 | L87: 80.15 | M87: 120.23059
A88: 78 | B88: CANFINHOME | C88: 300.2 | D88: 302.02 | E88: 294.03 | F88: 287.87 | G88: 279.88 | H88: 308.18 | I88: 316.17 | J88: 322.33 | K88: 310 | L88: 295.85 | M88: 2.90205
A89: 79 | B89: CAPLIPOINT | C89: 335.15 | D89: 337.45 | E89: 330.90 | F89: 326.65 | G89: 320.10 | H89: 341.70 | I89: 348.25 | J89: 352.50 | K89: 344 | L89: 333.2 | M89: 1.46327
A90: 80 | B90: CARBORUNIV | C90: 213.1 | D90: 212.22 | E90: 208.03 | F90: 202.97 | G90: 198.78 | H90: 217.28 | I90: 221.47 | J90: 226.53 | K90: 216.4 | L90: 207.15 | M90: 0.48866
A91: 81 | B91: CARERATING | C91: 372.35 | D91: 369.93 | E91: 361.97 | F91: 351.58 | G91: 343.62 | H91: 380.32 | I91: 388.28 | J91: 398.67 | K91: 377.9 | L91: 359.55 | M91: 0.79808
A92: 82 | B92: CASTROLIND | C92: 124.95 | D92: 125.02 | E92: 122.23 | F92: 119.52 | G92: 116.73 | H92: 127.73 | I92: 130.52 | J92: 133.23 | K92: 127.8 | L92: 122.3 | M92: 10.52285
A93: 83 | B93: CCL | C93: 188.4 | D93: 188.07 | E93: 185.23 | F93: 182.07 | G93: 179.23 | H93: 191.23 | I93: 194.07 | J93: 197.23 | K93: 190.9 | L93: 184.9 | M93: 0.54761
A94: 84 | B94: CDSL | C94: 216.45 | D94: 217.78 | E94: 214.47 | F94: 212.48 | G94: 209.17 | H94: 219.77 | I94: 223.08 | J94: 225.07 | K94: 221.1 | L94: 215.8 | M94: 3.43784
A95: 85 | B95: CEATLTD | C95: 772.15 | D95: 777.05 | E95: 764.10 | F95: 756.05 | G95: 743.10 | H95: 785.10 | I95: 798.05 | J95: 806.10 | K95: 790 | L95: 769 | M95: 1.40173
A96: 86 | B96: CENTRALBK | C96: 15.05 | D96: 15.13 | E96: 14.92 | F96: 14.78 | G96: 14.57 | H96: 15.27 | I96: 15.48 | J96: 15.62 | K96: 15.35 | L96: 15 | M96: 4.4174
A97: 87 | B97: CENTURYPLY | C97: 116.2 | D97: 116.52 | E97: 114.78 | F97: 113.37 | G97: 111.63 | H97: 117.93 | I97: 119.67 | J97: 121.08 | K97: 118.25 | L97: 115.1 | M97: 1.06309
A98: 88 | B98: CERA | C98: 2100.8 | D98: 2117.85 | E98: 2074.95 | F98: 2049.10 | G98: 2006.20 | H98: 2143.70 | I98: 2186.60 | J98: 2212.45 | K98: 2160.75 | L98: 2092 | M98: 0.04209
A99: 89 | B99: CESC | C99: 629.8 | D99: 622.40 | E99: 599.85 | F99: 569.90 | G99: 547.35 | H99: 652.35 | I99: 674.90 | J99: 704.85 | K99: 644.95 | L99: 592.45 | M99: 13.0086
A100: 90 | B100: CGCL | C100: 135.65 | D100: 138.80 | E100: 127.80 | F100: 119.95 | G100: 108.95 | H100: 146.65 | I100: 157.65 | J100: 165.50 | K100: 149.8 | L100: 130.95 | M100: 4.40753
A101: 91 | B101: CHALET | C101: 141.5 | D101: 142.85 | E101: 137.90 | F101: 134.30 | G101: 129.35 | H101: 146.45 | I101: 151.40 | J101: 155.00 | K101: 147.8 | L101: 139.25 | M101: 0.42321
A102: 92 | B102: CHAMBLFERT | C102: 127.4 | D102: 128.42 | E102: 125.08 | F102: 122.77 | G102: 119.43 | H102: 130.73 | I102: 134.07 | J102: 136.38 | K102: 131.75 | L102: 126.1 | M102: 7.81456
A103: 93 | B103: CHENNPETRO | C103: 60.4 | D103: 60.47 | E103: 59.53 | F103: 58.67 | G103: 57.73 | H103: 61.33 | I103: 62.27 | J103: 63.13 | K103: 61.4 | L103: 59.6 | M103: 3.70055
A104: 94 | B104: CHOLAFIN | C104: 141.7 | D104: 143.88 | E104: 136.87 | F104: 132.03 | G104: 125.02 | H104: 148.72 | I104: 155.73 | J104: 160.57 | K104: 150.9 | L104: 139.05 | M104: 118.59044
A105: 95 | B105: CHOLAHLDNG | C105: 277.15 | D105: 281.70 | E105: 271.40 | F105: 265.65 | G105: 255.35 | H105: 287.45 | I105: 297.75 | J105: 303.50 | K105: 292 | L105: 275.95 | M105: 0.34302
A106: 96 | B106: CIPLA | C106: 611.85 | D106: 603.13 | E106: 589.32 | F106: 566.78 | G106: 552.97 | H106: 625.67 | I106: 639.48 | J106: 662.02 | K106: 616.95 | L106: 580.6 | M106: 168.16196
A107: 97 | B107: COALINDIA | C107: 142.3 | D107: 142.45 | E107: 140.20 | F107: 138.10 | G107: 135.85 | H107: 144.55 | I107: 146.80 | J107: 148.90 | K107: 144.7 | L107: 140.35 | M107: 83.56131
A108: 98 | B108: COCHINSHIP | C108: 239.65 | D108: 241.13 | E108: 237.12 | F108: 234.58 | G108: 230.57 | H108: 243.67 | I108: 247.68 | J108: 250.22 | K108: 245.15 | L108: 238.6 | M108: 1.39224
A109: 99 | B109: COLPAL | C109: 1382.65 | D109: 1397.77 | E109: 1350.53 | F109: 1318.42 | G109: 1271.18 | H109: 1429.88 | I109: 1477.12 | J109: 1509.23 | K109: 1445 | L109: 1365.65 | M109: 16.32663
A110: 100 | B110: CONCOR | C110: 348.35 | D110: 353.88 | E110: 336.77 | F110: 325.18 | G110: 308.07 | H110: 365.47 | I110: 382.58 | J110: 394.17 | K110: 371 | L110: 342.3 | M110: 9.89252
A111: 101 | B111: COROMANDEL | C111: 569.2 | D111: 571.35 | E111: 561.00 | F111: 552.80 | G111: 542.45 | H111: 579.55 | I111: 589.90 | J111: 598.10 | K111: 581.7 | L111: 563.15 | M111: 1.62118
A112: 102 | B112: CREDITACC | C112: 467.4 | D112: 482.53 | E112: 452.27 | F112: 437.13 | G112: 406.87 | H112: 497.67 | I112: 527.93 | J112: 543.07 | K112: 512.8 | L112: 467.4 | M112: 1.85391
A113: 103 | B113: CRISIL | C113: 1434.2 | D113: 1444.07 | E113: 1404.18 | F113: 1374.17 | G113: 1334.28 | H113: 1474.08 | I113: 1513.97 | J113: 1543.98 | K113: 1483.95 | L113: 1414.05 | M113: 0.38996
A114: 104 | B114: CROMPTON | C114: 213.25 | D114: 217.30 | E114: 208.20 | F114: 203.15 | G114: 194.05 | H114: 222.35 | I114: 231.45 | J114: 236.50 | K114: 226.4 | L114: 212.25 | M114: 5.52983
A115: 105 | B115: CUB | C115: 135 | D115: 136.38 | E115: 132.77 | F115: 130.53 | G115: 126.92 | H115: 138.62 | I115: 142.23 | J115: 144.47 | K115: 140 | L115: 134.15 | M115: 29.85903
A116: 106 | B116: CUMMINSIND | C116: 373 | D116: 369.67 | E116: 357.33 | F116: 341.67 | G116: 329.33 | H116: 385.33 | I116: 397.67 | J116: 413.33 | K116: 382 | L116: 354 | M116: 21.34801
A117: 107 | B117: CYIENT | C117: 224.2 | D117: 226.00 | E117: 217.20 | F117: 210.20 | G117: 201.40 | H117: 233.00 | I117: 241.80 | J117: 248.80 | K117: 234.8 | L117: 219 | M117: 17.63167
A118: 108 | B118: DABUR | C118: 468.75 | D118: 472.42 | E118: 462.03 | F118: 455.32 | G118: 444.93 | H118: 479.13 | I118: 489.52 | J118: 496.23 | K118: 482.8 | L118: 465.7 | M118: 32.67524
A119: 109 | B119: DALBHARAT | C119: 510.55 | D119: 516.07 | E119: 500.48 | F119: 490.42 | G119: 474.83 | H119: 526.13 | I119: 541.72 | J119: 551.78 | K119: 531.65 | L119: 506 | M119: 4.67343
A120: 110 | B120: DBCORP | C120: 71.85 | D120: 72.70 | E120: 70.05 | F120: 68.25 | G120: 65.60 | H120: 74.50 | I120: 77.15 | J120: 78.95 | K120: 75.35 | L120: 70.9 | M120: 0.98269
A121: 111 | B121: DBL | C121: 246.85 | D121: 246.72 | E121: 239.73 | F121: 232.62 | G121: 225.63 | H121: 253.83 | I121: 260.82 | J121: 267.93 | K121: 253.7 | L121: 239.6 | M121: 2.5335
A122: 112 | B122: DCAL | C122: 83.3 | D122: 82.73 | E122: 80.77 | F122: 78.23 | G122: 76.27 | H122: 85.27 | I122: 87.23 | J122: 89.77 | K122: 84.7 | L122: 80.2 | M122: 1.33281
A123: 113 | B123: DCBBANK | C123: 72.75 | D123: 74.65 | E123: 70.30 | F123: 67.85 | G123: 63.50 | H123: 77.10 | I123: 81.45 | J123: 83.90 | K123: 79 | L123: 72.2 | M123: 36.62542
A124: 114 | B124: DCMSHRIRAM | C124: 265.7 | D124: 266.53 | E124: 261.67 | F124: 257.63 | G124: 252.77 | H124: 270.57 | I124: 275.43 | J124: 279.47 | K124: 271.4 | L124: 262.5 | M124: 0.62513
A125: 115 | B125: DEEPAKNTR | C125: 485.05 | D125: 481.72 | E125: 471.58 | F125: 458.12 | G125: 447.98 | H125: 495.18 | I125: 505.32 | J125: 518.78 | K125: 491.85 | L125: 468.25 | M125: 13.10368
A126: 116 | B126: DELTACORP | C126: 66.95 | D126: 66.92 | E126: 66.03 | F126: 65.12 | G126: 64.23 | H126: 67.83 | I126: 68.72 | J126: 69.63 | K126: 67.8 | L126: 66 | M126: 15.84323
A127: 117 | B127: DHFL | C127: 12.4 | D127: 12.67 | E127: 12.13 | F127: 11.87 | G127: 11.33 | H127: 12.93 | I127: 13.47 | J127: 13.73 | K127: 13.2 | L127: 12.4 | M127: 14.91003
A128: 118 | B128: DISHTV | C128: 4.75 | D128: 4.77 | E128: 4.68 | F128: 4.62 | G128: 4.53 | H128: 4.83 | I128: 4.92 | J128: 4.98 | K128: 4.85 | L128: 4.7 | M128: 27.70361
A129: 119 | B129: DIVISLAB | C129: 2287.15 | D129: 2285.70 | E129: 2227.45 | F129: 2167.75 | G129: 2109.50 | H129: 2345.40 | I129: 2403.65 | J129: 2463.35 | K129: 2343.95 | L129: 2226 | M129: 9.36799
A130: 120 | B130: DIXON | C130: 4586.75 | D130: 4593.85 | E130: 4397.90 | F130: 4209.05 | G130: 4013.10 | H130: 4782.70 | I130: 4978.65 | J130: 5167.50 | K130: 4789.8 | L130: 4405 | M130: 1.16542
A131: 121 | B131: DLF | C131: 133.05 | D131: 135.13 | E131: 129.02 | F131: 124.98 | G131: 118.87 | H131: 139.17 | I131: 145.28 | J131: 149.32 | K131: 141.25 | L131: 131.1 | M131: 77.68173
A132: 122 | B132: DMART | C132: 2281.3 | D132: 2298.75 | E132: 2252.50 | F132: 2223.70 | G132: 2177.45 | H132: 2327.55 | I132: 2373.80 | J132: 2402.60 | K132: 2345 | L132: 2269.95 | M132: 2.34634
A133: 123 | B133: DRREDDY | C133: 3939 | D133: 3931.07 | E133: 3856.13 | F133: 3773.27 | G133: 3698.33 | H133: 4013.93 | I133: 4088.87 | J133: 4171.73 | K133: 4006 | L133: 3848.2 | M133: 14.15492
A134: 124 | B134: ECLERX | C134: 446.65 | D134: 449.03 | E134: 440.07 | F134: 433.48 | G134: 424.52 | H134: 455.62 | I134: 464.58 | J134: 471.17 | K134: 458 | L134: 442.45 | M134: 0.12564
A135: 125 | B135: EDELWEISS | C135: 37.85 | D135: 38.03 | E135: 37.67 | F135: 37.48 | G135: 37.12 | H135: 38.22 | I135: 38.58 | J135: 38.77 | K135: 38.4 | L135: 37.85 | M135: 6.77044
A136: 126 | B136: EICHERMOT | C136: 13748.8 | D136: 13917.72 | E136: 13445.43 | F136: 13142.07 | G136: 12669.78 | H136: 14221.08 | I136: 14693.37 | J136: 14996.73 | K136: 14390 | L136: 13614.35 | M136: 1.92447
A137: 127 | B137: EIDPARRY | C137: 141.05 | D137: 141.33 | E137: 138.72 | F137: 136.38 | G137: 133.77 | H137: 143.67 | I137: 146.28 | J137: 148.62 | K137: 143.95 | L137: 139 | M137: 0.88632
A138: 128 | B138: EIHOTEL | C138: 72.2 | D138: 73.17 | E138: 70.33 | F138: 68.47 | G138: 65.63 | H138: 75.03 | I138: 77.87 | J138: 79.73 | K138: 76 | L138: 71.3 | M138: 0.79326
A139: 129 | B139: ELGIEQUIP | C139: 128.05 | D139: 128.23 | E139: 125.82 | F139: 123.58 | G139: 121.17 | H139: 130.47 | I139: 132.88 | J139: 135.12 | K139: 130.65 | L139: 126 | M139: 0.17887
A140: 130 | B140: EMAMILTD | C140: 188.75 | D140: 189.80 | E140: 186.60 | F140: 184.45 | G140: 181.25 | H140: 191.95 | I140: 195.15 | J140: 197.30 | K140: 193 | L140: 187.65 | M140: 2.03038
A141: 131 | B141: ENDURANCE | C141: 617.15 | D141: 632.05 | E141: 596.10 | F141: 575.05 | G141: 539.10 | H141: 653.10 | I141: 689.05 | J141: 710.10 | K141: 668 | L141: 611 | M141: 1.89707
A142: 132 | B142: ENGINERSIN | C142: 66.55 | D142: 66.68 | E142: 64.87 | F142: 63.18 | G142: 61.37 | H142: 68.37 | I142: 70.18 | J142: 71.87 | K142: 68.5 | L142: 65 | M142: 12.10467
A143: 133 | B143: EQUITAS | C143: 47.5 | D143: 47.83 | E143: 46.22 | F143: 44.93 | G143: 43.32 | H143: 49.12 | I143: 50.73 | J143: 52.02 | K143: 49.45 | L143: 46.55 | M143: 108.62444
A144: 134 | B144: ERIS | C144: 488.15 | D144: 491.78 | E144: 477.02 | F144: 465.88 | G144: 451.12 | H144: 502.92 | I144: 517.68 | J144: 528.82 | K144: 506.55 | L144: 480.65 | M144: 0.54023
A145: 135 | B145: ESCORTS | C145: 682.85 | D145: 681.52 | E145: 668.63 | F145: 654.42 | G145: 641.53 | H145: 695.73 | I145: 708.62 | J145: 722.83 | K145: 694.4 | L145: 667.3 | M145: 18.79995
A146: 136 | B146: ESSELPACK | C146: 176.5 | D146: 174.02 | E146: 168.03 | F146: 159.57 | G146: 153.58 | H146: 182.48 | I146: 188.47 | J146: 196.93 | K146: 180 | L146: 165.55 | M146: 1.2041
A147: 137 | B147: EXIDEIND | C147: 147.25 | D147: 148.88 | E147: 144.77 | F147: 142.28 | G147: 138.17 | H147: 151.37 | I147: 155.48 | J147: 157.97 | K147: 153 | L147: 146.4 | M147: 13.00324
A148: 138 | B148: FCONSUMER | C148: 9.1 | D148: 9.12 | E148: 8.78 | F148: 8.47 | G148: 8.13 | H148: 9.43 | I148: 9.77 | J148: 10.08 | K148: 9.45 | L148: 8.8 | M148: 73.40618
A149: 139 | B149: FDC | C149: 244.95 | D149: 245.10 | E149: 236.90 | F149: 228.85 | G149: 220.65 | H149: 253.15 | I149: 261.35 | J149: 269.40 | K149: 253.3 | L149: 237.05 | M149: 2.54484
A150: 140 | B150: FEDERALBNK | C150: 44.05 | D150: 44.70 | E150: 43.00 | F150: 41.95 | G150: 40.25 | H150: 45.75 | I150: 47.45 | J150: 48.50 | K150: 46.4 | L150: 43.65 | M150: 296.22171
A151: 141 | B151: FINCABLES | C151: 242.35 | D151: 244.80 | E151: 239.90 | F151: 237.45 | G151: 232.55 | H151: 247.25 | I151: 252.15 | J151: 254.60 | K151: 249.7 | L151: 242.35 | M151: 0.28723
A152: 142 | B152: FINEORG | C152: 1966.15 | D152: 1954.65 | E152: 1931.50 | F152: 1896.85 | G152: 1873.70 | H152: 1989.30 | I152: 2012.45 | J152: 2047.10 | K152: 1977.8 | L152: 1920 | M152: 0.0886
A153: 143 | B153: FINPIPE | C153: 382 | D153: 385.43 | E153: 371.67 | F153: 361.33 | G153: 347.57 | H153: 395.77 | I153: 409.53 | J153: 419.87 | K153: 399.2 | L153: 375.1 | M153: 0.51171
A154: 144 | B154: FLFL | C154: 148 | D154: 150.32 | E154: 145.63 | F154: 143.27 | G154: 138.58 | H154: 152.68 | I154: 157.37 | J154: 159.73 | K154: 155 | L154: 147.95 | M154: 0.62995
A155: 145 | B155: FMGOETZE | C155: 350.3 | D155: 357.03 | E155: 326.27 | F155: 302.23 | G155: 271.47 | H155: 381.07 | I155: 411.83 | J155: 435.87 | K155: 387.8 | L155: 333 | M155: 0.0101
A156: 146 | B156: FORTIS | C156: 125.25 | D156: 123.98 | E156: 121.17 | F156: 117.08 | G156: 114.27 | H156: 128.07 | I156: 130.88 | J156: 134.97 | K156: 126.8 | L156: 119.9 | M156: 14.32507
A157: 147 | B157: FRETAIL | C157: 80.85 | D157: 81.57 | E157: 80.13 | F157: 79.42 | G157: 77.98 | H157: 82.28 | I157: 83.72 | J157: 84.43 | K157: 83 | L157: 80.85 | M157: 15.05612
A158: 148 | B158: FSL | C158: 33.05 | D158: 33.48 | E158: 32.57 | F158: 32.08 | G158: 31.17 | H158: 33.97 | I158: 34.88 | J158: 35.37 | K158: 34.4 | L158: 33 | M158: 10.17156
A159: 149 | B159: GAIL | C159: 93.5 | D159: 92.78 | E159: 90.32 | F159: 87.13 | G159: 84.67 | H159: 95.97 | I159: 98.43 | J159: 101.62 | K159: 95.25 | L159: 89.6 | M159: 211.32743
A160: 150 | B160: GALAXYSURF | C160: 1348.45 | D160: 1360.88 | E160: 1321.77 | F160: 1295.08 | G160: 1255.97 | H160: 1387.57 | I160: 1426.68 | J160: 1453.37 | K160: 1400 | L160: 1334.2 | M160: 0.21668
A161: 151 | B161: GARFIBRES | C161: 1270.25 | D161: 1266.10 | E161: 1245.75 | F161: 1221.25 | G161: 1200.90 | H161: 1290.60 | I161: 1310.95 | J161: 1335.45 | K161: 1286.45 | L161: 1241.6 | M161: 0.10758
A162: 152 | B162: GAYAPROJ | C162: 14.8 | D162: 14.57 | E162: 14.33 | F162: 13.87 | G162: 13.63 | H162: 15.03 | I162: 15.27 | J162: 15.73 | K162: 14.8 | L162: 14.1 | M162: 14.07759
A163: 153 | B163: GEPIL | C163: 434.6 | D163: 441.25 | E163: 423.50 | F163: 412.40 | G163: 394.65 | H163: 452.35 | I163: 470.10 | J163: 481.20 | K163: 459 | L163: 430.15 | M163: 0.37181
A164: 154 | B164: GESHIP | C164: 228.2 | D164: 231.80 | E164: 222.60 | F164: 217.00 | G164: 207.80 | H164: 237.40 | I164: 246.60 | J164: 252.20 | K164: 241 | L164: 226.2 | M164: 0.87147
A165: 155 | B165: GET&D | C165: 81.1 | D165: 82.03 | E165: 80.12 | F165: 79.13 | G165: 77.22 | H165: 83.02 | I165: 84.93 | J165: 85.92 | K165: 83.95 | L165: 81.05 | M165: 0.22743
A166: 156 | B166: GHCL | C166: 101.2 | D166: 101.43 | E166: 99.87 | F166: 98.53 | G166: 96.97 | H166: 102.77 | I166: 104.33 | J166: 105.67 | K166: 103 | L166: 100.1 | M166: 0.8765
A167: 157 | B167: GICRE | C167: 133 | D167: 134.82 | E167: 131.18 | F167: 129.37 | G167: 125.73 | H167: 136.63 | I167: 140.27 | J167: 142.08 | K167: 138.45 | L167: 133 | M167: 0.99437
A168: 158 | B168: GILLETTE | C168: 5112.4 | D168: 5173.97 | E168: 5017.98 | F168: 4923.57 | G168: 4767.58 | H168: 5268.38 | I168: 5424.37 | J168: 5518.78 | K168: 5329.95 | L168: 5079.55 | M168: 0.09301
A169: 159 | B169: GLAXO | C169: 1480.45 | D169: 1461.50 | E169: 1438.00 | F169: 1395.55 | G169: 1372.05 | H169: 1503.95 | I169: 1527.45 | J169: 1569.90 | K169: 1485 | L169: 1419.05 | M169: 0.76569
A170: 160 | B170: GLENMARK | C170: 337.35 | D170: 338.22 | E170: 329.13 | F170: 320.92 | G170: 311.83 | H170: 346.43 | I170: 355.52 | J170: 363.73 | K170: 347.3 | L170: 330 | M170: 85.34892
A171: 161 | B171: GMDCLTD | C171: 38 | D171: 38.03 | E171: 37.57 | F171: 37.13 | G171: 36.67 | H171: 38.47 | I171: 38.93 | J171: 39.37 | K171: 38.5 | L171: 37.6 | M171: 3.77435
A172: 162 | B172: GMRINFRA | C172: 16.6 | D172: 16.60 | E172: 16.30 | F172: 16.00 | G172: 15.70 | H172: 16.90 | I172: 17.20 | J172: 17.50 | K172: 16.9 | L172: 16.3 | M172: 74.21512
A173: 163 | B173: GNFC | C173: 137.65 | D173: 138.13 | E173: 134.57 | F173: 131.48 | G173: 127.92 | H173: 141.22 | I173: 144.78 | J173: 147.87 | K173: 141.7 | L173: 135.05 | M173: 7.19138
A174: 164 | B174: GODFRYPHLP | C174: 1028.85 | D174: 1036.28 | E174: 1012.57 | F174: 996.28 | G174: 972.57 | H174: 1052.57 | I174: 1076.28 | J174: 1092.57 | K174: 1060 | L174: 1020 | M174: 1.38647
A175: 165 | B175: GODREJAGRO | C175: 393.1 | D175: 395.70 | E175: 387.40 | F175: 381.70 | G175: 373.40 | H175: 401.40 | I175: 409.70 | J175: 415.40 | K175: 404 | L175: 390 | M175: 0.9045
A176: 166 | B176: GODREJCP | C176: 526.3 | D176: 528.68 | E176: 519.92 | F176: 513.53 | G176: 504.77 | H176: 535.07 | I176: 543.83 | J176: 550.22 | K176: 537.45 | L176: 522.3 | M176: 29.4024
A177: 167 | B177: GODREJIND | C177: 252.15 | D177: 255.73 | E177: 247.47 | F177: 242.78 | G177: 234.52 | H177: 260.42 | I177: 268.68 | J177: 273.37 | K177: 264 | L177: 251.05 | M177: 5.1519
A178: 168 | B178: GODREJPROP | C178: 618.15 | D178: 631.38 | E178: 602.77 | F178: 587.38 | G178: 558.77 | H178: 646.77 | I178: 675.38 | J178: 690.77 | K178: 660 | L178: 616 | M178: 6.83268
A179: 169 | B179: GPPL | C179: 56.6 | D179: 56.57 | E179: 55.13 | F179: 53.67 | G179: 52.23 | H179: 58.03 | I179: 59.47 | J179: 60.93 | K179: 58 | L179: 55.1 | M179: 12.86473
A180: 170 | B180: GRANULES | C180: 161.9 | D180: 161.32 | E180: 156.63 | F180: 151.37 | G180: 146.68 | H180: 166.58 | I180: 171.27 | J180: 176.53 | K180: 166 | L180: 156.05 | M180: 16.508
A181: 171 | B181: GRAPHITE | C181: 201.9 | D181: 203.60 | E181: 196.20 | F181: 190.50 | G181: 183.10 | H181: 209.30 | I181: 216.70 | J181: 222.40 | K181: 211 | L181: 197.9 | M181: 12.46827
A182: 172 | B182: GRASIM | C182: 479.05 | D182: 483.45 | E182: 471.95 | F182: 464.85 | G182: 453.35 | H182: 490.55 | I182: 502.05 | J182: 509.15 | K182: 494.95 | L182: 476.35 | M182: 33.07728
A183: 173 | B183: GREAVESCOT | C183: 75.8 | D183: 76.63 | E183: 74.67 | F183: 73.53 | G183: 71.57 | H183: 77.77 | I183: 79.73 | J183: 80.87 | K183: 78.6 | L183: 75.5 | M183: 1.07846
A184: 174 | B184: GRINDWELL | C184: 504.8 | D184: 504.58 | E184: 495.22 | F184: 485.63 | G184: 476.27 | H184: 514.17 | I184: 523.53 | J184: 533.12 | K184: 513.95 | L184: 495 | M184: 0.07753
A185: 175 | B185: GSFC | C185: 42.8 | D185: 43.10 | E185: 41.70 | F185: 40.60 | G185: 39.20 | H185: 44.20 | I185: 45.60 | J185: 46.70 | K185: 44.5 | L185: 42 | M185: 4.63417
A186: 176 | B186: GSPL | C186: 199.2 | D186: 200.92 | E186: 196.33 | F186: 193.47 | G186: 188.88 | H186: 203.78 | I186: 208.37 | J186: 211.23 | K186: 205.5 | L186: 198.05 | M186: 2.18682
A187: 177 | B187: GUJALKALI | C187: 342.5 | D187: 347.78 | E187: 335.82 | F187: 329.13 | G187: 317.17 | H187: 354.47 | I187: 366.43 | J187: 373.12 | K187: 359.75 | L187: 341.1 | M187: 1.31168
A188: 178 | B188: GUJGASLTD | C188: 251.1 | D188: 253.02 | E188: 248.08 | F188: 245.07 | G188: 240.13 | H188: 256.03 | I188: 260.97 | J188: 263.98 | K188: 257.95 | L188: 250 | M188: 4.11652
A189: 179 | B189: GULFOILLUB | C189: 560 | D189: 568.35 | E189: 546.70 | F189: 533.40 | G189: 511.75 | H189: 581.65 | I189: 603.30 | J189: 616.60 | K189: 590 | L189: 555.05 | M189: 0.21579
A190: 180 | B190: HAL | C190: 509.8 | D190: 511.27 | E190: 502.53 | F190: 495.27 | G190: 486.53 | H190: 518.53 | I190: 527.27 | J190: 534.53 | K190: 520 | L190: 504 | M190: 0.37192
A191: 181 | B191: HATSUN | C191: 498.45 | D191: 498.57 | E191: 482.23 | F191: 466.02 | G191: 449.68 | H191: 514.78 | I191: 531.12 | J191: 547.33 | K191: 514.9 | L191: 482.35 | M191: 0.06553
A192: 182 | B192: HAVELLS | C192: 524.85 | D192: 531.88 | E192: 511.02 | F192: 497.18 | G192: 476.32 | H192: 545.72 | I192: 566.58 | J192: 580.42 | K192: 552.75 | L192: 518.05 | M192: 18.35906
A193: 183 | B193: HCLTECH | C193: 514.25 | D193: 516.65 | E193: 505.80 | F193: 497.35 | G193: 486.50 | H193: 525.10 | I193: 535.95 | J193: 544.40 | K193: 527.5 | L193: 508.2 | M193: 70.32553
A194: 184 | B194: HDFC | C194: 1724.35 | D194: 1762.88 | E194: 1669.77 | F194: 1615.18 | G194: 1522.07 | H194: 1817.47 | I194: 1910.58 | J194: 1965.17 | K194: 1856 | L194: 1708.3 | M194: 60.40202
A195: 185 | B195: HDFCAMC | C195: 2554.8 | D195: 2512.95 | E195: 2451.90 | F195: 2349.00 | G195: 2287.95 | H195: 2615.85 | I195: 2676.90 | J195: 2779.80 | K195: 2574 | L195: 2410.05 | M195: 6.48606
A196: 186 | B196: HDFCBANK | C196: 923 | D196: 933.50 | E196: 907.00 | F196: 891.00 | G196: 864.50 | H196: 949.50 | I196: 976.00 | J196: 992.00 | K196: 960 | L196: 917.5 | M196: 133.61177
A197: 187 | B197: HDFCLIFE | C197: 478.95 | D197: 480.02 | E197: 471.03 | F197: 463.12 | G197: 454.13 | H197: 487.93 | I197: 496.92 | J197: 504.83 | K197: 489 | L197: 472.1 | M197: 24.76319
A198: 188 | B198: HEG | C198: 790.3 | D198: 791.97 | E198: 759.93 | F198: 729.57 | G198: 697.53 | H198: 822.33 | I198: 854.37 | J198: 884.73 | K198: 824 | L198: 761.6 | M198: 3.0272
A199: 189 | B199: HEIDELBERG | C199: 149.15 | D199: 150.52 | E199: 146.03 | F199: 142.92 | G199: 138.43 | H199: 153.63 | I199: 158.12 | J199: 161.23 | K199: 155 | L199: 147.4 | M199: 2.40486
A200: 190 | B200: HERITGFOOD | C200: 259.45 | D200: 262.50 | E200: 255.00 | F200: 250.55 | G200: 243.05 | H200: 266.95 | I200: 274.45 | J200: 278.90 | K200: 270 | L200: 258.05 | M200: 0.19128
A201: 191 | B201: HEROMOTOCO | C201: 2000.7 | D201: 2020.22 | E201: 1965.48 | F201: 1930.27 | G201: 1875.53 | H201: 2055.43 | I201: 2110.17 | J201: 2145.38 | K201: 2074.95 | L201: 1985 | M201: 13.28872
A202: 192 | B202: HEXAWARE | C202: 266.45 | D202: 268.98 | E202: 262.97 | F202: 259.48 | G202: 253.47 | H202: 272.47 | I202: 278.48 | J202: 281.97 | K202: 275 | L202: 265.5 | M202: 4.33929
A203: 193 | B203: HFCL | C203: 10.55 | D203: 10.62 | E203: 10.38 | F203: 10.22 | G203: 9.98 | H203: 10.78 | I203: 11.02 | J203: 11.18 | K203: 10.85 | L203: 10.45 | M203: 8.48528
A204: 194 | B204: HIMATSEIDE | C204: 53.5 | D204: 53.77 | E204: 52.53 | F204: 51.57 | G204: 50.33 | H204: 54.73 | I204: 55.97 | J204: 56.93 | K204: 55 | L204: 52.8 | M204: 0.56998
A205: 195 | B205: HINDALCO | C205: 115.9 | D205: 117.83 | E205: 112.67 | F205: 109.43 | G205: 104.27 | H205: 121.07 | I205: 126.23 | J205: 129.47 | K205: 123 | L205: 114.6 | M205: 224.96899
A206: 196 | B206: HINDCOPPER | C206: 24.4 | D206: 24.33 | E206: 23.22 | F206: 22.03 | G206: 20.92 | H206: 25.52 | I206: 26.63 | J206: 27.82 | K206: 25.45 | L206: 23.15 | M206: 5.28738
... 321 more rows

Sheet Bulk Deals
E6: Back To Main Page
A7: Subject : | B7: BULK DEAL | D7: =Main!B10 -> 2020-05-05
A9: Date | B9: Scrip code | C9: Scrip Name | D9: Client Name | E9: Buy / Sell | F9: Quantity Traded | G9: Trade Price / Wt.Avg.trade price | H9: Exchange
A10: 2020-05-04 | B10: 511463 | C10: ALEXANDER | D10: KAHAR NIKLESH KANAIYABHAI | E10: BUY | F10: 11,627 | G10: 14.14 | H10: BSE
A11: 2020-05-04 | B11: 511463 | C11: ALEXANDER | D11: KAHAR NIKLESH KANAIYABHAI | E11: SELL | F11: 50,490 | G11: 13.72 | H11: BSE
A12: 2020-05-04 | B12: 513401 | C12: ASHIS | D12: DHARMENDRA BANJARA | E12: BUY | F12: 80,318 | G12: 6.65 | H12: BSE
A13: 2020-05-04 | B13: 513401 | C13: ASHIS | D13: DHARMENDRA BANJARA | E13: SELL | F13: 80,318 | G13: 7.3 | H13: BSE
A14: 2020-05-04 | B14: 513401 | C14: ASHIS | D14: EDWINLOUISTAURO | E14: BUY | F14: 80,318 | G14: 7.3 | H14: BSE
A15: 2020-05-04 | B15: 513401 | C15: ASHIS | D15: EDWINLOUISTAURO | E15: SELL | F15: 80,318 | G15: 6.65 | H15: BSE
A16: 2020-05-04 | B16: 532813 | C16: CANDC | D16: JASWINDER KAUR ATWAL | E16: BUY | F16: 500,000 | G16: 2.2 | H16: BSE
A17: 2020-05-04 | B17: 532813 | C17: CANDC | D17: MANBHUPINDER SINGH ATWAL | E17: SELL | F17: 500,000 | G17: 2.2 | H17: BSE
A18: 2020-05-04 | B18: 542935 | C18: ICLORGANIC | D18: VIPUL MOHAN PATEL | E18: SELL | F18: 60,000 | G18: 22 | H18: BSE
A19: 2020-05-04 | B19: 542935 | C19: ICLORGANIC | D19: ACME FINVEST PRIVATE LIMITED | E19: BUY | F19: 60,000 | G19: 22 | H19: BSE
A20: 2020-05-04 | B20: 542935 | C20: ICLORGANIC | D20: VIKAS KUMAR GOLA | E20: SELL | F20: 48,000 | G20: 22.34 | H20: BSE
A21: 2020-05-04 | B21: 511628 | C21: IMCAP | D21: WELSOME FINANCE PRIVATE LIMITED | E21: SELL | F21: 18,226 | G21: 21.6 | H21: BSE
A22: 2020-05-04 | B22: 511628 | C22: IMCAP | D22: RAJPAL SINGH | E22: BUY | F22: 18,226 | G22: 21.6 | H22: BSE
A23: 2020-05-04 | B23: 540809 | C23: MRCEXIM | D23: HEMANT PARMANAND SINGH | E23: BUY | F23: 56,000 | G23: 3.61 | H23: BSE
A24: 2020-05-04 | B24: 540809 | C24: MRCEXIM | D24: SUSHIL KUMAR MISHRA | E24: SELL | F24: 56,000 | G24: 3.61 | H24: BSE
A25: 2020-05-04 | B25: ASIANHOTNR | C25: Asian Hotels (North) Ltd | D25: SATYA PRAKASH BAGLA | E25: BUY | F25: 126,000 | G25: 66.96 | H25: NSE
A26: 2020-05-04 | B26: IDEA | C26: Vodafone Idea Limited | D26: SHARE INDIA SECURITIES LIMITED | E26: BUY | F26: 153,846,511 | G26: 4.12 | H26: NSE
A27: 2020-05-04 | B27: RELCAPITAL | C27: Reliance Capital Limited | D27: RAHUL DOSHI | E27: BUY | F27: 1,525,112 | G27: 8.64 | H27: NSE
A28: 2020-05-04 | B28: RELCAPITAL | C28: Reliance Capital Limited | D28: SWAPNIL MEHTA | E28: BUY | F28: 170,000 | G28: 8.42 | H28: NSE
A29: 2020-05-04 | B29: SOUTHWEST | C29: South West Pinnacle Ltd | D29: GOGIA CAPITAL SERVICES LIMITED | E29: BUY | F29: 420,000 | G29: 14.75 | H29: NSE
A30: 2020-05-04 | B30: VENUSREM | C30: Venus Remedies Limited | D30: ALPHA LEON ENTERPRISES LLP | E30: BUY | F30: 67,638 | G30: 53.75 | H30: NSE
A31: 2020-05-04 | B31: ASIANHOTNR | C31: Asian Hotels (North) Ltd | D31: ASIAN AGRO INDUSTRIES LTD | E31: SELL | F31: 99,068 | G31: 66.95 | H31: NSE
A32: 2020-05-04 | B32: HCG | C32: Healthcare Glob. Ent. Ltd | D32: THE SCOTTISH ORIENTAL SMALLER COMPANIES PIC | E32: SELL | F32: 451,890 | G32: 77.08 | H32: NSE
A33: 2020-05-04 | B33: IDEA | C33: Vodafone Idea Limited | D33: SHARE INDIA SECURITIES LIMITED | E33: SELL | F33: 149,333,511 | G33: 4.14 | H33: NSE
A34: 2020-05-04 | B34: RELCAPITAL | C34: Reliance Capital Limited | D34: RAHUL DOSHI | E34: SELL | F34: 1,525,112 | G34: 8.13 | H34: NSE
A35: 2020-05-04 | B35: RELCAPITAL | C35: Reliance Capital Limited | D35: SWAPNIL MEHTA | E35: SELL | F35: 3,000,959 | G35: 8.63 | H35: NSE
A36: 2020-05-04 | B36: SOUTHWEST | C36: South West Pinnacle Ltd | D36: DSP MUTUAL FUND A/C DSP NATURAL RESOU AND NEW ENG FD | E36: SELL | F36: 500,000 | G36: 14.75 | H36: NSE
A37: 2020-05-04 | B37: VENUSREM | C37: Venus Remedies Limited | D37: ALPHA LEON ENTERPRISES LLP | E37: SELL | F37: 110,451 | G37: 53.85 | H37: NSE

Sheet Call Tracker (Equity & F&O)
M5: Back To Main Page
A6: Retail Research Technical Calls & Fundamental Performance Report for the month of May-2020
M7: =Main!B10 -> 2020-05-05
B8: Positional Call
A9: Sr.no | B9: Date | D9: Company | E9: Rec | F9: Rec Price | G9: Stop Loss*** | H9: Call Closed At | I9: Target | J9: Remark | K9: Profit / Loss per Share | L9: Gain / Loss % | M9: Status | N9: Closed Date | O9: NSE Closed Price
A10: 1 | B10: 2020-04-17 | D10: MCDOWELL-N | E10: Buy | F10: 544-550 | G10: 515 | I10: 600-620 | J10: Open | R10: H
A11: 2 | B11: 2020-04-17 | D11: SBIN | E11: Buy | F11: 189-191 | G11: 177 | I11: 210-215 | J11: Open | R11: H
A12: 3 | B12: 2020-04-30 | D12: DRREDDY | E12: Buy | F12: 3980-4020 | G12: 3780 | I12: 4400 | J12: Open | R12: N
A13: 4 | B13: 2020-05-04 | D13: TVSMOTOR | E13: Buy | F13: 308-312 | G13: 290 | I13: 350 | J13: Open | R13: N
A17: CLBS = Closing Basis ***
A18: Dividend adjusted <> | F18: Reinitiated $
A19: Part book {} | F19: Revised stoploss #
B21: Momentum Call
A22: Sr.no | B22: Date | D22: Company | E22: Rec | F22: Rec Price | G22: Stop Loss | H22: Call Closed At | I22: Target | J22: Remark | K22: Profit / Loss per Share/Lot | L22: Gain / Loss % | M22: Gain / Loss per Lot | N22: Lot | O22: Status | P22: Closed Date
A23: 1 | B23: 2020-04-28 | D23: COLPAL | E23: Buy | F23: 1487.5 | G23: 1440 | H23: 1435 | I23: 1580-1600 | J23: Loss of Rs.52.50/- | K23: =H23-F23 -> -52.5 | L23: =K23/F23 -> -3.53% | O23: Unsuccessful | P23: 2020-05-04 | R23: N
A24: 2 | B24: 2020-04-28 | D24: CADILAHC | E24: Buy | F24: 327 | G24: 315 | H24: 334 | I24: 350 | J24: Profit of Rs.7/- | K24: =H24-F24 -> 7 | L24: 2.14% | O24: Successful | P24: 2020-05-04 | R24: N
A25: 3 | B25: 2020-04-30 | D25: BERGEPAINT | E25: Buy | F25: 510.5 | G25: 493 | H25: 491 | I25: 540-550 | J25: Loss of Rs.19.5/- | K25: =H25-F25 -> -19.5 | L25: =K25/F25 -> -3.82% | O25: Unsuccessful | P25: 2020-05-04 | R25: H
A26: 4 | B26: 2020-04-30 | D26: HDFCLIFE | E26: Buy | F26: 499.5 | G26: 482 | H26: 480.5 | I26: 530 | J26: Loss of Rs.19/- | K26: =H26-F26 -> -19 | L26: =K26/F26 -> -3.80% | O26: Unsuccessful | P26: 2020-05-04 | R26: N
A27: 5 | B27: 2020-05-04 | D27: DABUR | E27: Buy | F27: 471-475 | G27: 454 | I27: 500-510 | J27: Open | R27: H
A32: CLBS = Closing Basis ***
A33: Dividend adjusted <> | F33: Reinitiated $
F34: Revised stoploss #
A36: Master Trade High Risk
A37: Sr.no | B37: Date | D37: Company | E37: Rec | F37: Rec Price | G37: Stop Loss | H37: Call Closed At | I37: Target | J37: Remark | K37: Profit / Loss per share | L37: Gain / Loss per Lot | M37: Lot | N37: Status | O37: Closed Date
R38: H
R39: H
R40: H
R41: H
R42: A
R43: A
A47: Master Trade Medium Risk
A48: Sr.no | B48: Date | D48: Company | E48: Rec | F48: Rec Price | G48: Stop Loss | H48: Call Closed At | I48: Target | J48: Remark | K48: Profit/ Loss per lot | L48: Gain / Loss per Lot | M48: Lot | N48: Status | O48: Closed Date
A49: 1 | B49: 2020-04-30 | D49: SBIN 210 CE MAY | E49: Buy | F49: 6.75 | G49: 4.9 | H49: 4.9 | I49: 11-12.0 | J49: Loss of Rs.1.85/- | K49: =L49*M49 -> -5550 | L49: =H49-F49 -> -1.85 | M49: 3000 | N49: Unsuccessful | O49: 2020-05-04 | R49: H
A51: Techno -Funda (positional)
A52: Sr.no | B52: Date | D52: Company | E52: Rec | F52: Rec Price | G52: Stop Loss*** | H52: Call Closed At | I52: Target | J52: Remark | K52: Profit / Loss per Share | L52: Gain / Loss % | M52: Status | N52: Closed Date | O52: NSE Closed Price
A54: CLBS = Closing Basis *** | F54: Reinitiated $
A55: Dividend adjusted <> | F55: Revised stoploss #
B60: Investment Idea
A61: Sr.no | B61: Date | D61: Company | E61: Rec | F61: Rec Price | G61: Point of Review | H61: Close Rate | I61: Target | J61: Remark | K61: Profit / Loss per Share | L61: Gain / Loss % | M61: Status | N61: Closed Date
A62: 1 | B62: 2013-11-01 | D62: L&T Finance Holding | E62: Accu | F62: 82.00 | G62: - | H62: 100 | I62: 100.00 | J62: Target Achieved | K62: =H62-F62 -> 18.00 | L62: =K62/F62 -> 21.95% | M62: Successful | N62: 2016-10-14
A63: 2 | B63: 2014-06-04 | D63: Finolex Inds | E63: Buy | F63: 257.00 | G63: - | H63: 300 | I63: 300.00 | J63: Target Achieved | K63: 43.00 | L63: 16.73% | M63: Successful | N63: 2014-07-02
A64: 3 | B64: 2014-07-08 | D64: JK Cement | E64: Buy | F64: 393.00 | G64: - | H64: 468 | I64: 468.00 | J64: Target Achieved | K64: 75.00 | L64: 19.08% | M64: Successful | N64: 2014-08-12
A65: 4 | B65: 2014-08-06 | D65: Finolex Cables | E65: Buy | F65: 205.00 | G65: - | H65: 275 | I65: 250.00 | J65: Target Achieved | K65: 70.00 | L65: 34.15% | M65: Successful | N65: 2014-11-19
A66: 5 | B66: 2014-09-04 | D66: Exide Inds | E66: Buy | F66: 162.00 | G66: - | H66: 190 | I66: 190.00 | J66: Target Achieved | K66: 28.00 | L66: 17.28% | M66: Successful | N66: 2015-01-02
A67: 6 | B67: 2014-09-04 | D67: Deepak Nitrite | E67: Buy | F67: 75.00 | G67: - | H67: 91.5 | I67: 95-100 | J67: Profit of Rs.16.50/- | K67: 16.50 | L67: 22.00% | M67: Successful | N67: 2014-11-11
A68: 7 | B68: 2014-10-01 | D68: Mercks | E68: Buy | F68: 850.00 | G68: - | H68: 982.5 | I68: 1050.00 | J68: Profit of Rs.132.50/- | K68: 132.50 | L68: 15.59% | M68: Successful | N68: 2015-02-04
A69: 8 | B69: 2014-10-01 | D69: Grindwell Norton | E69: Buy | F69: 475.00 | G69: - | H69: 515 | I69: 600.00 | J69: Profit of Rs.40/- | K69: 40.00 | L69: 8.42% | M69: Successful | N69: 2014-10-27
A70: 9 | B70: 2014-10-01 | D70: Snowman Logistics | E70: Buy | F70: 86.00 | G70: - | H70: 99 | I70: 140.00 | J70: Profit of Rs.13.00/- | K70: 13.00 | L70: 15.12% | M70: Successful | N70: 2014-10-27
A71: 10 | B71: 2014-10-14 | D71: Birla Corp | E71: Buy | F71: 496.60 | G71: - | H71: 621 | I71: 580.00 | J71: Target Achieved | K71: 124.40 | L71: 25.05% | M71: Successful | N71: 2016-08-23
A72: 11 | B72: 2014-10-14 | D72: Ultratech Cem | E72: Buy | F72: 2481.90 | G72: - | H72: 2840 | I72: 2870.00 | J72: Profit of Rs.358.10/- | K72: 358.10 | L72: 14.43% | M72: Successful | N72: 2015-01-13
A73: 12 | B73: 2014-10-16 | D73: Sintex Inds | E73: Buy | F73: 84.50 | G73: - | H73: 93 | I73: 110.00 | J73: Profit of Rs.8.50/- | K73: 8.50 | L73: 10.06% | M73: Successful | N73: 2014-10-27
A74: 13 | B74: 2014-10-16 | D74: HSIL | E74: Buy | F74: 401.00 | G74: - | H74: 428 | I74: 450.00 | J74: Profit of Rs.27.00/- | K74: 27.00 | L74: 6.73% | M74: Successful | N74: 2015-01-16
A75: 14 | B75: 2014-10-16 | D75: Eveready Inds | E75: Buy | F75: 101.00 | G75: - | H75: 112 | I75: 120.00 | J75: Profit of Rs.11.00/- | K75: 11.00 | L75: 10.89% | M75: Successful | N75: 2014-10-27
A76: 15 | B76: 2014-11-11 | D76: Pennar Inds | E76: Buy | F76: 59.00 | G76: - | H76: 76 | I76: 76.00 | J76: Target Achieved | K76: 17.00 | L76: 28.81% | M76: Successful | N76: 2017-10-24
A77: 16 | B77: 2014-11-11 | D77: Snowman Logistics | E77: Buy | F77: 99.00 | G77: - | H77: 120 | I77: 120.00 | J77: Profit of Rs.21/- | K77: 21.00 | L77: 21.21% | M77: Successful | N77: 2014-11-17
A78: 17 | B78: 2014-11-13 | D78: Dharamsi Morarji Chem | E78: Buy | F78: 22.00 | G78: - | H78: 33.55 | I78: 32.00 | J78: Profit of Rs 11.55/- | K78: 11.55 | L78: 52.50% | M78: Successful | N78: 2015-07-03
A79: 18 | B79: 2014-12-03 | D79: Tatachem | E79: Buy | F79: 440.00 | G79: - | H79: 520 | I79: 520.00 | J79: Profit of Rs 80.00/- | K79: 80.00 | L79: 18.18% | M79: Successful | N79: 2015-07-23
A80: 19 | B80: 2014-12-03 | D80: Advanta | E80: Buy | F80: 360.00 | G80: - | H80: 427 | I80: 425.00 | J80: Profit of Rs.67.00/- | K80: 67.00 | L80: 18.61% | M80: Successful | N80: 2015-02-23
A81: 20 | B81: 2015-01-08 | D81: GDL | E81: Buy | F81: 360.00 | G81: - | H81: 455 | I81: 420.00 | J81: Profit of Rs.95.00/- | K81: 95.00 | L81: 26.39% | M81: Successful | N81: 2015-01-20
A82: 21 | B82: 2015-01-08 | D82: NRB Bearing | E82: Buy | F82: 130.00 | H82: 175.5 | I82: 165.00 | J82: Profit of Rs 45.50/- | K82: 45.50 | L82: 35.00% | M82: Successful | N82: 2017-12-19
A83: 22 | B83: 2015-02-05 | D83: GSFC | E83: Accu | F83: 98.00 | H83: 120 | I83: 120.00 | J83: Target Achieved | K83: 22.00 | L83: 22.45% | M83: Successful | N83: 2017-01-18
A84: 23 | B84: 2015-02-05 | D84: Sundrmfast | E84: Accu | F84: 196.00 | H84: 262 | I84: 255.00 | J84: Target Achieved | K84: 66.00 | L84: 33.67% | M84: Successful | N84: 2016-08-17
A85: 24 | B85: 2015-03-04 | D85: GPPL | E85: Accu | F85: 235 | H85: 77.00 | I85: 280-285 | J85: Loss of Rs.158/- | K85: -158.00 | L85: -67.23% | M85: Unsuccessful | N85: 2019-02-26
A86: 25 | B86: 2015-03-04 | D86: ORIENTCEM | E86: Accu | F86: 185.00 | H86: 224 | I86: 220-225 | J86: Target Achieved | K86: 39.00 | L86: 21.08% | M86: Successful | N86: 2016-10-04
A87: 26 | B87: 2015-03-27 | D87: PFS | E87: Accu | F87: 49.5 | H87: 15.85 | I87: 67.00 | J87: Loss of Rs.33.65/- | K87: -33.65 | L87: -68% | M87: Unsuccessful | N87: 2019-06-11
A88: 27 | B88: 2015-03-30 | D88: Walchandnagar Ind Ltd | E88: Accu | F88: 183.50 | H88: 219 | I88: 218.00 | J88: Profit of Rs.35.50/- | K88: 35.50 | L88: 19.35% | M88: Successful | N88: 2015-04-09
A89: 28 | B89: 2015-04-20 | D89: Kalpataru Power Transmission Ltd | E89: Accu | F89: =(227+237)/2 -> 232.00 | H89: 298 | I89: 298.00 | J89: Target Achieved | K89: 66.00 | L89: 28.45% | M89: Successful | N89: 2017-03-29
A90: 29 | B90: 2015-05-04 | D90: Mastek Ltd | E90: Buy | F90: 385.00 | H90: =212.5+331 -> 543.5 | I90: 510.00 | J90: Profit of Rs 158.50/- | K90: 158.50 | L90: 41.17% | M90: Successful | N90: 2015-08-19
A91: 30 | B91: 2015-05-04 | D91: Suprajit Eng | E91: Buy | F91: 115.50 | H91: 146 | I91: 142.00 | J91: Profit of Rs 30.50/- | K91: 30.50 | L91: 26.41% | M91: Successful | N91: 2015-07-17
A92: 31 | B92: 2015-05-27 | D92: TCI | E92: Buy | F92: 237.50 | H92: 279.5 | I92: 278.00 | J92: Target Achieved | K92: 42.00 | L92: 17.68% | M92: Successful | N92: 2015-08-06
A93: 32 | B93: 2015-06-19 | D93: HSIL | E93: Accu | F93: 340.00 | H93: 448 | I93: 448.00 | J93: Target Achieved | K93: 108.00 | L93: 31.76% | M93: Successful | N93: 2017-10-10
A94: 33 | B94: 2015-07-06 | D94: Capital First | E94: Accu | F94: 390.00 | H94: 460 | I94: 460.00 | J94: Target Achieved | K94: =H94-F94 -> 70.00 | L94: =K94/F94 -> 17.95% | M94: Successful | N94: 2016-04-18
A95: 34 | B95: 2015-07-10 | D95: Dolphin OffShore | E95: Accu | F95: 122.5 | H95: 61.00 | I95: 172.00 | J95: Loss of Rs.61.50/- | K95: -61.50 | L95: -50.20% | M95: Unsuccessful | N95: 2018-08-21
A96: 35 | B96: 2015-08-03 | D96: Allcargo logistics | E96: Accu | F96: 297.50 | H96: 350 | I96: 360.00 | J96: Profit of Rs 52.50/- | K96: 52.50 | L96: 17.65% | M96: Successful | N96: 2015-08-16
A97: 36 | B97: 2015-08-03 | D97: Camline Fine | E97: Accu | F97: 115.50 | H97: 149 | I97: 140.00 | J97: Profit of Rs 33.50/- | K97: 33.50 | L97: 29.00% | M97: Successful | N97: 2017-01-05
A98: 37 | B98: 2015-09-04 | D98: TCI | E98: Accu | F98: 226.00 | H98: 292 | I98: 292.00 | J98: Target Achieved | K98: 66.00 | L98: 29.20% | M98: Successful | N98: 2015-10-09
A99: 38 | B99: 2015-09-07 | D99: Kalpataru Power Transmission Ltd | E99: Accu | F99: 232.50 | H99: 312.5 | I99: 310.00 | J99: Target Achieved | K99: 80.00 | L99: 34.41% | M99: Successful | N99: 2017-03-29
A100: 39 | B100: 2015-09-21 | D100: LLOYD ELECTRIC & ENG LTD | E100: Accu | F100: 196.50 | H100: 238 | I100: 238.00 | J100: Target Achieved | K100: 41.50 | L100: 21.12% | M100: Successful | N100: 2015-10-14
A101: 40 | B101: 2015-09-24 | D101: L&T Finance Holding | E101: Accu | F101: 65.00 | H101: 82 | I101: 82.00 | J101: Target Achieved | K101: 17.00 | L101: 26.15% | M101: Successful | N101: 2016-07-27
A102: 41 | B102: 2015-10-14 | D102: KEC International ltd | E102: Accu | F102: 144.00 | H102: 182.5 | I102: 181.00 | J102: Target Achieved | K102: 38.50 | L102: 26.74% | M102: Successful | N102: 2017-03-23
A103: 42 | B103: 2015-10-14 | D103: Gruh Finance | E103: Accu | F103: 264.00 | H103: 311 | I103: 311.00 | J103: Target Achieved | K103: 47.00 | L103: 17.80% | M103: Successful | N103: 2016-08-22
A104: 43 | B104: 2015-11-10 | D104: Pidilitind | E104: Buy | F104: 549.50 | H104: 630 | I104: 630.00 | J104: Target Achieved | K104: 80.50 | L104: 14.65% | M104: Successful | N104: 2016-02-19
A105: 44 | B105: 2015-12-04 | D105: Zensar Technology | E105: Accu | F105: 1027.50 | H105: 1315 | I105: 1250.00 | J105: Target Achieved | K105: 287.50 | L105: 27.98% | M105: Successful | N105: 2018-05-24
A106: 45 | B106: 2015-12-29 | D106: Vinati Organics Ltd | E106: Accu | F106: 465.00 | H106: 540 | I106: 540.00 | J106: Target Achieved | K106: 75.00 | L106: 16.13% | M106: Successful | N106: 2016-06-09
A107: 46 | B107: 2016-01-11 | D107: GSFC | E107: Buy | F107: 81.00 | H107: 110 | I107: 110.00 | J107: Target Achieved | K107: 29.00 | L107: 35.80% | M107: Successful | N107: 2017-01-10
A108: 47 | B108: 2016-01-13 | D108: SSWL | E108: Buy | F108: 417.50 | H108: 547 | I108: 535.00 | J108: Target Achieved | K108: 129.50 | L108: 31.02% | M108: Successful | N108: 2016-07-27
A109: 48 | B109: 2016-02-08 | D109: Persistent System Ltd | E109: Accu | F109: 650.00 | H109: 800 | I109: 800.00 | J109: Target Achieved | K109: 150.00 | L109: 23.08% | M109: Successful | N109: 2018-02-23
A110: 49 | B110: 2016-03-04 | D110: UPL | E110: Accu | F110: 437.50 | H110: 504.5 | I110: 522.00 | J110: Profit of Rs.67/- | K110: 67.00 | L110: 15.31% | M110: Successful | N110: 2016-04-20
A111: 50 | B111: 2016-03-09 | D111: Ashoka Buildcon Ltd | E111: Accu | F111: 189.50 | H111: 218 | I111: 218.00 | J111: Target Achieved | K111: 28.50 | L111: 15.04% | M111: Successful | N111: 2017-10-26
A112: 51 | B112: 2016-04-11 | D112: PTC INDIA FIN SERV LTD | E112: Accu | F112: 36.5 | H112: 15.85 | I112: 60.00 | J112: Loss of Rs.20.65/- | K112: -20.65 | L112: -56.58% | M112: Unsuccessful | N112: 2019-06-11
A113: 52 | B113: 2016-04-12 | D113: CAMLINFINE $ | E113: Accu | F113: 93.00 | H113: 149 | I113: 140.00 | J113: Profit of Rs 56/- | K113: 56.00 | L113: 60.22% | M113: Successful | N113: 2017-01-05
A114: 53 | B114: 2016-04-12 | D114: Greaves Cotton Ltd. | E114: Accu | F114: 130.00 | H114: 150 | I114: 150-155 | J114: Target Achieved | K114: 20.00 | L114: 15.38% | M114: Successful | N114: 2016-07-13
A115: 54 | B115: 2016-04-13 | D115: DHFL | E115: Accu | F115: 196.00 | H115: 299 | I115: 299.00 | J115: Target Achieved | K115: 103.00 | L115: 52.55% | M115: Successful | N115: 2016-09-07
A116: 55 | B116: 2016-04-13 | D116: Magma | E116: Accu | F116: 88.00 | H116: 103 | I116: 103.00 | J116: Target Achieved | K116: 15.00 | L116: 17.05% | M116: Successful | N116: 2016-06-09
A117: 56 | B117: 2016-05-02 | D117: KEC International ltd $ | E117: Accu | F117: 127.50 | H117: 148 | I117: 148-150 | J117: Target Achieved | K117: =H117-F117 -> 20.50 | L117: =K117/F117 -> 16.08% | M117: Successful | N117: 2016-07-13
A118: 57 | B118: 2016-05-03 | D118: Mindtree | E118: Accu | F118: 675.00 | H118: 815 | I118: 790-800 | J118: Target Achieved | K118: =H118-F118 -> 140.00 | L118: =K118/F118 -> 20.74% | M118: Successful | N118: 2018-02-23
A119: 58 | B119: 2016-06-01 | D119: Atulauto | E119: Accu | F119: 500 | H119: 232.50 | I119: 565-570 | J119: Loss of Rs.267.50 /- | K119: =H119-F119 -> -267.50 | L119: =K119/F119 -> -53.50% | M119: Unsuccessful | N119: 2019-09-27
A120: 59 | B120: 2016-06-06 | D120: TRITURBINE | E120: Accu | F120: 110.00 | H120: 126.5 | I120: 125.00 | J120: Profit of Rs.16.50/- | K120: =H120-F120 -> 16.50 | L120: =K120/F120 -> 15.00% | M120: Successful | N120: 2016-07-01
A121: 60 | B121: 2016-06-17 | D121: Pennar Industries Ltd | E121: Accu | F121: 44.00 | H121: 69.5 | I121: 69.50 | J121: Profit of Rs.25.50/- | K121: =H121-F121 -> 25.50 | L121: =K121/F121 -> 57.95% | M121: Successful | N121: 2017-08-30
A122: 61 | B122: 2016-06-28 | D122: EVEREADY | E122: Accu | F122: 262.50 | H122: 340 | I122: 333.00 | J122: Profit of Rs.77.50/- | K122: 77.50 | L122: 29.52% | M122: Successful | N122: 2017-10-09
A123: 62 | B123: 2016-06-28 | D123: FIEMIND | E123: Accu | F123: 840.00 | H123: 1230 | I123: 1230.00 | J123: Target Achieved | K123: 390.00 | L123: 46.43% | M123: Successful | N123: 2016-10-06
A124: 63 | B124: 2016-07-05 | D124: Bajaj Corp Ltd | E124: Accu | F124: 395 | H124: =(468.5+342.5)/2 -> 405.50 | I124: 510.00 | J124: Profit of Rs.10.50/- | K124: =H124-F124 -> 10.50 | L124: =K124/F124 -> 3% | M124: Neutral | N124: 2019-05-21
A125: 64 | B125: 2016-08-02 | D125: GPPL $ | E125: Buy | F125: =169.5-12.8 -> 156.7 | H125: 77.00 | I125: 198-200 | J125: Loss of Rs.79.7/- | K125: -79.70 | L125: -50.86% | M125: Unsuccessful | N125: 2019-02-26
A126: 65 | B126: 2016-08-04 | D126: WONDERLA HOLIDAYS LTD | E126: Accu | F126: 400 | H126: 305.00 | I126: 475.00 | J126: Loss of Rs.95/- | K126: -95.00 | L126: -23.75% | M126: Unsuccessful | N126: 2019-05-21
A127: 66 | B127: 2016-08-11 | D127: CAMLINFINE | E127: Accu | F127: 86.50 | H127: 130 | I127: 130.00 | J127: Profit of Rs.43.50/- | K127: 43.50 | L127: 50.29% | M127: Successful | N127: 2017-12-22
A128: 67 | B128: 2016-08-18 | D128: GRANULES | E128: Accu | F128: 133.5 | H128: 126.50 | I128: 178.00 | J128: Exit | K128: -7.00 | L128: -5.24% | M128: Unsuccessful | N128: 2016-09-02
A129: 68 | B129: 2016-08-31 | D129: VA TECH WABAG | E129: Accu | F129: 560.00 | H129: 725 | I129: 725.00 | J129: Target Achieved | K129: 165.00 | L129: 29.46% | M129: Successful | N129: 2016-03-27
A130: 69 | B130: 2016-09-01 | D130: SKIPPER LIMITED | E130: Accu | F130: 160.50 | H130: 210 | I130: 210.00 | J130: Target Achieved | K130: 49.50 | L130: 30.84% | M130: Successful | N130: 2017-05-16
A131: 70 | B131: 2016-10-03 | D131: IFBIND | E131: Accu | F131: 430.00 | H131: 596 | I131: 575.00 | J131: Profit of Rs.166/- | K131: 166.00 | L131: 38.60% | M131: Successful | N131: 2017-02-03
A132: 71 | B132: 2016-10-14 | D132: ASIANTILES | E132: Accu | F132: 280.00 | H132: 345 | I132: 345.00 | J132: Target Achieved | K132: =H132-F132 -> 65.00 | L132: =K132/F132 -> 23.21% | M132: Successful | N132: 2017-03-20
A133: 72 | B133: 2016-10-14 | D133: DEEPIND | E133: Accu | F133: 245.00 | H133: 325.5 | I133: 330.00 | J133: Profit of Rs.80.5/- | K133: 80.50 | L133: =K133/F133 -> 32.86% | M133: Successful | N133: 2017-02-03
A134: 73 | B134: 2016-10-17 | D134: DCBBANK | E134: Accu | F134: 125.00 | H134: 160 | I134: 160.00 | J134: Target Achieved | K134: 35.00 | L134: 28.00% | M134: Successful | N134: 2017-03-09
A135: 74 | B135: 2016-10-17 | D135: ORIENTREF | E135: Accu | F135: 114.00 | H135: 145 | I135: 145.00 | J135: Target Achieved | K135: 31.00 | L135: =K135/F135 -> 27.19% | M135: Successful | N135: 2017-05-04
A136: 75 | B136: 2016-10-17 | D136: GANECOS | E136: Accu | F136: 212.00 | H136: 280 | I136: 276.00 | J136: Profit of Rs.68/- | K136: 68.00 | L136: =K136/F136 -> 32.08% | M136: Successful | N136: 2017-05-03
A137: 76 | B137: 2016-11-04 | D137: NBCC | E137: Accu | F137: 155.00 | H137: 210 | I137: 210.00 | J137: Profit of Rs.55/- | K137: 55.00 | L137: =K137/F137 -> 35.48% | M137: Successful | N137: 2017-07-28
A138: 77 | B138: 2016-12-06 | D138: PRECAM | E138: Accu | F138: 150.5 | H138: 72.50 | I138: 174.00 | J138: Loss of Rs.78/- | K138: -78.00 | L138: -51.83% | M138: Unsuccessful | N138: 2018-08-21
A139: 78 | B139: 2016-12-08 | D139: INFRATEL | E139: Accu | F139: 380.00 | H139: 478 | I139: 468.00 | J139: Target Achieved | K139: =H139-F139 -> 98.00 | L139: =K139/F139 -> 25.79% | M139: Successful | N139: 2017-10-17
A140: 79 | B140: 2016-12-30 | D140: GODREJPROP | E140: Accu | F140: 305.00 | H140: 375 | I140: 375.00 | J140: Target Achieved | K140: =H140-F140 -> 70.00 | L140: =K140/F140 -> 22.95% | M140: Successful | N140: 2017-02-02
A141: 80 | B141: 2017-01-04 | D141: DEEPAKNTR | E141: Accu | F141: 99.50 | H141: 158 | I141: 158.00 | J141: Target Achieved | K141: =H141-F141 -> 58.50 | L141: =K141/F141 -> 58.79% | M141: Successful | N141: 2017-06-12
A142: 81 | B142: 2017-01-04 | D142: DEEPAKNTR | E142: Accu | F142: 99.50 | H142: 158 | I142: 158.00 | J142: Target Achieved | K142: 58.50 | L142: 58.79% | M142: Successful | N142: 2017-06-12
A143: 82 | B143: 2017-02-20 | D143: RECLTD | E143: Accu | F143: 140.50 | H143: 220 | I143: 220.00 | J143: Target Achieved | K143: =H143-F143 -> 79.50 | L143: =K143/F143 -> 56.58% | M143: Successful | N143: 2017-05-09
A144: 83 | B144: 2017-02-20 | D144: SUBROS | E144: Accu | F144: 202.50 | H144: 234 | I144: 234.00 | J144: Target Achieved | K144: 31.50 | L144: 15.56% | M144: Successful | N144: 2017-04-11
A145: 84 | B145: 2017-03-24 | D145: VRLLOG | E145: Accu | F145: 300.50 | H145: 417.5 | I145: 420.00 | J145: Profit of Rs.117/- | K145: =H145-F145 -> 117.00 | L145: =K145/F145 -> 38.94% | M145: Successful | N145: 2017-12-01
A146: 85 | B146: 2017-03-24 | D146: FIEMIND | E146: Accu | F146: 850.00 | H146: 1042.5 | I146: 1023.00 | J146: Profit of Rs 192.50/- | K146: 192.50 | L146: 22.65% | M146: Successful | N146: 2017-04-05
A147: 86 | B147: 2017-04-05 | D147: RATNAMANI | E147: Accu | F147: 785.00 | H147: 930 | I147: 920.00 | J147: Profit of Rs.145/- | K147: =H147-F147 -> 145.00 | L147: =K147/F147 -> 18.47% | M147: Successful | N147: 2017-08-29
A148: 87 | B148: 2017-04-06 | D148: ZEEMEDIA | E148: Accu | F148: 40 | H148: 13.10 | I148: 60.00 | J148: Loss of Rs.26.9/- | K148: -26.90 | L148: -67.25% | M148: Unsuccessful | N148: 2018-02-07
A149: 88 | B149: 2017-04-12 | D149: DABUR | E149: Accu | F149: 289.50 | H149: 354 | I149: 360.00 | J149: Profit of Rs.64.5/- | K149: =H149-F149 -> 64.50 | L149: =K149/F149 -> 22.28% | M149: Successful | N149: 2017-11-01
A150: 89 | B150: 2017-04-20 | D150: KPRMILL | E150: Accu | F150: 700.00 | H150: 840 | I150: 840.00 | J150: Profit of Rs.140/- | K150: 140.00 | L150: 20.00% | M150: Successful | N150: 2017-06-07
A151: 90 | B151: 2017-06-01 | D151: ESSELPACK | E151: Accu | F151: 130.00 | H151: 144.25 | I151: 170.00 | J151: Profit of Rs.14.25/- | K151: 14.25 | L151: 10.96% | M151: Successful | N151: 2019-07-29
A152: 91 | B152: 2017-06-15 | D152: KEI | E152: Accu | F152: 214.50 | H152: 262 | I152: 262.00 | J152: Profit of Rs.47.5/- | K152: 47.50 | L152: 22.14% | M152: Successful | N152: 2017-08-30
A153: 92 | B153: 2017-07-17 | D153: MAYURUNIQ | E153: Accu | F153: 370.00 | H153: 447.5 | I153: 450.00 | J153: Target Achieved | K153: 77.50 | L153: 20.95% | M153: Successful | N153: 2017-10-27
A154: 93 | B154: 2017-07-27 | D154: RAMCOCEM | E154: Accu | F154: 657.50 | H154: 825 | I154: 820.00 | J154: Target Achieved | K154: 167.50 | L154: 25.48% | M154: Successful | N154: 2017-12-21
A155: 94 | B155: 2017-08-17 | D155: FINPIPE | E155: Accu | F155: 605.00 | H155: 750 | I155: 750.00 | J155: Profit of Rs.145/- | K155: 145.00 | L155: 23.97% | M155: Successful | N155: 2017-10-19
A156: 95 | B156: 2017-09-01 | D156: SHK | E156: Accu | F156: 255 | H156: 217.25 | I156: 320.00 | J156: Loss of Rs.37.75/- | K156: -37.75 | L156: -15% | M156: Unsuccessful | N156: 2019-07-15
A157: 96 | B157: 2017-09-19 | D157: SKIPPER | E157: Accu | F157: 215.00 | H157: 258 | I157: 258.00 | J157: Target Achieved | K157: 43.00 | L157: 20.00% | M157: Successful | N157: 2017-11-01
A158: 97 | B158: 2017-09-19 | D158: SKIPPER | E158: Accu | F158: 215.00 | H158: 258 | I158: 258.00 | J158: Target Achieved | K158: 43.00 | L158: 20.00% | M158: Successful | N158: 2017-11-01
A159: 98 | B159: 2017-09-20 | D159: CAMLINFINE$ | E159: Accu | F159: 75.00 | H159: 90 | I159: 90.00 | J159: Profit of Rs.15.00/- | K159: =H159-F159 -> 15.00 | L159: =K159/F159 -> 20.00% | M159: Successful | N159: 2017-10-11
A160: 99 | B160: 2017-10-03 | D160: GNA | E160: Accu | F160: 315.00 | H160: 392 | I160: 384.00 | J160: Profit of Rs.77/- | K160: 77.00 | L160: 24.44% | M160: Successful | N160: 2017-10-09
A161: 100 | B161: 2017-10-05 | D161: NOCIL | E161: Accu | F161: 145.00 | H161: 179 | I161: 180.00 | J161: Profit of Rs.34/- | K161: 34.00 | L161: 23.45% | M161: Successful | N161: 2017-10-17
A162: 101 | B162: 2017-10-06 | D162: CENTURYPLY | E162: Accu | F162: 256.00 | H162: 323 | I162: 320.00 | J162: Target Achieved | K162: 67.00 | L162: 26.17% | M162: Successful | N162: 2017-11-28
A163: 102 | B163: 2017-10-09 | D163: EIHOTEL | E163: Accu | F163: 137.50 | H163: 184 | I163: 183.00 | J163: Profit of Rs.46.5/- | K163: 46.50 | L163: 33.82% | M163: Successful | N163: 2018-01-08
A164: 103 | B164: 2017-10-10 | D164: NRBBEARING | E164: Accu | F164: 125.50 | H164: 158 | I164: 155.00 | J164: Profit of Rs.32.5/- | K164: 32.50 | L164: 25.90% | M164: Successful | N164: 2017-11-28
A165: 104 | B165: 2017-10-10 | D165: BOROSIL | E165: Accu | F165: 895.00 | H165: 1122.5 | I165: 1078.00 | J165: Profit of Rs.227.5/- | K165: 227.50 | L165: 25.42% | M165: Successful | N165: 2018-01-17
A166: 105 | B166: 2017-10-12 | D166: CYIENT | E166: Accu | F166: 525.00 | H166: 629 | I166: 629.00 | J166: Target Achieved | K166: 104.00 | L166: 19.81% | M166: Successful | N166: 2018-01-19
A167: 106 | B167: 2017-11-07 | D167: HATSUN | E167: Accu | F167: 740.00 | H167: 892.5 | I167: 900.00 | J167: Profit of Rs.152.5/- | K167: =H167-F167 -> 152.50 | L167: =K167/F167 -> 20.61% | M167: Successful | N167: 2017-11-13
A168: 107 | B168: 2017-12-04 | D168: SANGHIIND | E168: Accu | F168: 118.50 | H168: 143.5 | I168: 145.00 | J168: Profit of Rs.25/- | K168: =H168-F168 -> 25.00 | L168: =K168/F168 -> 21.10% | M168: Successful | N168: 2017-12-28
A169: 108 | B169: 2017-12-21 | D169: KAJARIACER | E169: Accu | F169: 715 | H169: 500.00 | I169: 872.00 | J169: Loss of Rs.215/- | K169: =H169-F169 -> -215.00 | L169: =K169/F169 -> -30.07% | M169: Unsuccessful | N169: 2019-07-24
A170: 109 | B170: 2017-12-29 | D170: GNA | E170: Accu | F170: 435.00 | H170: 542.5 | I170: 539.00 | J170: Target Achieved | K170: 107.50 | L170: 24.71% | M170: Successful | N170: 2018-04-16
A171: 110 | B171: 2017-12-29 | D171: ZENSARTECH | E171: Accu | F171: 885.00 | H171: 1090 | I171: 1084.00 | J171: Target Achieved | K171: 205.00 | L171: 23.16% | M171: Successful | N171: 2018-04-23
A172: 111 | B172: 2018-04-02 | D172: EVERESTIND | E172: Accu | F172: 478.50 | H172: 442 | I172: 613.00 | J172: Loss of Rs.36.50 /- | K172: =H172-F172 -> -36.50 | L172: =K172/F172 -> -7.63% | M172: Unsuccessful | N172: 2019-10-24
A173: 112 | B173: 2018-04-04 | D173: GPPL$ | E173: Accu | F173: =141.5-7.3 -> 134.2 | H173: 77.00 | I173: 180.00 | J173: Loss of Rs.57.2/- | K173: =H173-F173 -> -57.20 | L173: =K173/F173 -> -42.62% | M173: Unsuccessful | N173: 2019-02-26
A174: 113 | B174: 2018-04-19 | D174: MANPASAND | E174: Accu | F174: 430 | H174: 220.00 | I174: 537.00 | J174: Loss of Rs.210/- | K174: =H174-F174 -> -210.00 | L174: =K174/F174 -> -48.84% | M174: Unsuccessful | N174: 2018-06-01
A175: 114 | B175: 2018-04-30 | D175: HEIDELBERG | E175: Accu | F175: 153.50 | H175: 196.00 | I175: 196.00 | J175: Profit of Rs.42.50/- | K175: =H175-F175 -> 42.50 | L175: =K175/F175 -> 28% | M175: Successful | N175: 2019-05-20
A176: 115 | B176: 2018-07-25 | D176: ZEEMEDIA | E176: Accu | F176: 27.5 | H176: 13.10 | I176: 60.00 | J176: Loss of Rs.14.40/- | K176: -14.40 | L176: -52.36% | M176: Unsuccessful | N176: 2018-02-07
A177: 116 | B177: 2018-08-06 | D177: GABRIEL | E177: Accu | F177: 148.5 | H177: 102 | I177: 182.00 | J177: Loss of Rs.46.50/- | K177: =H177-F177 -> -46.50 | L177: =K177/F177 -> -31.31% | M177: Unsuccessful | N177: 2019-07-15
A178: 117 | B178: 2018-08-23 | D178: INDIANHUME | E178: Accu | F178: 285 | H178: 355 | I178: 364.00 | J178: Profit of Rs.70/- | K178: 70.00 | L178: 24.56% | M178: Successful | N178: 2018-12-21
A179: 118 | B179: 2018-08-29 | D179: GRINDWELL | E179: Accu | F179: 525 | H179: 585 | I179: 635.00 | J179: Profit of Rs.60- | K179: =H179-F179 -> 60.00 | L179: =K179/F179 -> 11.43% | M179: Successful | N179: 2019-07-16
A180: 119 | B180: 2018-10-22 | D180: FINPIPE | E180: Accu | F180: 475 | H180: 574 | I180: 570.00 | J180: Target Achieved | K180: 99.00 | L180: 20.84% | M180: Successful | N180: 2018-10-30
A181: 120 | B181: 2018-10-24 | D181: GULFOILLUB | E181: Accu | F181: 707.5 | H181: 872 | I181: 872.00 | J181: Target Achieved | K181: 164.50 | L181: 23.25% | M181: Successful | N181: 2019-01-17
A182: 121 | B182: 2018-10-25 | D182: DBCORP | E182: Accu | F182: 162 | H182: 204 | I182: 209.00 | J182: Profit of Rs.42/- | K182: 42.00 | L182: 25.93% | M182: Successful | N182: 2019-03-15
A183: 122 | B183: 2018-10-26 | D183: RITES | E183: Accu | F183: 240 | H183: 297 | I183: 297.00 | J183: Target Achieved | K183: 57.00 | L183: 23.75% | M183: Successful | N183: 2018-11-13
A184: 123 | B184: 2018-12-05 | D184: BRIGADE | E184: Accu | F184: 202.5 | H184: 255 | I184: 252.00 | J184: Target Achieved | K184: 52.50 | L184: 25.93% | M184: Successful | N184: 2019-03-18
A185: 124 | B185: 2018-12-31 | D185: JKCEMENT | E185: Accu | F185: 710 | H185: 866 | I185: 866.00 | J185: Target Achieved | K185: 156.00 | L185: 21.97% | M185: Successful | N185: 2019-03-29
A186: 125 | B186: 2019-02-26 | D186: MARICO | E186: Accu | F186: 337.25 | H186: 398.5 | I186: 411.00 | J186: Profit of Rs.61.25/- | K186: 61.25 | L186: 18.16% | M186: Successful | N186: 2019-10-22
A187: 126 | B187: 2019-04-04 | D187: ITDCEM | E187: Accu | F187: 130 | H187: 65 | I187: 158.00 | J187: Loss of Rs.65 /- | K187: -65.00 | L187: -50.00% | M187: Unsuccessful | N187: 2019-09-18
A188: 127 | B188: 2017-10-09 | D188: RECLTD | E188: Accu | F188: 141.5 | H188: 183.50 | I188: 210.00 | J188: Part Profit of Rs.42/- | K188: 42.00 | L188: 30% | M188: Successful | N188: 2017-11-03 | R188: V
A189: 128 | B189: 2017-12-05 | D189: ALLCARGO | E189: Accu | F189: 172.00 | H189: 155.25 | I189: 230.00 | J189: Loss of Rs.16.75/- | K189: =H189-F189 -> -16.75 | L189: =K189/F189 -> -9.74% | M189: Unsuccessful | N189: 2019-11-18 | R189: V
A190: 129 | B190: 2018-10-25 | D190: GODREJCP | E190: Accu | F190: 698.50 | H190: 850.00 | I190: 890.00 | J190: Part Profit of Rs.151.50/- | K190: 151.50 | L190: 22% | M190: Successful | N190: 2018-12-19 | R190: V
A191: 130 | B191: 2017-05-22 | D191: GREAVESCOT | E191: Accu | F191: 127.6 | H191: 138.00 | I191: 190.00 | J191: Profit of Rs.10.40 | K191: 10.40 | L191: 8% | M191: Successful | N191: 2019-11-05 | R191: K
A192: 131 | B192: 2018-02-27 | D192: MOLDTKPAC | E192: Accu | F192: 317.00 | I192: 398.00 | M192: Open | R192: K
A193: 132 | B193: 2018-03-05 | D193: LICHSGFIN | E193: Accu | F193: =510-14.4 -> 495.60 | H193: 350 | I193: 672.00 | J193: Loss of Rs.145.60/- | K193: =H193-F193 -> -145.60 | L193: =K193/F193 -> -29.38% | M193: Unsuccessful | N193: 2020-02-26 | R193: K
A194: 133 | B194: 2018-05-17 | D194: PHILIPCARB | E194: Accu | F194: 230.30 | H194: 102.5 | I194: 348.00 | J194: Loss of Rs.127.80/- | K194: =H194-F194 -> -127.80 | L194: =K194/F194 -> -55.49% | M194: Unsuccessful | N194: 2020-03-06 | R194: V
A195: 134 | B195: 2018-06-07 | D195: KEC | E195: Accu | F195: =342.5-5.1 -> 337.40 | I195: 439.00 | M195: Open | R195: K
A196: 135 | B196: 2018-07-04 | D196: ASHOKLEY | E196: Accu | F196: =127.5-5.53 -> 121.97 | I196: 170.00 | M196: Open | R196: K
A197: 136 | B197: 2018-07-13 | D197: FCONSUMER | E197: Accu | F197: 46.50 | H197: 17 | I197: 59.00 | J197: Loss of Rs.29.50/- | K197: =H197-F197 -> -29.50 | L197: =K197/F197 -> -63.44% | M197: Unsuccessful | N197: 2020-02-26 | R197: V
A198: 137 | B198: 2018-10-23 | D198: JKPAPER | E198: Accu | F198: 156.50 | I198: 191.00 | M198: Open | R198: V
A199: 138 | B199: 2018-12-05 | D199: CCL | E199: Accu | F199: 259.50 | I199: 321.00 | M199: Open | R199: K
A200: 139 | B200: 2018-12-05 | D200: VARROC | E200: Accu | F200: 715 | H200: 445 | I200: 840.00 | J200: Loss of Rs.270/- | K200: =H200-F200 -> -270.00 | L200: =K200/F200 -> -37.76% | M200: Unsuccessful | N200: 2019-12-01 | R200: V
A201: 140 | B201: 2019-01-04 | D201: MGL | E201: Accu | F201: 875 | H201: 1165 | I201: 1185.00 | J201: Profit of Rs.290/- | K201: 290.00 | L201: 33.14% | M201: Successful | N201: 2020-01-17 | R201: V
A202: 141 | B202: 2019-04-04 | D202: COCHINSHIP | E202: Accu | F202: =387-14.63 -> 372.37 | H202: 490 | I202: 490.00 | J202: Target Achieved | K202: 117.63 | L202: 31.59% | M202: Successful | N202: 2020-01-20 | R202: V
A203: 142 | B203: 2019-04-23 | D203: MAHINDCIE | E203: Buy | F203: 220 | H203: 127.5 | I203: 284.00 | J203: Loss of Rs.92.50/- | K203: -92.50 | L203: -42.05% | M203: Unsuccessful | N203: 2020-03-06 | R203: V
A204: 143 | B204: 2019-06-06 | D204: RADICO | E204: Buy | F204: 332.8 | H204: 405 | I204: 419.00 | J204: Profit of Rs.72.20/- | K204: =H204-F204 -> 72.20 | L204: =K204/F204 -> 21.69% | M204: Successful | N204: 2020-01-30 | R204: V
A205: 144 | B205: 2019-06-25 | D205: M&MFIN | E205: Accu | F205: 386 | H205: 395.00 | I205: 452.00 | J205: Profit of Rs.9/- | K205: =H205-F205 -> 9.00 | L205: =K205/F205 -> 2% | M205: Neutral | N205: 2020-02-07 | R205: V
A206: 145 | B206: 2019-08-30 | D206: INDHOTEL | E206: Accu | F206: 135-140 | I206: 190.00 | M206: Open | R206: V
A207: 146 | B207: 2019-09-23 | D207: KNRCON | E207: Accu | F207: 235 | H207: 295 | I207: 296.00 | J207: Profit of Rs.60/- | K207: =H207-F207 -> 60.00 | L207: =K207/F207 -> 25.53% | M207: Successful | N207: 2020-01-14 | R207: V
A208: 147 | B208: 2019-10-14 | D208: KEC$ | E208: Accu | F208: 277.5 | H208: 333 | I208: 333.00 | J208: Profit of Rs.55.50/- | K208: =H208-F208 -> 55.50 | L208: =K208/F208 -> 20.00% | M208: Successful | N208: 2020-01-16 | R208: K
A209: 148 | B209: 2019-10-14 | D209: MGL$ | E209: Accu | F209: 930 | H209: 1165 | I209: 1200.00 | J209: Profit of Rs.235/- | K209: =H209-F209 -> 235.00 | L209: =K209/F209 -> 25.27% | M209: Successful | N209: 2020-01-17 | R209: K
A210: 149 | B210: 2019-10-15 | D210: JKPAPER$ | E210: Accu | F210: 111.00 | I210: 141.00 | M210: Open | R210: V
A211: 150 | B211: 2019-10-15 | D211: RADICO$ | E211: Accu | F211: 296.00 | H211: 370 | I211: 370.00 | J211: Target Achieved | K211: =H211-F211 -> 74.00 | L211: =K211/F211 -> 25.00% | M211: Successful | N211: 2020-01-23 | R211: K
A212: 151 | B212: 2019-10-16 | D212: MOLDTKPAC$ | E212: Accu | F212: 298-302 | I212: 344.00 | M212: Open | R212: V
A213: 152 | B213: 2020-01-02 | D213: PSPPROJECT | E213: Accu | F213: 490-500 | I213: 590.00 | M213: Open | R213: K
B215: Re-initiated $

Sheet Sheet2 (hidden)
A1: SYMBOL | B1: SERIES | C1: OPEN | D1: HIGH | E1: LOW | F1: CLOSE | G1: LAST | H1: PREVCLOSE | I1: TOTTRDQTY | J1: TOTTRDVAL | K1: TIMESTAMP | L1: TOTALTRADES | M1: ISIN | N1: ISIN
A2: 20MICRONS | B2: EQ | C2: 27.9 | D2: 29 | E2: 25.9 | F2: 26.2 | G2: 25.9 | H2: 27.5 | I2: 80527 | J2: 2193820.55 | K2: 2020-04-08 | L2: 1099 | M2: INE144J01027
A3: 21STCENMGM | B3: EQ | C3: 10.15 | D3: 10.5 | E3: 10.1 | F3: 10.4 | G3: 10.5 | H3: 10.3 | I3: 3205 | J3: 32728.25 | K3: 2020-04-08 | L3: 28 | M3: INE253B01015
A4: 3IINFOTECH | B4: EQ | C4: 1.35 | D4: 1.35 | E4: 1.2 | F4: 1.25 | G4: 1.25 | H4: 1.35 | I4: 2793301 | J4: 3578364.95 | K4: 2020-04-08 | L4: 46535 | M4: INE748C01020
A5: 3MINDIA | B5: EQ | C5: 18950 | D5: 19170 | E5: 18155.05 | F5: 18318.2 | G5: 18270 | H5: 18755.7 | I5: 9926 | J5: 183605811.2 | K5: 2020-04-08 | L5: 4453 | M5: INE470A01017
A6: 3PLAND | B6: EQ | C6: 3.7 | D6: 3.85 | E6: 3.7 | F6: 3.85 | G6: 3.85 | H6: 3.7 | I6: 406 | J6: 1557.85 | K6: 2020-04-08 | L6: 9 | M6: INE105C01023
A7: 5PAISA | B7: EQ | C7: 119.95 | D7: 134 | E7: 115 | F7: 123.35 | G7: 120.5 | H7: 116.4 | I7: 6500 | J7: 793277.05 | K7: 2020-04-08 | L7: 265 | M7: INE618L01018
A8: 63MOONS | B8: EQ | C8: 50.7 | D8: 55.45 | E8: 50.7 | F8: 53.7 | G8: 53.55 | H8: 50.7 | I8: 72221 | J8: 3890984.7 | K8: 2020-04-08 | L8: 3078 | M8: INE111B01023
A9: A2ZINFRA | B9: EQ | C9: 3.15 | D9: 3.25 | E9: 3.1 | F9: 3.15 | G9: 3.15 | H9: 3.15 | I9: 116011 | J9: 367778.85 | K9: 2020-04-08 | L9: 227 | M9: INE619I01012
A10: AARTIDRUGS | B10: EQ | C10: 627 | D10: 669.3 | E10: 605 | F10: 631.6 | G10: 625 | H10: 607.85 | I10: 75970 | J10: 48223549.15 | K10: 2020-04-08 | L10: 5720 | M10: INE767A01016
A11: AARTIIND | B11: EQ | C11: 839.95 | D11: 909.8 | E11: 818 | F11: 854.9 | G11: 864 | H11: 830.7 | I11: 477805 | J11: 419092386.9 | K11: 2020-04-08 | L11: 50045 | M11: INE769A01020
A12: AARVEEDEN | B12: EQ | C12: 8.95 | D12: 9.25 | E12: 7.85 | F12: 8.35 | G12: 8.45 | H12: 8.1 | I12: 9251 | J12: 77100.1 | K12: 2020-04-08 | L12: 94 | M12: INE273D01019
A13: AAVAS | B13: EQ | C13: 1101 | D13: 1183 | E13: 1101 | F13: 1135.2 | G13: 1137 | H13: 1142.35 | I13: 24179 | J13: 28073100.85 | K13: 2020-04-08 | L13: 3631 | M13: INE216P01012
A14: ABAN | B14: EQ | C14: 15.7 | D14: 16.2 | E14: 15.7 | F14: 16.2 | G14: 16.2 | H14: 15.45 | I14: 37609 | J14: 608439.6 | K14: 2020-04-08 | L14: 288 | M14: INE421A01028
A15: ABB | B15: EQ | C15: 935 | D15: 965 | E15: 910 | F15: 930.7 | G15: 928 | H15: 931.35 | I15: 87757 | J15: 82358527.9 | K15: 2020-04-08 | L15: 4699 | M15: INE117A01022
A16: ABBOTINDIA | B16: EQ | C16: 16799.45 | D16: 18250 | E16: 16750 | F16: 17481.1 | G16: 17488 | H16: 16699.7 | I16: 57991 | J16: 1023745502 | K16: 2020-04-08 | L16: 21022 | M16: INE358A01014
A17: ABCAPITAL | B17: EQ | C17: 45 | D17: 47.9 | E17: 44.25 | F17: 45.6 | G17: 45.7 | H17: 45.1 | I17: 1253267 | J17: 57952493.6 | K17: 2020-04-08 | L17: 7317 | M17: INE674K01013
A18: ABFRL | B18: EQ | C18: 148 | D18: 152.8 | E18: 146.75 | F18: 149 | G18: 148 | H18: 149.85 | I18: 416099 | J18: 62371769.1 | K18: 2020-04-08 | L18: 10148 | M18: INE647O01011
A19: ABSLNN50ET | B19: EQ | C19: 244 | D19: 248 | E19: 210 | F19: 235 | G19: 235 | H19: 244 | I19: 56 | J19: 12779.4 | K19: 2020-04-08 | L19: 13 | M19: INF209KB1B87
A20: ACC | B20: EQ | C20: 1000 | D20: 1029.9 | E20: 941.25 | F20: 956.05 | G20: 958 | H20: 1009.95 | I20: 2153627 | J20: 2101320389 | K20: 2020-04-08 | L20: 79728 | M20: INE012A01025
A21: ACCELYA | B21: EQ | C21: 874.3 | D21: 886 | E21: 862 | F21: 880.45 | G21: 879.95 | H21: 874.3 | I21: 10865 | J21: 9557704.55 | K21: 2020-04-08 | L21: 923 | M21: INE793A01012
A22: ACE | B22: EQ | C22: 32.75 | D22: 35.2 | E22: 32.55 | F22: 33.25 | G22: 33.35 | H22: 32.95 | I22: 244708 | J22: 8296578.4 | K22: 2020-04-08 | L22: 2925 | M22: INE731H01025
A23: ADANIENT | B23: EQ | C23: 136.85 | D23: 147.15 | E23: 134.9 | F23: 138.1 | G23: 137.5 | H23: 138.15 | I23: 3237290 | J23: 456492273.1 | K23: 2020-04-08 | L23: 23696 | M23: INE423A01024
A24: ADANIGAS | B24: EQ | C24: 93.9 | D24: 96.35 | E24: 90.5 | F24: 90.8 | G24: 90.65 | H24: 94 | I24: 1888606 | J24: 176837924.4 | K24: 2020-04-08 | L24: 14517 | M24: INE399L01023
A25: ADANIGREEN | B25: EQ | C25: 166.85 | D25: 166.85 | E25: 162 | F25: 166.45 | G25: 166.85 | H25: 158.95 | I25: 702014 | J25: 116248737 | K25: 2020-04-08 | L25: 10187 | M25: INE364U01010
A26: ADANIPORTS | B26: EQ | C26: 248 | D26: 255.85 | E26: 242.75 | F26: 250.85 | G26: 249.7 | H26: 248.1 | I26: 6897883 | J26: 1724830525 | K26: 2020-04-08 | L26: 81499 | M26: INE742F01042
A27: ADANIPOWER | B27: EQ | C27: 28.65 | D27: 31.15 | E27: 27.5 | F27: 28.95 | G27: 28.85 | H27: 28.8 | I27: 12308064 | J27: 361987996.9 | K27: 2020-04-08 | L27: 23153 | M27: INE814H01011
A28: ADANITRANS | B28: EQ | C28: 196.65 | D28: 202 | E28: 190 | F28: 193.65 | G28: 193.5 | H28: 198.3 | I28: 306320 | J28: 59783940.3 | K28: 2020-04-08 | L28: 4236 | M28: INE931S01010
A29: ADFFOODS | B29: EQ | C29: 187.85 | D29: 192.25 | E29: 184 | F29: 187.7 | G29: 187.3 | H29: 183.1 | I29: 22107 | J29: 4185556.05 | K29: 2020-04-08 | L29: 773 | M29: INE982B01019
A30: ADHUNIKIND | B30: EQ | C30: 13.3 | D30: 13.3 | E30: 13.3 | F30: 13.3 | G30: 13.3 | H30: 12.7 | I30: 5518 | J30: 73389.4 | K30: 2020-04-08 | L30: 21 | M30: INE452L01012
A31: ADLABS | B31: EQ | C31: 2.75 | D31: 2.85 | E31: 2.75 | F31: 2.85 | G31: 2.85 | H31: 2.75 | I31: 19360 | J31: 54965.35 | K31: 2020-04-08 | L31: 72 | M31: INE172N01012
A32: ADORWELD | B32: EQ | C32: 195.7 | D32: 201.9 | E32: 193.95 | F32: 195.1 | G32: 194.45 | H32: 196.75 | I32: 1438 | J32: 283768.75 | K32: 2020-04-08 | L32: 94 | M32: INE045A01017
A33: ADROITINFO | B33: EQ | C33: 5.5 | D33: 5.7 | E33: 5.45 | F33: 5.7 | G33: 5.7 | H33: 5.7 | I33: 691 | J33: 3857 | K33: 2020-04-08 | L33: 25 | M33: INE737B01033
A34: ADSL | B34: EQ | C34: 13.05 | D34: 13.2 | E34: 12.4 | F34: 12.5 | G34: 12.45 | H34: 12.7 | I34: 16203 | J34: 205559.25 | K34: 2020-04-08 | L34: 143 | M34: INE102I01027
A35: ADVANIHOTR | B35: EQ | C35: 30.1 | D35: 33 | E35: 30.1 | F35: 31.8 | G35: 31.5 | H35: 30.65 | I35: 5340 | J35: 169948.95 | K35: 2020-04-08 | L35: 193 | M35: INE199C01026
A36: ADVENZYMES | B36: EQ | C36: 140.2 | D36: 146.55 | E36: 137.95 | F36: 139.2 | G36: 139.75 | H36: 136.55 | I36: 77441 | J36: 11046136.15 | K36: 2020-04-08 | L36: 1990 | M36: INE837H01020
A37: AEGISCHEM | B37: EQ | C37: 150 | D37: 158.5 | E37: 147.1 | F37: 156.35 | G37: 156.05 | H37: 144.1 | I37: 175470 | J37: 27041093.9 | K37: 2020-04-08 | L37: 4268 | M37: INE208C01025
A38: AFFLE | B38: BE | C38: 1050 | D38: 1053.45 | E38: 1030 | F38: 1053.45 | G38: 1053.45 | H38: 1003.3 | I38: 8191 | J38: 8619737.5 | K38: 2020-04-08 | L38: 470 | M38: INE00WC01019
A39: AGARIND | B39: EQ | C39: 49.8 | D39: 52.85 | E39: 49.05 | F39: 52.25 | G39: 52.5 | H39: 49.95 | I39: 7826 | J39: 404450.25 | K39: 2020-04-08 | L39: 207 | M39: INE204E01012
A40: AGCNET | B40: BE | C40: 224.35 | D40: 235.55 | E40: 213.25 | F40: 234.7 | G40: 235.55 | H40: 224.35 | I40: 2524 | J40: 573063 | K40: 2020-04-08 | L40: 70 | M40: INE676A01019
A41: AGRITECH | B41: EQ | C41: 23.95 | D41: 23.95 | E41: 23.95 | F41: 23.95 | G41: 23.95 | H41: 22.85 | I41: 504 | J41: 12070.8 | K41: 2020-04-08 | L41: 18 | M41: INE449G01018
A42: AGROPHOS | B42: EQ | C42: 5.7 | D42: 5.7 | E42: 5.2 | F42: 5.7 | G42: 5.7 | H42: 5.45 | I42: 40596 | J42: 227201.55 | K42: 2020-04-08 | L42: 340 | M42: INE740V01019
A43: AHLEAST | B43: EQ | C43: 133.15 | D43: 141.85 | E43: 128.15 | F43: 131.55 | G43: 128.35 | H43: 131.5 | I43: 3303 | J43: 439718.1 | K43: 2020-04-08 | L43: 350 | M43: INE926K01017
A44: AHLUCONT | B44: EQ | C44: 145.95 | D44: 148 | E44: 136 | F44: 146.3 | G44: 148 | H44: 144.1 | I44: 153910 | J44: 21077811.2 | K44: 2020-04-08 | L44: 995 | M44: INE758C01029
A45: AHLWEST | B45: EQ | C45: 289.9 | D45: 289.9 | E45: 270.95 | F45: 275 | G45: 275 | H45: 277 | I45: 238 | J45: 67030 | K45: 2020-04-08 | L45: 91 | M45: INE915K01010
A46: AIAENG | B46: EQ | C46: 1259.45 | D46: 1291 | E46: 1229 | F46: 1255.85 | G46: 1268 | H46: 1249.9 | I46: 73842 | J46: 92756824.05 | K46: 2020-04-08 | L46: 10503 | M46: INE212H01026
A47: AIONJSW | B47: EQ | C47: 10.9 | D47: 11.1 | E47: 10.2 | F47: 11.1 | G47: 11.1 | H47: 10.6 | I47: 90347 | J47: 996144.95 | K47: 2020-04-08 | L47: 180 | M47: INE743C01021
A48: AIRAN | B48: EQ | C48: 9.8 | D48: 10.3 | E48: 9.75 | F48: 9.8 | G48: 9.75 | H48: 9.85 | I48: 1826 | J48: 18127.1 | K48: 2020-04-08 | L48: 25 | M48: INE645W01026
A49: AJANTPHARM | B49: EQ | C49: 1325.75 | D49: 1450 | E49: 1325 | F49: 1367.5 | G49: 1363 | H49: 1340.2 | I49: 166582 | J49: 233126032.5 | K49: 2020-04-08 | L49: 8748 | M49: INE031B01049
A50: AJMERA | B50: EQ | C50: 64.95 | D50: 70.5 | E50: 64.6 | F50: 68.4 | G50: 69.9 | H50: 64.65 | I50: 31766 | J50: 2167947.5 | K50: 2020-04-08 | L50: 909 | M50: INE298G01027
A51: AKASH | B51: BE | C51: 90 | D51: 90 | E51: 90 | F51: 90 | G51: 90 | H51: 90.95 | I51: 500 | J51: 45000 | K51: 2020-04-08 | L51: 1 | M51: INE737W01013
A52: AKSHARCHEM | B52: EQ | C52: 174.75 | D52: 177.6 | E52: 165.3 | F52: 169.7 | G52: 167.15 | H52: 165.25 | I52: 3130 | J52: 531878.25 | K52: 2020-04-08 | L52: 293 | M52: INE542B01011
A53: AKSHOPTFBR | B53: EQ | C53: 3.6 | D53: 3.6 | E53: 3.6 | F53: 3.6 | G53: 3.6 | H53: 3.45 | I53: 27750 | J53: 99900 | K53: 2020-04-08 | L53: 45 | M53: INE523B01011
A54: AKZOINDIA | B54: EQ | C54: 2084.95 | D54: 2133 | E54: 2030 | F54: 2047.9 | G54: 2040 | H54: 2086.75 | I54: 12835 | J54: 26789836.95 | K54: 2020-04-08 | L54: 2242 | M54: INE133A01011
A55: ALANKIT | B55: EQ | C55: 12.9 | D55: 12.9 | E55: 12.9 | F55: 12.9 | G55: 12.9 | H55: 12.3 | I55: 14247 | J55: 183786.3 | K55: 2020-04-08 | L55: 75 | M55: INE914E01040
A56: ALBERTDAVD | B56: EQ | C56: 338.8 | D56: 364.75 | E56: 338.8 | F56: 353.15 | G56: 352 | H56: 341.15 | I56: 24334 | J56: 8579416.55 | K56: 2020-04-08 | L56: 1220 | M56: INE155C01010
A57: ALCHEM | B57: BE | C57: 1.4 | D57: 1.4 | E57: 1.4 | F57: 1.4 | G57: 1.4 | H57: 1.35 | I57: 8608 | J57: 12051.2 | K57: 2020-04-08 | L57: 18 | M57: INE964B01033
A58: ALEMBICLTD | B58: EQ | C58: 43.7 | D58: 48.05 | E58: 39.7 | F58: 45.05 | G58: 45.5 | H58: 42.15 | I58: 695128 | J58: 31779132.75 | K58: 2020-04-08 | L58: 6991 | M58: INE426A01027
A59: ALICON | B59: EQ | C59: 195.95 | D59: 196 | E59: 181.05 | F59: 184.75 | G59: 184 | H59: 189.25 | I59: 3909 | J59: 722322.5 | K59: 2020-04-08 | L59: 123 | M59: INE062D01024
A60: ALKALI | B60: EQ | C60: 29.95 | D60: 31.75 | E60: 29.65 | F60: 31.75 | G60: 31.75 | H60: 28.9 | I60: 9346 | J60: 289594.95 | K60: 2020-04-08 | L60: 349 | M60: INE773I01017
A61: ALKEM | B61: EQ | C61: 2360 | D61: 2736.5 | E61: 2326.2 | F61: 2671.15 | G61: 2639 | H61: 2324.05 | I61: 371259 | J61: 967330461.6 | K61: 2020-04-08 | L61: 44106 | M61: INE540L01014
A62: ALKYLAMINE | B62: EQ | C62: 1236.6 | D62: 1398 | E62: 1222.2 | F62: 1334.05 | G62: 1334 | H62: 1232.45 | I62: 41501 | J62: 55061848.25 | K62: 2020-04-08 | L62: 3832 | M62: INE150B01021
A63: ALLCARGO | B63: EQ | C63: 63.05 | D63: 65.85 | E63: 63 | F63: 65.7 | G63: 65.85 | H63: 59.9 | I63: 300794 | J63: 19569467.05 | K63: 2020-04-08 | L63: 3098 | M63: INE418H01029
A64: ALLSEC | B64: EQ | C64: 131.7 | D64: 131.9 | E64: 129.35 | F64: 131.9 | G64: 131.9 | H64: 125.65 | I64: 1335 | J64: 175836.2 | K64: 2020-04-08 | L64: 37 | M64: INE835G01018
A65: ALOKINDS | B65: EQ | C65: 4.7 | D65: 4.7 | E65: 4.7 | F65: 4.7 | G65: 4.7 | H65: 4.5 | I65: 1698707 | J65: 7983922.9 | K65: 2020-04-08 | L65: 397 | M65: INE270A01029
A66: ALPA | B66: EQ | C66: 18.55 | D66: 20.15 | E66: 17.8 | F66: 20.15 | G66: 20.15 | H66: 16.8 | I66: 131233 | J66: 2593665.9 | K66: 2020-04-08 | L66: 858 | M66: INE385I01010
A67: ALPHAGEO | B67: EQ | C67: 126 | D67: 137.5 | E67: 126 | F67: 134.45 | G67: 133.3 | H67: 129.7 | I67: 22258 | J67: 2986986.5 | K67: 2020-04-08 | L67: 783 | M67: INE137C01018
A68: ALPSINDUS | B68: EQ | C68: 0.65 | D68: 0.75 | E68: 0.65 | F68: 0.75 | G68: 0.7 | H68: 0.7 | I68: 25369 | J68: 18108.8 | K68: 2020-04-08 | L68: 33 | M68: INE093B01015
A69: AMARAJABAT | B69: EQ | C69: 501.1 | D69: 513.65 | E69: 488.45 | F69: 502.05 | G69: 504.9 | H69: 501.1 | I69: 755312 | J69: 378881689.9 | K69: 2020-04-08 | L69: 18162 | M69: INE885A01032
A70: AMBER | B70: EQ | C70: 1189.9 | D70: 1199 | E70: 1072 | F70: 1108.05 | G70: 1109.25 | H70: 1189.9 | I70: 93512 | J70: 105805912.2 | K70: 2020-04-08 | L70: 14252 | M70: INE371P01015
A71: AMBIKCO | B71: EQ | C71: 539.25 | D71: 559 | E71: 531.05 | F71: 545.2 | G71: 536.4 | H71: 537.25 | I71: 3988 | J71: 2168349.4 | K71: 2020-04-08 | L71: 406 | M71: INE540G01014
A72: AMBUJACEM | B72: EQ | C72: 158.5 | D72: 159.5 | E72: 148.2 | F72: 149.7 | G72: 149.55 | H72: 159 | I72: 10421438 | J72: 1597618498 | K72: 2020-04-08 | L72: 84074 | M72: INE079A01024
A73: AMDIND | B73: EQ | C73: 9.9 | D73: 10.5 | E73: 9.5 | F73: 9.8 | G73: 9.55 | H73: 10 | I73: 17757 | J73: 177659.15 | K73: 2020-04-08 | L73: 707 | M73: INE005I01014
A74: AMJLAND | B74: EQ | C74: 14.3 | D74: 14.95 | E74: 13.7 | F74: 14 | G74: 14 | H74: 14.25 | I74: 12523 | J74: 176065.3 | K74: 2020-04-08 | L74: 106 | M74: INE606A01024
A75: AMRUTANJAN | B75: EQ | C75: 326 | D75: 352 | E75: 320.1 | F75: 345.45 | G75: 344.3 | H75: 324 | I75: 278725 | J75: 95586275.35 | K75: 2020-04-08 | L75: 9075 | M75: INE098F01031
A76: ANANTRAJ | B76: EQ | C76: 19.55 | D76: 20.15 | E76: 18.6 | F76: 18.75 | G76: 18.8 | H76: 19.55 | I76: 184694 | J76: 3509270.8 | K76: 2020-04-08 | L76: 1012 | M76: INE242C01024
A77: ANDHRACEMT | B77: EQ | C77: 1.8 | D77: 1.9 | E77: 1.7 | F77: 1.85 | G77: 1.9 | H77: 1.75 | I77: 105618 | J77: 196578.05 | K77: 2020-04-08 | L77: 227 | M77: INE666E01012
A78: ANDHRAPAP | B78: EQ | C78: 148.55 | D78: 148.55 | E78: 147 | F78: 148.55 | G78: 148.55 | H78: 141.5 | I78: 2622 | J78: 389210.05 | K78: 2020-04-08 | L78: 70 | M78: INE435A01028
A79: ANDHRSUGAR | B79: EQ | C79: 206.95 | D79: 212 | E79: 195 | F79: 206.05 | G79: 205.85 | H79: 203.55 | I79: 35494 | J79: 7286675.25 | K79: 2020-04-08 | L79: 1328 | M79: INE715B01013
A80: ANIKINDS | B80: EQ | C80: 7.25 | D80: 7.25 | E80: 6.65 | F80: 6.8 | G80: 6.8 | H80: 6.95 | I80: 4994 | J80: 34701.65 | K80: 2020-04-08 | L80: 35 | M80: INE087B01017
A81: ANKITMETAL | B81: EQ | C81: 0.4 | D81: 0.45 | E81: 0.35 | F81: 0.45 | G81: 0.45 | H81: 0.4 | I81: 64810 | J81: 27213.05 | K81: 2020-04-08 | L81: 29 | M81: INE106I01010
A82: ANSALAPI | B82: EQ | C82: 3.65 | D82: 3.8 | E82: 3.65 | F82: 3.8 | G82: 3.8 | H82: 3.65 | I82: 3974 | J82: 15023.75 | K82: 2020-04-08 | L82: 28 | M82: INE436A01026
A83: ANSALHSG | B83: EQ | C83: 3 | D83: 3 | E83: 2.8 | F83: 2.9 | G83: 2.9 | H83: 2.9 | I83: 31510 | J83: 91846.6 | K83: 2020-04-08 | L83: 64 | M83: INE880B01015
A84: ANUP | B84: EQ | C84: 304.75 | D84: 323.7 | E84: 303.1 | F84: 313.2 | G84: 313.05 | H84: 312.75 | I84: 11786 | J84: 3732090.6 | K84: 2020-04-08 | L84: 460 | M84: INE294Z01018
A85: APARINDS | B85: EQ | C85: 296.95 | D85: 300.35 | E85: 290.6 | F85: 295.85 | G85: 295.5 | H85: 296.05 | I85: 6051 | J85: 1806443.45 | K85: 2020-04-08 | L85: 427 | M85: INE372A01015
A86: APCL | B86: EQ | C86: 102.4 | D86: 102.4 | E86: 95.2 | F86: 97.35 | G86: 97 | H86: 98.5 | I86: 3739 | J86: 362867.6 | K86: 2020-04-08 | L86: 79 | M86: INE071F01012
A87: APCOTEXIND | B87: EQ | C87: 87.55 | D87: 94.85 | E87: 86 | F87: 87.5 | G87: 86.1 | H87: 87.45 | I87: 13115 | J87: 1175575.25 | K87: 2020-04-08 | L87: 323 | M87: INE116A01032
A88: APEX | B88: EQ | C88: 190 | D88: 201.65 | E88: 185.1 | F88: 201.65 | G88: 201.65 | H88: 183.35 | I88: 141806 | J88: 27768799.35 | K88: 2020-04-08 | L88: 3293 | M88: INE346W01013
A89: APLAPOLLO | B89: EQ | C89: 1245 | D89: 1274 | E89: 1220 | F89: 1259.5 | G89: 1258 | H89: 1231.75 | I89: 21152 | J89: 26442272.1 | K89: 2020-04-08 | L89: 3032 | M89: INE702C01019
A90: APLLTD | B90: EQ | C90: 630 | D90: 702.65 | E90: 615.5 | F90: 640.85 | G90: 626 | H90: 610.2 | I90: 540272 | J90: 353935242.1 | K90: 2020-04-08 | L90: 30323 | M90: INE901L01018
A91: APOLLO | B91: EQ | C91: 45.5 | D91: 56 | E91: 45.25 | F91: 54.3 | G91: 53.55 | H91: 46.7 | I91: 68951 | J91: 3631629.4 | K91: 2020-04-08 | L91: 1694 | M91: INE713T01010
A92: APOLLOHOSP | B92: EQ | C92: 1225.9 | D92: 1338.4 | E92: 1211 | F92: 1263.95 | G92: 1261 | H92: 1225.95 | I92: 2070270 | J92: 2654141027 | K92: 2020-04-08 | L92: 156926 | M92: INE437A01024
A93: APOLLOPIPE | B93: EQ | C93: 279.5 | D93: 304 | E93: 262.95 | F93: 281.3 | G93: 281 | H93: 280.1 | I93: 12940 | J93: 3607793.25 | K93: 2020-04-08 | L93: 543 | M93: INE126J01016
A94: APOLLOTYRE | B94: EQ | C94: 83.5 | D94: 87.15 | E94: 82 | F94: 83.4 | G94: 83.15 | H94: 83.5 | I94: 2950752 | J94: 248872037.1 | K94: 2020-04-08 | L94: 19408 | M94: INE438A01022
A95: APOLSINHOT | B95: EQ | C95: 460.35 | D95: 460.4 | E95: 421.1 | F95: 439.8 | G95: 436 | H95: 438.6 | I95: 694 | J95: 306874.65 | K95: 2020-04-08 | L95: 84 | M95: INE451F01024
A96: APTECHT | B96: EQ | C96: 85.3 | D96: 87.7 | E96: 83.55 | F96: 84.6 | G96: 84.3 | H96: 85.3 | I96: 106721 | J96: 9133416.7 | K96: 2020-04-08 | L96: 2385 | M96: INE266F01018
A97: ARCHIDPLY | B97: EQ | C97: 16.55 | D97: 17 | E97: 16.45 | F97: 16.85 | G97: 16.95 | H97: 16.75 | I97: 4083 | J97: 68300.2 | K97: 2020-04-08 | L97: 63 | M97: INE877I01016
A98: ARCHIES | B98: EQ | C98: 9.4 | D98: 9.5 | E98: 9 | F98: 9.05 | G98: 9.15 | H98: 9.45 | I98: 24343 | J98: 224667.6 | K98: 2020-04-08 | L98: 150 | M98: INE731A01020
A99: ARCOTECH | B99: EQ | C99: 0.9 | D99: 0.95 | E99: 0.85 | F99: 0.9 | G99: 0.9 | H99: 0.9 | I99: 51482 | J99: 47500.05 | K99: 2020-04-08 | L99: 77 | M99: INE574I01035
A100: ARENTERP | B100: EQ | C100: 12.65 | D100: 12.65 | E100: 12.05 | F100: 12.05 | G100: 12.05 | H100: 12.65 | I100: 63 | J100: 765.15 | K100: 2020-04-08 | L100: 4 | M100: INE610C01014
A101: ARIES | B101: EQ | C101: 44.4 | D101: 47.6 | E101: 42.65 | F101: 43.6 | G101: 44 | H101: 44.4 | I101: 50875 | J101: 2250478.25 | K101: 2020-04-08 | L101: 1080 | M101: INE298I01015
A102: ARIHANT | B102: EQ | C102: 12.05 | D102: 12.55 | E102: 11.6 | F102: 12.15 | G102: 12.5 | H102: 12.05 | I102: 964 | J102: 11418.15 | K102: 2020-04-08 | L102: 27 | M102: INE413D01011
A103: ARIHANTSUP | B103: EQ | C103: 21.4 | D103: 21.45 | E103: 19.45 | F103: 19.5 | G103: 21 | H103: 20.45 | I103: 4362 | J103: 85414.05 | K103: 2020-04-08 | L103: 80 | M103: INE643K01018
A104: ARMANFIN | B104: EQ | C104: 340 | D104: 373.2 | E104: 337.7 | F104: 373.05 | G104: 373.2 | H104: 355.45 | I104: 50867 | J104: 18465582.65 | K104: 2020-04-08 | L104: 911 | M104: INE109C01017
A105: AROGRANITE | B105: EQ | C105: 21.95 | D105: 24.5 | E105: 20.85 | F105: 24.2 | G105: 24.5 | H105: 22.35 | I105: 26052 | J105: 602565.3 | K105: 2020-04-08 | L105: 183 | M105: INE210C01013
A106: ARROWGREEN | B106: BE | C106: 33.55 | D106: 35 | E106: 33.45 | F106: 33.45 | G106: 33.45 | H106: 33.85 | I106: 5735 | J106: 195198.5 | K106: 2020-04-08 | L106: 32 | M106: INE570D01018
A107: ARSHIYA | B107: EQ | C107: 7.1 | D107: 7.6 | E107: 7.1 | F107: 7.6 | G107: 7.6 | H107: 7.25 | I107: 23178 | J107: 175819.45 | K107: 2020-04-08 | L107: 63 | M107: INE968D01022
A108: ARSSINFRA | B108: EQ | C108: 11.25 | D108: 12.3 | E108: 10.9 | F108: 11.8 | G108: 11.85 | H108: 11.15 | I108: 16388 | J108: 189874.85 | K108: 2020-04-08 | L108: 107 | M108: INE267I01010
A109: ARTEMISMED | B109: EQ | C109: 140 | D109: 147 | E109: 136.3 | F109: 138 | G109: 137 | H109: 139.15 | I109: 1729 | J109: 245138.4 | K109: 2020-04-08 | L109: 31 | M109: INE025R01013
A110: ARVIND | B110: EQ | C110: 23.5 | D110: 24.4 | E110: 22.45 | F110: 23.75 | G110: 23.75 | H110: 22.2 | I110: 2137547 | J110: 50521243.45 | K110: 2020-04-08 | L110: 7057 | M110: INE034A01011
A111: ARVINDFASN | B111: EQ | C111: 139.8 | D111: 141.9 | E111: 132.2 | F111: 133.8 | G111: 134.75 | H111: 139.85 | I111: 46445 | J111: 6387304.5 | K111: 2020-04-08 | L111: 1243 | M111: INE955V01021
A112: ARVSMART | B112: EQ | C112: 64.05 | D112: 67 | E112: 64 | F112: 65.4 | G112: 65.5 | H112: 65 | I112: 10000 | J112: 656036.65 | K112: 2020-04-08 | L112: 320 | M112: INE034S01021
A113: ASAHIINDIA | B113: EQ | C113: 152 | D113: 158 | E113: 147.05 | F113: 155.5 | G113: 152.35 | H113: 153.2 | I113: 5605 | J113: 858978.65 | K113: 2020-04-08 | L113: 218 | M113: INE439A01020
A114: ASAHISONG | B114: EQ | C114: 80.8 | D114: 88.95 | E114: 80.05 | F114: 85.25 | G114: 86 | H114: 80.9 | I114: 8055 | J114: 692533.2 | K114: 2020-04-08 | L114: 314 | M114: INE228I01012
A115: ASAL | B115: EQ | C115: 14.8 | D115: 14.9 | E115: 14.5 | F115: 14.5 | G115: 14.5 | H115: 14.25 | I115: 8037 | J115: 118819.3 | K115: 2020-04-08 | L115: 36 | M115: INE900C01027
A116: ASALCBR | B116: EQ | C116: 164.9 | D116: 175 | E116: 158 | F116: 165.7 | G116: 165 | H116: 162.9 | I116: 31033 | J116: 5116102.05 | K116: 2020-04-08 | L116: 970 | M116: INE073G01016
A117: ASHAPURMIN | B117: EQ | C117: 22.1 | D117: 22.1 | E117: 22.05 | F117: 22.1 | G117: 22.1 | H117: 21.05 | I117: 8770 | J117: 193792 | K117: 2020-04-08 | L117: 43 | M117: INE348A01023
A118: ASHIANA | B118: EQ | C118: 52.9 | D118: 52.9 | E118: 49.1 | F118: 49.95 | G118: 50 | H118: 50 | I118: 69042 | J118: 3480534.3 | K118: 2020-04-08 | L118: 621 | M118: INE365D01021
A119: ASHIMASYN | B119: EQ | C119: 3.9 | D119: 3.9 | E119: 3.9 | F119: 3.9 | G119: 3.9 | H119: 3.55 | I119: 28914 | J119: 112764.6 | K119: 2020-04-08 | L119: 46 | M119: INE440A01010
A120: ASHOKA | B120: EQ | C120: 38.35 | D120: 42.7 | E120: 37.8 | F120: 42.7 | G120: 42.7 | H120: 38.85 | I120: 1577514 | J120: 65134101.3 | K120: 2020-04-08 | L120: 8475 | M120: INE442H01029
A121: ASHOKLEY | B121: EQ | C121: 39.85 | D121: 47.8 | E121: 38.75 | F121: 43.85 | G121: 43.6 | H121: 39.85 | I121: 76817768 | J121: 3355417806 | K121: 2020-04-08 | L121: 169889 | M121: INE208A01029
A122: ASIANHOTNR | B122: EQ | C122: 70 | D122: 71.8 | E122: 66 | F122: 71.55 | G122: 71.5 | H122: 65.4 | I122: 4982 | J122: 349215.55 | K122: 2020-04-08 | L122: 198 | M122: INE363A01022
A123: ASIANPAINT | B123: EQ | C123: 1623.8 | D123: 1687.8 | E123: 1600 | F123: 1608.95 | G123: 1608 | H123: 1623.8 | I123: 2382216 | J123: 3911658954 | K123: 2020-04-08 | L123: 101146 | M123: INE021A01026
A124: ASIANTILES | B124: EQ | C124: 156 | D124: 162.9 | E124: 155 | F124: 157.6 | G124: 156.5 | H124: 157.65 | I124: 19917 | J124: 3151924.4 | K124: 2020-04-08 | L124: 431 | M124: INE022I01019
A125: ASPINWALL | B125: EQ | C125: 93 | D125: 98.7 | E125: 83.55 | F125: 93 | G125: 93 | H125: 90 | I125: 413 | J125: 38837.15 | K125: 2020-04-08 | L125: 20 | M125: INE991I01015
A126: ASTEC | B126: EQ | C126: 450.65 | D126: 465.05 | E126: 440 | F126: 460.05 | G126: 460.3 | H126: 443.9 | I126: 5283 | J126: 2392645.5 | K126: 2020-04-08 | L126: 494 | M126: INE563J01010
A127: ASTERDM | B127: EQ | C127: 96 | D127: 103.5 | E127: 93.8 | F127: 99.25 | G127: 99 | H127: 94.55 | I127: 996205 | J127: 98978623.7 | K127: 2020-04-08 | L127: 4570 | M127: INE914M01019
A128: ASTRAL | B128: EQ | C128: 962 | D128: 986 | E128: 952 | F128: 955.45 | G128: 954 | H128: 973.85 | I128: 59212 | J128: 57381672.65 | K128: 2020-04-08 | L128: 7623 | M128: INE006I01046
A129: ASTRAMICRO | B129: EQ | C129: 56.9 | D129: 62.55 | E129: 55.85 | F129: 61.7 | G129: 62.55 | H129: 56.9 | I129: 253097 | J129: 15146656.55 | K129: 2020-04-08 | L129: 1961 | M129: INE386C01029
A130: ASTRAZEN | B130: EQ | C130: 2700 | D130: 2830 | E130: 2544 | F130: 2561.6 | G130: 2549 | H130: 2693.65 | I130: 38510 | J130: 104113109 | K130: 2020-04-08 | L130: 6647 | M130: INE203A01020
A131: ASTRON | B131: EQ | C131: 26.15 | D131: 29.9 | E131: 25.3 | F131: 27.5 | G131: 27.8 | H131: 27.65 | I131: 61618 | J131: 1693449.45 | K131: 2020-04-08 | L131: 1743 | M131: INE646X01014
A132: ATFL | B132: EQ | C132: 479.65 | D132: 499 | E132: 475 | F132: 481.55 | G132: 475 | H132: 479.65 | I132: 6104 | J132: 2975754.9 | K132: 2020-04-08 | L132: 411 | M132: INE209A01019
A133: ATLANTA | B133: EQ | C133: 3 | D133: 3.15 | E133: 3 | F133: 3.15 | G133: 3.15 | H133: 3 | I133: 8624 | J133: 26936.35 | K133: 2020-04-08 | L133: 28 | M133: INE285H01022
A134: ATLASCYCLE | B134: BE | C134: 30 | D134: 31.5 | E134: 29.5 | F134: 30.7 | G134: 30.7 | H134: 30 | I134: 2000 | J134: 60118.65 | K134: 2020-04-08 | L134: 42 | M134: INE446A01025
A135: ATNINTER | B135: BE | C135: 0.1 | D135: 0.1 | E135: 0.1 | F135: 0.1 | G135: 0.1 | H135: 0.1 | I135: 12716 | J135: 1271.6 | K135: 2020-04-08 | L135: 5 | M135: INE803A01027
A136: ATUL | B136: EQ | C136: 3930 | D136: 4005 | E136: 3908.35 | F136: 3951.85 | G136: 3954.95 | H136: 3927.1 | I136: 76768 | J136: 304824820.4 | K136: 2020-04-08 | L136: 11635 | M136: INE100A01010
A137: ATULAUTO | B137: EQ | C137: 151.35 | D137: 154.05 | E137: 146.8 | F137: 153.45 | G137: 153.95 | H137: 146.75 | I137: 13699 | J137: 2093863.3 | K137: 2020-04-08 | L137: 810 | M137: INE951D01028
A138: AUBANK | B138: EQ | C138: 461.2 | D138: 490 | E138: 457 | F138: 480.3 | G138: 473 | H138: 478.4 | I138: 1791057 | J138: 837589012.6 | K138: 2020-04-08 | L138: 59410 | M138: INE949L01017
A139: AURIONPRO | B139: EQ | C139: 41.75 | D139: 43.7 | E139: 40 | F139: 42.9 | G139: 42.9 | H139: 40.95 | I139: 8828 | J139: 376649.05 | K139: 2020-04-08 | L139: 213 | M139: INE132H01018
A140: AUROPHARMA | B140: EQ | C140: 432.5 | D140: 476.3 | E140: 426.3 | F140: 438.15 | G140: 438.9 | H140: 445.7 | I140: 13186213 | J140: 5925576015 | K140: 2020-04-08 | L140: 205238 | M140: INE406A01037
A141: AUSOMENT | B141: EQ | C141: 26.1 | D141: 26.1 | E141: 26.1 | F141: 26.1 | G141: 26.1 | H141: 25 | I141: 100 | J141: 2610 | K141: 2020-04-08 | L141: 1 | M141: INE218C01016
A142: AUTOAXLES | B142: EQ | C142: 413 | D142: 423.5 | E142: 398.05 | F142: 413.45 | G142: 416 | H142: 399.3 | I142: 5448 | J142: 2244823.45 | K142: 2020-04-08 | L142: 638 | M142: INE449A01011
A143: AUTOIND | B143: EQ | C143: 11.3 | D143: 11.35 | E143: 11.1 | F143: 11.35 | G143: 11.35 | H143: 10.85 | I143: 9358 | J143: 105383.05 | K143: 2020-04-08 | L143: 68 | M143: INE718H01014
A144: AUTOLITIND | B144: EQ | C144: 13.2 | D144: 14.4 | E144: 13.2 | F144: 13.8 | G144: 13.9 | H144: 13.75 | I144: 4699 | J144: 65525.8 | K144: 2020-04-08 | L144: 68 | M144: INE448A01013
A145: AVADHSUGAR | B145: EQ | C145: 143.55 | D145: 143.55 | E145: 143.55 | F145: 143.55 | G145: 143.55 | H145: 136.75 | I145: 13174 | J145: 1891127.7 | K145: 2020-04-08 | L145: 157 | M145: INE349W01017
A146: AVANTIFEED | B146: EQ | C146: 311 | D146: 341.55 | E146: 310.5 | F146: 341.35 | G146: 341.55 | H146: 310.5 | I146: 748404 | J146: 246839085.1 | K146: 2020-04-08 | L146: 23272 | M146: INE871C01038
A147: AVTNPL | B147: EQ | C147: 25.45 | D147: 27.8 | E147: 24.25 | F147: 27.25 | G147: 27 | H147: 25.05 | I147: 213540 | J147: 5643644.4 | K147: 2020-04-08 | L147: 1601 | M147: INE488D01021
A148: AXISBANK | B148: EQ | C148: 383.75 | D148: 427.7 | E148: 373.5 | F148: 391.35 | G148: 391.4 | H148: 388.85 | I148: 64930772 | J148: 2.575974593e+10 | K148: 2020-04-08 | L148: 769506 | M148: INE238A01034
A149: AXISCADES | B149: EQ | C149: 30.9 | D149: 31.5 | E149: 28.65 | F149: 31.4 | G149: 31.5 | H149: 30 | I149: 39670 | J149: 1232336.75 | K149: 2020-04-08 | L149: 621 | M149: INE555B01013
A150: AXISGOLD | B150: EQ | C150: 3969.9 | D150: 3989 | E150: 3925 | F150: 3973.3 | G150: 3983 | H150: 3919.55 | I150: 701 | J150: 2769851.6 | K150: 2020-04-08 | L150: 206 | M150: INF846K01347
A151: AXISNIFTY | B151: EQ | C151: 1000.01 | D151: 1000.01 | E151: 1000.01 | F151: 1000.01 | G151: 1000.01 | H151: 1007 | I151: 2 | J151: 2000.02 | K151: 2020-04-08 | L151: 1 | M151: INF846K01ZL0
A152: AYMSYNTEX | B152: EQ | C152: 15.5 | D152: 16.8 | E152: 15.5 | F152: 16.5 | G152: 16.5 | H152: 16.1 | I152: 2637 | J152: 43548.55 | K152: 2020-04-08 | L152: 26 | M152: INE193B01039
A153: BAFNAPH | B153: EQ | C153: 16.05 | D153: 16.05 | E153: 16.05 | F153: 16.05 | G153: 16.05 | H153: 15.3 | I153: 272 | J153: 4365.6 | K153: 2020-04-08 | L153: 8 | M153: INE878I01022
A154: BAGFILMS | B154: BE | C154: 1.75 | D154: 1.8 | E154: 1.75 | F154: 1.8 | G154: 1.8 | H154: 1.75 | I154: 3861 | J154: 6912.3 | K154: 2020-04-08 | L154: 20 | M154: INE116D01028
A155: BAJAJ-AUTO | B155: EQ | C155: 2180 | D155: 2383.45 | E155: 2168.55 | F155: 2241.7 | G155: 2260 | H155: 2280.05 | I155: 840875 | J155: 1933266167 | K155: 2020-04-08 | L155: 59866 | M155: INE917I01010
A156: BAJAJCON | B156: EQ | C156: 136 | D156: 148.65 | E156: 135.1 | F156: 137.95 | G156: 138 | H156: 138.15 | I156: 1031633 | J156: 145711259.1 | K156: 2020-04-08 | L156: 26102 | M156: INE933K01021
A157: BAJAJELEC | B157: EQ | C157: 277.3 | D157: 294.5 | E157: 277.3 | F157: 287.8 | G157: 289 | H157: 277.3 | I157: 58251 | J157: 16797537.55 | K157: 2020-04-08 | L157: 3821 | M157: INE193E01025
A158: BAJAJFINSV | B158: EQ | C158: 4575 | D158: 4950 | E158: 4537.8 | F158: 4608.5 | G158: 4604 | H158: 4724.9 | I158: 1113057 | J158: 5259493342 | K158: 2020-04-08 | L158: 158158 | M158: INE918I01018
A159: BAJAJHIND | B159: EQ | C159: 3.05 | D159: 3.05 | E159: 3.05 | F159: 3.05 | G159: 3.05 | H159: 2.95 | I159: 80900 | J159: 246745 | K159: 2020-04-08 | L159: 110 | M159: INE306A01021
A160: BAJAJHLDNG | B160: EQ | C160: 2027.95 | D160: 2073.85 | E160: 1925 | F160: 2024.75 | G160: 2025 | H160: 1978.9 | I160: 25453 | J160: 51363834.45 | K160: 2020-04-08 | L160: 6198 | M160: INE118A01012
A161: BAJFINANCE | B161: EQ | C161: 2184 | D161: 2374 | E161: 2144.15 | F161: 2332.9 | G161: 2329 | H161: 2253.35 | I161: 9109346 | J161: 2.088826331e+10 | K161: 2020-04-08 | L161: 516967 | M161: INE296A01024
A162: BALAJITELE | B162: EQ | C162: 43 | D162: 45 | E162: 40.8 | F162: 41.9 | G162: 42.15 | H162: 43.75 | I162: 194912 | J162: 8414452.4 | K162: 2020-04-08 | L162: 1677 | M162: INE794B01026
A163: BALAMINES | B163: EQ | C163: 277 | D163: 296 | E163: 260.4 | F163: 283.65 | G163: 284.45 | H163: 271.2 | I163: 70594 | J163: 20058887.5 | K163: 2020-04-08 | L163: 2337 | M163: INE050E01027
A164: BALAXI | B164: BE | C164: 82.7 | D164: 82.7 | E164: 75.05 | F164: 79.9 | G164: 79.9 | H164: 79 | I164: 1047 | J164: 78761.9 | K164: 2020-04-08 | L164: 24 | M164: INE618N01014
A165: BALKRISHNA | B165: EQ | C165: 8.6 | D165: 8.8 | E165: 8.35 | F165: 8.8 | G165: 8.8 | H165: 8.4 | I165: 7860 | J165: 67624.35 | K165: 2020-04-08 | L165: 49 | M165: INE875R01011
A166: BALKRISIND | B166: EQ | C166: 822 | D166: 862 | E166: 815 | F166: 821.35 | G166: 818.3 | H166: 823.55 | I166: 444079 | J166: 371870250.3 | K166: 2020-04-08 | L166: 24462 | M166: INE787D01026
A167: BALLARPUR | B167: EQ | C167: 0.4 | D167: 0.4 | E167: 0.3 | F167: 0.35 | G167: 0.35 | H167: 0.35 | I167: 9769871 | J167: 3419941.15 | K167: 2020-04-08 | L167: 514 | M167: INE294A01037
A168: BALMLAWRIE | B168: EQ | C168: 84 | D168: 87.9 | E168: 81 | F168: 84.75 | G168: 85.65 | H168: 85.5 | I168: 202053 | J168: 17357055.25 | K168: 2020-04-08 | L168: 3105 | M168: INE164A01016
A169: BALPHARMA | B169: EQ | C169: 38.9 | D169: 41.7 | E169: 38.9 | F169: 41.7 | G169: 41.7 | H169: 37.95 | I169: 40933 | J169: 1688199.5 | K169: 2020-04-08 | L169: 518 | M169: INE083D01012
A170: BALRAMCHIN | B170: EQ | C170: 123.85 | D170: 126.4 | E170: 123 | F170: 126.4 | G170: 126.4 | H170: 120.4 | I170: 642515 | J170: 80884980.2 | K170: 2020-04-08 | L170: 7125 | M170: INE119A01028
A171: BANARBEADS | B171: EQ | C171: 30.25 | D171: 32.5 | E171: 29.6 | F171: 29.75 | G171: 29.75 | H171: 31.5 | I171: 160 | J171: 4873.85 | K171: 2020-04-08 | L171: 26 | M171: INE655B01011
A172: BANARISUG | B172: EQ | C172: 900 | D172: 925 | E172: 880 | F172: 886.1 | G172: 880 | H172: 893.1 | I172: 410 | J172: 368979.1 | K172: 2020-04-08 | L172: 94 | M172: INE459A01010
A173: BANCOINDIA | B173: EQ | C173: 65.45 | D173: 67.5 | E173: 64.1 | F173: 65.95 | G173: 66 | H173: 65.45 | I173: 40062 | J173: 2654130.6 | K173: 2020-04-08 | L173: 1013 | M173: INE213C01025
A174: BANDHANBNK | B174: EQ | C174: 167.95 | D174: 209.05 | E174: 167.5 | F174: 193.75 | G174: 195.25 | H174: 167.25 | I174: 30692919 | J174: 5833285762 | K174: 2020-04-08 | L174: 332020 | M174: INE545U01014
A175: BANG | B175: EQ | C175: 12.05 | D175: 13.1 | E175: 11.9 | F175: 13.1 | G175: 13.1 | H175: 12.5 | I175: 1590 | J175: 20489 | K175: 2020-04-08 | L175: 31 | M175: INE863I01016
A176: BANKBARODA | B176: EQ | C176: 48 | D176: 51.5 | E176: 47.3 | F176: 48.35 | G176: 48.45 | H176: 48.15 | I176: 27159204 | J176: 1340103716 | K176: 2020-04-08 | L176: 77070 | M176: INE028A01039
A177: BANKBEES | B177: EQ | C177: 190 | D177: 205.4 | E177: 186.06 | F177: 191.28 | G177: 191.4 | H177: 192.12 | I177: 676832 | J177: 131368353.2 | K177: 2020-04-08 | L177: 10023 | M177: INF204KB15I9
A178: BANKINDIA | B178: EQ | C178: 32.7 | D178: 34.75 | E178: 32.5 | F178: 33.35 | G178: 33.25 | H178: 32.95 | I178: 1236627 | J178: 41574499.75 | K178: 2020-04-08 | L178: 6257 | M178: INE084A01016
A179: BANSWRAS | B179: EQ | C179: 77.4 | D179: 77.4 | E179: 70.2 | F179: 71.15 | G179: 70.2 | H179: 73.75 | I179: 22922 | J179: 1667255.55 | K179: 2020-04-08 | L179: 137 | M179: INE629D01012
A180: BASF | B180: EQ | C180: 1154 | D180: 1154 | E180: 1105 | F180: 1119.95 | G180: 1120.5 | H180: 1138.25 | I180: 26139 | J180: 29425244.35 | K180: 2020-04-08 | L180: 2640 | M180: INE373A01013
A181: BASML | B181: EQ | C181: 74.05 | D181: 84 | E181: 74.05 | F181: 80 | G181: 80 | H181: 78.7 | I181: 1648 | J181: 135366.45 | K181: 2020-04-08 | L181: 154 | M181: INE186H01014
A182: BATAINDIA | B182: EQ | C182: 1246.5 | D182: 1339 | E182: 1228 | F182: 1240.05 | G182: 1238.95 | H182: 1246.4 | I182: 1346088 | J182: 1726485633 | K182: 2020-04-08 | L182: 66274 | M182: INE176A01028
A183: BAYERCROP | B183: EQ | C183: 3500 | D183: 3946.6 | E183: 3499.3 | F183: 3818.15 | G183: 3772.15 | H183: 3510 | I183: 32833 | J183: 125437264 | K183: 2020-04-08 | L183: 6737 | M183: INE462A01022
A184: BBL | B184: EQ | C184: 590 | D184: 621.25 | E184: 590 | F184: 613.05 | G184: 621.25 | H184: 589.55 | I184: 9335 | J184: 5684085.45 | K184: 2020-04-08 | L184: 804 | M184: INE464A01028
A185: BBTC | B185: EQ | C185: 810 | D185: 854.3 | E185: 774 | F185: 784.2 | G185: 787.95 | H185: 788.4 | I185: 76612 | J185: 62014517.65 | K185: 2020-04-08 | L185: 5281 | M185: INE050A01025
A186: BCG | B186: EQ | C186: 3.6 | D186: 3.65 | E186: 3.55 | F186: 3.65 | G186: 3.65 | H186: 3.5 | I186: 305718 | J186: 1113234.95 | K186: 2020-04-08 | L186: 149 | M186: INE425B01027
A187: BCP | B187: EQ | C187: 10.75 | D187: 10.75 | E187: 10.5 | F187: 10.75 | G187: 10.75 | H187: 10.25 | I187: 8192 | J187: 87934.6 | K187: 2020-04-08 | L187: 28 | M187: INE905P01028
A188: BDL | B188: EQ | C188: 191 | D188: 229 | E188: 188.2 | F188: 218.2 | G188: 216.4 | H188: 191.4 | I188: 448405 | J188: 97968192.25 | K188: 2020-04-08 | L188: 13672 | M188: INE171Z01018
A189: BEARDSELL | B189: EQ | C189: 6.7 | D189: 7.3 | E189: 6.7 | F189: 7.3 | G189: 7.3 | H189: 7.05 | I189: 1250 | J189: 8417 | K189: 2020-04-08 | L189: 4 | M189: INE520H01022
A190: BEDMUTHA | B190: EQ | C190: 12.8 | D190: 13.05 | E190: 12.45 | F190: 12.45 | G190: 12.45 | H190: 13.1 | I190: 19584 | J190: 245429.15 | K190: 2020-04-08 | L190: 32 | M190: INE844K01012
A191: BEL | B191: EQ | C191: 69 | D191: 71.3 | E191: 65.1 | F191: 66.4 | G191: 66.5 | H191: 69 | I191: 16699885 | J191: 1138705070 | K191: 2020-04-08 | L191: 69587 | M191: INE263A01024
A192: BEML | B192: EQ | C192: 492 | D192: 523.5 | E192: 492 | F192: 503.6 | G192: 503 | H192: 475.95 | I192: 890527 | J192: 458689246.6 | K192: 2020-04-08 | L192: 23670 | M192: INE258A01016
A193: BEPL | B193: EQ | C193: 31 | D193: 32.75 | E193: 30.3 | F193: 31.25 | G193: 31.6 | H193: 30.25 | I193: 333595 | J193: 10578641.1 | K193: 2020-04-08 | L193: 3321 | M193: INE922A01025
A194: BERGEPAINT | B194: EQ | C194: 479.9 | D194: 487.65 | E194: 460 | F194: 463.5 | G194: 462 | H194: 479.2 | I194: 1729062 | J194: 817908730.6 | K194: 2020-04-08 | L194: 32950 | M194: INE463A01038
A195: BFINVEST | B195: EQ | C195: 258 | D195: 268.8 | E195: 244.6 | F195: 246.3 | G195: 248.95 | H195: 257.45 | I195: 4938 | J195: 1236639.95 | K195: 2020-04-08 | L195: 244 | M195: INE878K01010
A196: BFUTILITIE | B196: EQ | C196: 158.35 | D196: 158.35 | E196: 151.05 | F196: 154.05 | G196: 153.7 | H196: 150.85 | I196: 138134 | J196: 21700813.75 | K196: 2020-04-08 | L196: 1649 | M196: INE243D01012
A197: BGRENERGY | B197: EQ | C197: 22.1 | D197: 22.85 | E197: 20.95 | F197: 21.1 | G197: 21.15 | H197: 22.2 | I197: 172282 | J197: 3763089.75 | K197: 2020-04-08 | L197: 1108 | M197: INE661I01014
A198: BHAGERIA | B198: EQ | C198: 85 | D198: 91.05 | E198: 80.65 | F198: 81.6 | G198: 82.3 | H198: 84.2 | I198: 34795 | J198: 2944870.7 | K198: 2020-04-08 | L198: 925 | M198: INE354C01027
A199: BHAGYANGR | B199: EQ | C199: 14.05 | D199: 15.2 | E199: 14 | F199: 14.4 | G199: 14.4 | H199: 14.4 | I199: 1338 | J199: 19622.25 | K199: 2020-04-08 | L199: 50 | M199: INE458B01036
A200: BHAGYAPROP | B200: EQ | C200: 18 | D200: 20 | E200: 18 | F200: 20 | G200: 20 | H200: 19 | I200: 999 | J200: 19011 | K200: 2020-04-08 | L200: 5 | M200: INE363W01018
... 1470 more rows

Sheet Sheet1 (hidden)

Sheet Sheet3 (hidden)

Sheet Sheet4 (hidden)

Sheet Sheet5 (hidden)
